Workbook

Sheet Oct_MidYear Adj
A1: School System | D1: Feb. 1, 2019 MFP Funded Membership (Per SIS) *Includes students from closed Type 2 Charter Schools as placeholder | E1: Oct. 1, 2019 MFP Funded Membership (Per SIS) | F1: Change in MFP Funded Membership (Feb. 1, 2019 to Oct. 1, 2019) | G1: City/Parish Per Pupil (After State Cost Allocations to Other Public Schools) | H1: Change in Total State Cost Allocation
D4: 1 | E4: =D4+1 -> 2 | F4: 3 | G4: =F4+1 -> 4 | H4: 5
D6: Input | E6: Per Pupil ($E$3) Resolution | F6: Input | G6: Per Pupil ($I$3) Resolution | H6: Formula
A7: 1 | C7: Acadia | D7: =[1]Base!$C7 -> 9341 | E7: =[2]Base!$C7 -> 9448 | F7: =E7-D7 -> 107 | G7: ='Per Pupil Summary'!$P7 -> 5769 | H7: =ROUND(F7*G7,0) -> 617283
A8: 2 | C8: Allen | D8: =[1]Base!$C8 -> 3987 | E8: =[2]Base!$C8 -> 3981 | F8: -6 | G8: ='Per Pupil Summary'!$P8 -> 7473 | H8: -44838
A9: 3 | C9: Ascension* | D9: =[1]Base!$C9 -> 22207 | E9: =[2]Base!$C9 -> 22709 | F9: 502 | G9: ='Per Pupil Summary'!$P9 -> 4793 | H9: 2406086
A10: 4 | C10: Assumption | D10: =[1]Base!$C10 -> 3122 | E10: =[2]Base!$C10 -> 3038 | F10: -84 | G10: ='Per Pupil Summary'!$P10 -> 6792 | H10: -570528
A11: 5 | C11: Avoyelles | D11: =[1]Base!$C11 -> 5065 | E11: =[2]Base!$C11 -> 4928 | F11: -137 | G11: ='Per Pupil Summary'!$P11 -> 6155 | H11: -843235
A12: 6 | C12: Beauregard | D12: =[1]Base!$C12 -> 5763 | E12: =[2]Base!$C12 -> 5749 | F12: -14 | G12: ='Per Pupil Summary'!$P12 -> 6333 | H12: -88662
A13: 7 | C13: Bienville | D13: =[1]Base!$C13 -> 2030 | E13: =[2]Base!$C13 -> 2077 | F13: 47 | G13: ='Per Pupil Summary'!$P13 -> 3844 | H13: 180668
A14: 8 | C14: Bossier | D14: =[1]Base!$C14 -> 22331 | E14: =[2]Base!$C14 -> 22393 | F14: 62 | G14: ='Per Pupil Summary'!$P14 -> 5903 | H14: 365986
A15: 9 | C15: Caddo | D15: =[1]Base!$C15 -> 37402 | E15: =[2]Base!$C15 -> 36871 | F15: -531 | G15: ='Per Pupil Summary'!$P15 -> 5537 | H15: -2940147
A16: 10 | C16: Calcasieu | D16: =[1]Base!$C16 -> 30994 | E16: =[2]Base!$C16 -> 30685 | F16: -309 | G16: ='Per Pupil Summary'!$P16 -> 4083 | H16: -1261647
A17: 11 | C17: Caldwell | D17: =[1]Base!$C17 -> 1541 | E17: =[2]Base!$C17 -> 1541 | F17: 0 | G17: ='Per Pupil Summary'!$P17 -> 7908 | H17: 0
A18: 12 | C18: Cameron | D18: =[1]Base!$C18 -> 1313 | E18: =[2]Base!$C18 -> 1292 | F18: -21 | G18: ='Per Pupil Summary'!$P18 -> 2783 | H18: -58443
A19: 13 | C19: Catahoula | D19: =[1]Base!$C19 -> 1165 | E19: =[2]Base!$C19 -> 1115 | F19: -50 | G19: ='Per Pupil Summary'!$P19 -> 7497 | H19: -374850
A20: 14 | C20: Claiborne | D20: =[1]Base!$C20 -> 1629 | E20: =[2]Base!$C20 -> 1595 | F20: -34 | G20: ='Per Pupil Summary'!$P20 -> 7241 | H20: -246194
A21: 15 | C21: Concordia | D21: =[1]Base!$C21 -> 3209 | E21: =[2]Base!$C21 -> 3176 | F21: -33 | G21: ='Per Pupil Summary'!$P21 -> 6976 | H21: -230208
A22: 16 | C22: DeSoto | D22: =[1]Base!$C22 -> 4796 | E22: =[2]Base!$C22 -> 4772 | F22: -24 | G22: ='Per Pupil Summary'!$P22 -> 2869 | H22: -68856
A23: 17 | C23: East Baton Rouge* | D23: =[1]Base!$C23 -> 39448 | E23: =[2]Base!$C23 -> 39667 | F23: 219 | G23: ='Per Pupil Summary'!$P23 -> 4211 | H23: 922209
A24: 18 | C24: East Carroll | D24: =[1]Base!$C24 -> 893 | E24: =[2]Base!$C24 -> 890 | F24: -3 | G24: ='Per Pupil Summary'!$P24 -> 7210 | H24: -21630
A25: 19 | C25: East Feliciana | D25: =[1]Base!$C25 -> 1793 | E25: =[2]Base!$C25 -> 1720 | F25: -73 | G25: ='Per Pupil Summary'!$P25 -> 5907 | H25: -431211
A26: 20 | C26: Evangeline | D26: =[1]Base!$C26 -> 5572 | E26: =[2]Base!$C26 -> 5523 | F26: -49 | G26: ='Per Pupil Summary'!$P26 -> 6299 | H26: -308651
A27: 21 | C27: Franklin* | D27: =[1]Base!$C27 -> 2928 | E27: =[2]Base!$C27 -> 2876 | F27: -52 | G27: ='Per Pupil Summary'!$P27 -> 7017 | H27: -364884
A28: 22 | C28: Grant | D28: =[1]Base!$C28 -> 2891 | E28: =[2]Base!$C28 -> 2863 | F28: -28 | G28: ='Per Pupil Summary'!$P28 -> 7507 | H28: -210196
A29: 23 | C29: Iberia | D29: =[1]Base!$C29 -> 12103 | E29: =[2]Base!$C29 -> 12035 | F29: -68 | G29: ='Per Pupil Summary'!$P29 -> 6124 | H29: -416432
A30: 24 | C30: Iberville* | D30: =[1]Base!$C30 -> 4316 | E30: =[2]Base!$C30 -> 4108 | F30: -208 | G30: ='Per Pupil Summary'!$P30 -> 3333 | H30: -693264
A31: 25 | C31: Jackson | D31: =[1]Base!$C31 -> 2213 | E31: =[2]Base!$C31 -> 2195 | F31: -18 | G31: ='Per Pupil Summary'!$P31 -> 5496 | H31: -98928
A32: 26 | C32: Jefferson* | D32: =[1]Base!$C32 -> 47214 | E32: =[2]Base!$C32 -> 48631 | F32: 1417 | G32: ='Per Pupil Summary'!$P32 -> 4826 | H32: 6838442
A33: 27 | C33: Jefferson Davis | D33: =[1]Base!$C33 -> 5505 | E33: =[2]Base!$C33 -> 5453 | F33: -52 | G33: ='Per Pupil Summary'!$P33 -> 6677 | H33: -347204
A34: 28 | C34: Lafayette | D34: =[1]Base!$C34 -> 30348 | E34: =[2]Base!$C34 -> 30878 | F34: 530 | G34: ='Per Pupil Summary'!$P34 -> 4304 | H34: 2281120
A35: 29 | C35: Lafourche | D35: =[1]Base!$C35 -> 13809 | E35: =[2]Base!$C35 -> 14140 | F35: 331 | G35: ='Per Pupil Summary'!$P35 -> 5168 | H35: 1710608
A36: 30 | C36: LaSalle | D36: =[1]Base!$C36 -> 2468 | E36: =[2]Base!$C36 -> 2504 | F36: 36 | G36: ='Per Pupil Summary'!$P36 -> 6848 | H36: 246528
A37: 31 | C37: Lincoln | D37: =[1]Base!$C37 -> 5821 | E37: =[2]Base!$C37 -> 5793 | F37: -28 | G37: ='Per Pupil Summary'!$P37 -> 5056 | H37: -141568
A38: 32 | C38: Livingston* | D38: =[1]Base!$C38 -> 25156 | E38: =[2]Base!$C38 -> 25567 | F38: 411 | G38: ='Per Pupil Summary'!$P38 -> 6469 | H38: 2658759
A39: 33 | C39: Madison | D39: =[1]Base!$C39 -> 1165 | E39: =[2]Base!$C39 -> 1119 | F39: =E39-D39 -> -46 | G39: ='Per Pupil Summary'!$P39 -> 6742 | H39: =ROUND(F39*G39,0) -> -310132
A40: 34 | C40: Morehouse | D40: =[1]Base!$C40 -> 3631 | E40: =[2]Base!$C40 -> 3526 | F40: -105 | G40: ='Per Pupil Summary'!$P40 -> 7133 | H40: -748965
A41: 35 | C41: Natchitoches | D41: =[1]Base!$C41 -> 5763 | E41: =[2]Base!$C41 -> 5643 | F41: -120 | G41: ='Per Pupil Summary'!$P41 -> 5609 | H41: -673080
A42: 36 | C42: Orleans* | D42: =[1]Base!$C42 -> 44750 | E42: =[2]Base!$C42 -> 45110 | F42: 360 | G42: ='Per Pupil Summary'!$P42 -> 4356 | H42: 1568160
A43: 37 | C43: Ouachita* | D43: =[1]Base!$C43 -> 18693 | E43: =[2]Base!$C43 -> 18590 | F43: -103 | G43: ='Per Pupil Summary'!$P43 -> 6468 | H43: -666204
A44: 38 | C44: Plaquemines | D44: =[1]Base!$C44 -> 3832 | E44: =[2]Base!$C44 -> 3845 | F44: 13 | G44: ='Per Pupil Summary'!$P44 -> 2810 | H44: 36530
A45: 39 | C45: Pointe Coupee | D45: =[1]Base!$C45 -> 2580 | E45: =[2]Base!$C45 -> 2606 | F45: 26 | G45: ='Per Pupil Summary'!$P45 -> 3755 | H45: 97630
A46: 40 | C46: Rapides | D46: =[1]Base!$C46 -> 21913 | E46: =[2]Base!$C46 -> 21769 | F46: -144 | G46: ='Per Pupil Summary'!$P46 -> 6119 | H46: -881136
A47: 41 | C47: Red River | D47: =[1]Base!$C47 -> 1374 | E47: =[2]Base!$C47 -> 1308 | F47: -66 | G47: ='Per Pupil Summary'!$P47 -> 3792 | H47: -250272
A48: 42 | C48: Richland | D48: =[1]Base!$C48 -> 2714 | E48: =[2]Base!$C48 -> 2711 | F48: -3 | G48: ='Per Pupil Summary'!$P48 -> 5582 | H48: -16746
A49: 43 | C49: Sabine | D49: =[1]Base!$C49 -> 4048 | E49: =[2]Base!$C49 -> 4033 | F49: -15 | G49: ='Per Pupil Summary'!$P49 -> 6744 | H49: -101160
A50: 44 | C50: St. Bernard* | D50: =[1]Base!$C50 -> 7368 | E50: =[2]Base!$C50 -> 7514 | F50: 146 | G50: ='Per Pupil Summary'!$P50 -> 5899 | H50: 861254
A51: 45 | C51: St. Charles* | D51: =[1]Base!$C51 -> 9318 | E51: =[2]Base!$C51 -> 9421 | F51: 103 | G51: ='Per Pupil Summary'!$P51 -> 3180 | H51: 327540
A52: 46 | C52: St. Helena* | D52: =[1]Base!$C52 -> 1164 | E52: =[2]Base!$C52 -> 1156 | F52: -8 | G52: ='Per Pupil Summary'!$P52 -> 8145 | H52: -65160
A53: 47 | C53: St. James | D53: =[1]Base!$C53 -> 3491 | E53: =[2]Base!$C53 -> 3451 | F53: -40 | G53: ='Per Pupil Summary'!$P53 -> 3405 | H53: -136200
A54: 48 | C54: St. John the Baptist* | D54: =[1]Base!$C54 -> 5754 | E54: =[2]Base!$C54 -> 5696 | F54: -58 | G54: ='Per Pupil Summary'!$P54 -> 5280 | H54: -306240
A55: 49 | C55: St. Landry | D55: =[1]Base!$C55 -> 12852 | E55: =[2]Base!$C55 -> 12530 | F55: -322 | G55: ='Per Pupil Summary'!$P55 -> 5940 | H55: -1912680
A56: 50 | C56: St. Martin | D56: =[1]Base!$C56 -> 7387 | E56: =[2]Base!$C56 -> 7329 | F56: -58 | G56: ='Per Pupil Summary'!$P56 -> 5825 | H56: -337850
A57: 51 | C57: St. Mary | D57: =[1]Base!$C57 -> 8235 | E57: =[2]Base!$C57 -> 8173 | F57: -62 | G57: ='Per Pupil Summary'!$P57 -> 5972 | H57: -370264
A58: 52 | C58: St. Tammany* | D58: =[1]Base!$C58 -> 37355 | E58: =[2]Base!$C58 -> 37682 | F58: 327 | G58: ='Per Pupil Summary'!$P58 -> 5841 | H58: 1910007
A59: 53 | C59: Tangipahoa* | D59: =[1]Base!$C59 -> 19230 | E59: =[2]Base!$C59 -> 19078 | F59: -152 | G59: ='Per Pupil Summary'!$P59 -> 5983 | H59: -909416
A60: 54 | C60: Tensas | D60: =[1]Base!$C60 -> 434 | E60: =[2]Base!$C60 -> 393 | F60: -41 | G60: ='Per Pupil Summary'!$P60 -> 6607 | H60: -270887
A61: 55 | C61: Terrebonne | D61: =[1]Base!$C61 -> 16556 | E61: =[2]Base!$C61 -> 16329 | F61: -227 | G61: ='Per Pupil Summary'!$P61 -> 5554 | H61: -1260758
A62: 56 | C62: Union | D62: =[1]Base!$C62 -> 1909 | E62: =[2]Base!$C62 -> 1912 | F62: 3 | G62: ='Per Pupil Summary'!$P62 -> 7077 | H62: 21231
A63: 57 | C63: Vermilion | D63: =[1]Base!$C63 -> 9186 | E63: =[2]Base!$C63 -> 9292 | F63: 106 | G63: ='Per Pupil Summary'!$P63 -> 6038 | H63: 640028
A64: 58 | C64: Vernon | D64: =[1]Base!$C64 -> 8029 | E64: =[2]Base!$C64 -> 8029 | F64: 0 | G64: ='Per Pupil Summary'!$P64 -> 6732 | H64: 0
A65: 59 | C65: Washington* | D65: =[1]Base!$C65 -> 4995 | E65: =[2]Base!$C65 -> 4883 | F65: -112 | G65: ='Per Pupil Summary'!$P65 -> 7322 | H65: -820064
A66: 60 | C66: Webster | D66: =[1]Base!$C66 -> 5927 | E66: =[2]Base!$C66 -> 5797 | F66: -130 | G66: ='Per Pupil Summary'!$P66 -> 6225 | H66: -809250
A67: 61 | C67: West Baton Rouge* | D67: =[1]Base!$C67 -> 3531 | E67: =[2]Base!$C67 -> 3662 | F67: 131 | G67: ='Per Pupil Summary'!$P67 -> 3777 | H67: 494787
A68: 62 | C68: West Carroll | D68: =[1]Base!$C68 -> 1959 | E68: =[2]Base!$C68 -> 1884 | F68: -75 | G68: ='Per Pupil Summary'!$P68 -> 6802 | H68: -510150
A69: 63 | C69: West Feliciana | D69: =[1]Base!$C69 -> 2103 | E69: =[2]Base!$C69 -> 2115 | F69: 12 | G69: ='Per Pupil Summary'!$P69 -> 4675 | H69: 56100
A70: 64 | C70: Winn | D70: =[1]Base!$C70 -> 2089 | E70: =[2]Base!$C70 -> 2040 | F70: -49 | G70: ='Per Pupil Summary'!$P70 -> 7122 | H70: -348978
A71: 65 | C71: City of Monroe* | D71: =[1]Base!$C71 -> 7932 | E71: =[2]Base!$C71 -> 7832 | F71: =E71-D71 -> -100 | G71: ='Per Pupil Summary'!$P71 -> 5807 | H71: =ROUND(F71*G71,0) -> -580700
A72: 66 | C72: City of Bogalusa | D72: =[1]Base!$C72 -> 1877 | E72: =[2]Base!$C72 -> 1838 | F72: -39 | G72: ='Per Pupil Summary'!$P72 -> 7548 | H72: -294372
A73: 67 | C73: Zachary Community | D73: =[1]Base!$C73 -> 5350 | E73: =[2]Base!$C73 -> 5372 | F73: 22 | G73: ='Per Pupil Summary'!$P73 -> 5973 | H73: 131406
A74: 68 | C74: City of Baker* | D74: =[1]Base!$C74 -> 1272 | E74: =[2]Base!$C74 -> 1242 | F74: -30 | G74: ='Per Pupil Summary'!$P74 -> 7659 | H74: -229770
A75: 69 | C75: Central Community | D75: =[1]Base!$C75 -> 4652 | E75: =[2]Base!$C75 -> 4708 | F75: 56 | G75: ='Per Pupil Summary'!$P75 -> 6780 | H75: 379680
C76: Total City/Parish | D76: =SUM(D7:D75) -> 658791 | E76: =SUM(E7:E75) -> 659831 | F76: =SUM(F7:F75) -> 1040 | H76: =SUM(H7:H75) -> 2180032
A78: 318001 | C78: LSU Lab School | D78: =[1]Base!$BD$76 -> 1427 | E78: =[2]Base!$BD$76 -> 1416 | F78: =E78-D78 -> -11 | G78: 5267.802948 | H78: =ROUND(F78*G78,0) -> -57946
A79: 319001 | C79: Southern Lab School | D79: =[1]Base!$BE$76 -> 557 | E79: =[2]Base!$BE$76 -> 569 | F79: =E79-D79 -> 12 | G79: 5361.732948 | H79: =ROUND(F79*G79,0) -> 64341
A80: 302006 | C80: LA School for Math, Science and the Arts | D80: =Oct_LSMSA!C76 -> 345 | E80: =Oct_LSMSA!D76 -> 358 | F80: =E80-D80 -> 13 | H80: =Oct_LSMSA!G76 -> 117421
A81: 334001 | C81: New Orleans Center for Creative Arts | D81: =Oct_NOCCA!C76 -> 236 | E81: =Oct_NOCCA!D76 -> 234 | F81: =E81-D81 -> -2 | H81: =Oct_NOCCA!G76 -> -18460
A82: 3C1001 | C82: Thrive | D82: =Oct_Thrive!C76 -> 175 | E82: =Oct_Thrive!D76 -> 173 | F82: =E82-D82 -> -2 | H82: =Oct_Thrive!G76 -> -16656
C84: Total Lab & State Approved Schools | D84: =SUM(D78:D83) -> 2740 | E84: =SUM(E78:E83) -> 2750 | F84: =SUM(F78:F83) -> 10 | H84: =SUM(H78:H83) -> 88700
A86: 321001 | C86: New Vision Learning | D86: =VLOOKUP($A86,Oct_Legacy!$A$7:$Y$13,3,FALSE) -> 253 | E86: =VLOOKUP($A86,Oct_Legacy!$A$7:$Y$13,4,FALSE) -> 269 | F86: =E86-D86 -> 16 | H86: =VLOOKUP($A86,Oct_Legacy!$A$7:$Y$13,25,FALSE) -> 185765
A87: 329001 | C87: Glencoe Charter School | D87: =VLOOKUP($A87,Oct_Legacy!$A$7:$Y$13,3,FALSE) -> 329 | E87: =VLOOKUP($A87,Oct_Legacy!$A$7:$Y$13,4,FALSE) -> 348 | F87: =E87-D87 -> 19 | H87: =VLOOKUP($A87,Oct_Legacy!$A$7:$Y$13,25,FALSE) -> 194825
A88: 331001 | C88: International School of LA | D88: =VLOOKUP($A88,Oct_Legacy!$A$7:$Y$13,3,FALSE) -> 1387 | E88: =VLOOKUP($A88,Oct_Legacy!$A$7:$Y$13,4,FALSE) -> 1401 | F88: 14 | H88: =VLOOKUP($A88,Oct_Legacy!$A$7:$Y$13,25,FALSE) -> 139296
A89: 333001 | C89: Avoyelles Public Charter School | D89: =VLOOKUP($A89,Oct_Legacy!$A$7:$Y$13,3,FALSE) -> 718 | E89: =VLOOKUP($A89,Oct_Legacy!$A$7:$Y$13,4,FALSE) -> 737 | F89: 19 | H89: =VLOOKUP($A89,Oct_Legacy!$A$7:$Y$13,25,FALSE) -> 188321
A90: 336001 | C90: Delhi Charter School | D90: =VLOOKUP($A90,Oct_Legacy!$A$7:$Y$13,3,FALSE) -> 870 | E90: =VLOOKUP($A90,Oct_Legacy!$A$7:$Y$13,4,FALSE) -> 846 | F90: -24 | H90: =VLOOKUP($A90,Oct_Legacy!$A$7:$Y$13,25,FALSE) -> -146984
A91: 337001 | C91: Belle Chasse Academy | D91: =VLOOKUP($A91,Oct_Legacy!$A$7:$Y$13,3,FALSE) -> 960 | E91: =VLOOKUP($A91,Oct_Legacy!$A$7:$Y$13,4,FALSE) -> 912 | F91: -48 | H91: =VLOOKUP($A91,Oct_Legacy!$A$7:$Y$13,25,FALSE) -> -604420
A92: 340001 | C92: The MAX Charter School | D92: =VLOOKUP($A92,Oct_Legacy!$A$7:$Y$13,3,FALSE) -> 120 | E92: =VLOOKUP($A92,Oct_Legacy!$A$7:$Y$13,4,FALSE) -> 120 | F92: 0 | H92: =VLOOKUP($A92,Oct_Legacy!$A$7:$Y$13,25,FALSE) -> -2375
C93: Total Legacy Type 2 Charter Schools | D93: =SUM(D86:D92) -> 4637 | E93: =SUM(E86:E92) -> 4633 | F93: =SUM(F86:F92) -> -4 | H93: =SUM(H86:H92) -> -45572
A95: 341001 | C95: D'Arbonne Woods | D95: =VLOOKUP($A95,'Oct_New Type 2'!$A$7:$X$39,4,FALSE) -> 948 | E95: =VLOOKUP($A95,'Oct_New Type 2'!$A$7:$X$39,5,FALSE) -> 977 | F95: =E95-D95 -> 29 | H95: =VLOOKUP($A95,'Oct_New Type 2'!$A$7:$X$39,24,FALSE) -> 260791
A96: 343001 | C96: Madison Prep | D96: =VLOOKUP($A96,'Oct_New Type 2'!$A$7:$X$39,4,FALSE) -> 552 | E96: =VLOOKUP($A96,'Oct_New Type 2'!$A$7:$X$39,5,FALSE) -> 570 | F96: =E96-D96 -> 18 | H96: =VLOOKUP($A96,'Oct_New Type 2'!$A$7:$X$39,24,FALSE) -> 62625
A97: 344001 | C97: Int'l High School of N. O. | D97: =VLOOKUP($A97,'Oct_New Type 2'!$A$7:$X$39,4,FALSE) -> 508 | E97: =VLOOKUP($A97,'Oct_New Type 2'!$A$7:$X$39,5,FALSE) -> 456 | F97: -52 | H97: =VLOOKUP($A97,'Oct_New Type 2'!$A$7:$X$39,24,FALSE) -> -230479
A98: 345001 | C98: University View Academy | D98: =VLOOKUP($A98,'Oct_New Type 2'!$A$7:$X$39,4,FALSE) -> 3000 | E98: =VLOOKUP($A98,'Oct_New Type 2'!$A$7:$X$39,5,FALSE) -> 3191 | F98: 191 | H98: =VLOOKUP($A98,'Oct_New Type 2'!$A$7:$X$39,24,FALSE) -> 1076501
A99: 346001 | C99: Lake Charles Charter Academy | D99: =VLOOKUP($A99,'Oct_New Type 2'!$A$7:$X$39,4,FALSE) -> 920 | E99: =VLOOKUP($A99,'Oct_New Type 2'!$A$7:$X$39,5,FALSE) -> 941 | F99: 21 | H99: =VLOOKUP($A99,'Oct_New Type 2'!$A$7:$X$39,24,FALSE) -> 63835
A100: 347001 | C100: Lycee Francois de la Nouvelle Orleans | D100: =VLOOKUP($A100,'Oct_New Type 2'!$A$7:$X$39,4,FALSE) -> 852 | E100: =VLOOKUP($A100,'Oct_New Type 2'!$A$7:$X$39,5,FALSE) -> 955 | F100: 103 | H100: =VLOOKUP($A100,'Oct_New Type 2'!$A$7:$X$39,24,FALSE) -> 455040
A101: 348001 | C101: New Orleans Military/Maritime Acdmy | D101: =VLOOKUP($A101,'Oct_New Type 2'!$A$7:$X$39,4,FALSE) -> 870 | E101: =VLOOKUP($A101,'Oct_New Type 2'!$A$7:$X$39,5,FALSE) -> 939 | F101: 69 | H101: =VLOOKUP($A101,'Oct_New Type 2'!$A$7:$X$39,24,FALSE) -> 376432
A102: W18001 | C102: Noble Minds | D102: =VLOOKUP($A102,'Oct_New Type 2'!$A$7:$X$39,4,FALSE) -> 67 | E102: =VLOOKUP($A102,'Oct_New Type 2'!$A$7:$X$39,5,FALSE) -> 103 | F102: 36 | H102: =VLOOKUP($A102,'Oct_New Type 2'!$A$7:$X$39,24,FALSE) -> 128668
A103: W1A001 | C103: JCFA - East | D103: =VLOOKUP($A103,'Oct_New Type 2'!$A$7:$X$39,4,FALSE) -> 264 | E103: =VLOOKUP($A103,'Oct_New Type 2'!$A$7:$X$39,5,FALSE) -> 229 | F103: -35 | H103: =VLOOKUP($A103,'Oct_New Type 2'!$A$7:$X$39,24,FALSE) -> -160452
A104: W1B001 | C104: Advantage Charter Academy | D104: =VLOOKUP($A104,'Oct_New Type 2'!$A$7:$X$39,4,FALSE) -> 602 | E104: =VLOOKUP($A104,'Oct_New Type 2'!$A$7:$X$39,5,FALSE) -> 491 | F104: -111 | H104: =VLOOKUP($A104,'Oct_New Type 2'!$A$7:$X$39,24,FALSE) -> -618536
A105: W1D001 | C105: JCFA - Lafayette | D105: =VLOOKUP($A105,'Oct_New Type 2'!$A$7:$X$39,4,FALSE) -> 64 | E105: =VLOOKUP($A105,'Oct_New Type 2'!$A$7:$X$39,5,FALSE) -> 68 | F105: 4 | H105: =VLOOKUP($A105,'Oct_New Type 2'!$A$7:$X$39,24,FALSE) -> 8634
A106: W2B001 | C106: Willow Charter Academy | D106: =VLOOKUP($A106,'Oct_New Type 2'!$A$7:$X$39,4,FALSE) -> 599 | E106: =VLOOKUP($A106,'Oct_New Type 2'!$A$7:$X$39,5,FALSE) -> 612 | F106: 13 | H106: =VLOOKUP($A106,'Oct_New Type 2'!$A$7:$X$39,24,FALSE) -> 62651
A107: W33001 | C107: Lincoln Prep School | D107: =VLOOKUP($A107,'Oct_New Type 2'!$A$7:$X$39,4,FALSE) -> 456 | E107: =VLOOKUP($A107,'Oct_New Type 2'!$A$7:$X$39,5,FALSE) -> 477 | F107: 21 | H107: =VLOOKUP($A107,'Oct_New Type 2'!$A$7:$X$39,24,FALSE) -> 120053
A108: W37001 | C108: Greater Grace Charter Academy | D108: =VLOOKUP($A108,'Oct_New Type 2'!$A$7:$X$39,4,FALSE) -> 79 | E108: =VLOOKUP($A108,'Oct_New Type 2'!$A$7:$X$39,5,FALSE) -> 76 | F108: -3 | H108: =VLOOKUP($A108,'Oct_New Type 2'!$A$7:$X$39,24,FALSE) -> 8353
A109: W3B001 | C109: Iberville Charter Academy | D109: =VLOOKUP($A109,'Oct_New Type 2'!$A$7:$X$39,4,FALSE) -> 270 | E109: =VLOOKUP($A109,'Oct_New Type 2'!$A$7:$X$39,5,FALSE) -> 392 | F109: 122 | H109: =VLOOKUP($A109,'Oct_New Type 2'!$A$7:$X$39,24,FALSE) -> 617601
A110: W4A001 | C110: Delta Charter School | D110: =VLOOKUP($A110,'Oct_New Type 2'!$A$7:$X$39,4,FALSE) -> 482 | E110: =VLOOKUP($A110,'Oct_New Type 2'!$A$7:$X$39,5,FALSE) -> 474 | F110: -8 | H110: =VLOOKUP($A110,'Oct_New Type 2'!$A$7:$X$39,24,FALSE) -> -19551
A111: W4B001 | C111: Lake Charles College Prep | D111: =VLOOKUP($A111,'Oct_New Type 2'!$A$7:$X$39,4,FALSE) -> 453 | E111: =VLOOKUP($A111,'Oct_New Type 2'!$A$7:$X$39,5,FALSE) -> 504 | F111: 51 | H111: =VLOOKUP($A111,'Oct_New Type 2'!$A$7:$X$39,24,FALSE) -> 188555
A112: W5B001 | C112: Northeast Claiborne Charter | D112: =VLOOKUP($A112,'Oct_New Type 2'!$A$7:$X$39,4,FALSE) -> 180 | E112: =VLOOKUP($A112,'Oct_New Type 2'!$A$7:$X$39,5,FALSE) -> 180 | F112: 0 | H112: =VLOOKUP($A112,'Oct_New Type 2'!$A$7:$X$39,24,FALSE) -> -23073
A113: W6B001 | C113: Acadiana Renaissance | D113: =VLOOKUP($A113,'Oct_New Type 2'!$A$7:$X$39,4,FALSE) -> 892 | E113: =VLOOKUP($A113,'Oct_New Type 2'!$A$7:$X$39,5,FALSE) -> 896 | F113: 4 | H113: =VLOOKUP($A113,'Oct_New Type 2'!$A$7:$X$39,24,FALSE) -> 20863
A114: W7A001 | C114: Louisiana Key Academy | D114: =VLOOKUP($A114,'Oct_New Type 2'!$A$7:$X$39,4,FALSE) -> 348 | E114: =VLOOKUP($A114,'Oct_New Type 2'!$A$7:$X$39,5,FALSE) -> 380 | F114: 32 | H114: =VLOOKUP($A114,'Oct_New Type 2'!$A$7:$X$39,24,FALSE) -> 175960
A115: W7B001 | C115: Lafayette Renaissance | D115: =VLOOKUP($A115,'Oct_New Type 2'!$A$7:$X$39,4,FALSE) -> 906 | E115: =VLOOKUP($A115,'Oct_New Type 2'!$A$7:$X$39,5,FALSE) -> 979 | F115: 73 | H115: =VLOOKUP($A115,'Oct_New Type 2'!$A$7:$X$39,24,FALSE) -> 323099
A116: W8A001 | C116: Impact Charter | D116: =VLOOKUP($A116,'Oct_New Type 2'!$A$7:$X$39,4,FALSE) -> 337 | E116: =VLOOKUP($A116,'Oct_New Type 2'!$A$7:$X$39,5,FALSE) -> 394 | F116: 57 | H116: =VLOOKUP($A116,'Oct_New Type 2'!$A$7:$X$39,24,FALSE) -> 296201
A117: WAG001 | C117: Louisiana Virtual Charter Academy | D117: =VLOOKUP($A117,'Oct_New Type 2'!$A$7:$X$39,4,FALSE) -> 1911 | E117: =VLOOKUP($A117,'Oct_New Type 2'!$A$7:$X$39,5,FALSE) -> 1920 | F117: 9 | H117: =VLOOKUP($A117,'Oct_New Type 2'!$A$7:$X$39,24,FALSE) -> 63350
A118: WAK001 | C118: Southwest LA Charter School | D118: =VLOOKUP($A118,'Oct_New Type 2'!$A$7:$X$39,4,FALSE) -> 661 | E118: =VLOOKUP($A118,'Oct_New Type 2'!$A$7:$X$39,5,FALSE) -> 694 | F118: 33 | H118: =VLOOKUP($A118,'Oct_New Type 2'!$A$7:$X$39,24,FALSE) -> 122705
A119: WAL001 | C119: J. S. Clark Leadership Academy | D119: =VLOOKUP($A119,'Oct_New Type 2'!$A$7:$X$39,4,FALSE) -> 224 | E119: =VLOOKUP($A119,'Oct_New Type 2'!$A$7:$X$39,5,FALSE) -> 249 | F119: 25 | H119: =VLOOKUP($A119,'Oct_New Type 2'!$A$7:$X$39,24,FALSE) -> 120941
A120: WAQ001 | C120: Baton Rouge University Prep | D120: =VLOOKUP($A120,'Oct_New Type 2'!$A$7:$X$39,4,FALSE) -> 306 | E120: =VLOOKUP($A120,'Oct_New Type 2'!$A$7:$X$39,5,FALSE) -> 374 | F120: 68 | H120: =VLOOKUP($A120,'Oct_New Type 2'!$A$7:$X$39,24,FALSE) -> 326943
A121: WAU001 | C121: GEO Prep Academy | D121: =VLOOKUP($A121,'Oct_New Type 2'!$A$7:$X$39,4,FALSE) -> 513 | E121: =VLOOKUP($A121,'Oct_New Type 2'!$A$7:$X$39,5,FALSE) -> 677 | F121: 164 | H121: =VLOOKUP($A121,'Oct_New Type 2'!$A$7:$X$39,24,FALSE) -> 665163
A122: WBQ001 | C122: New Harmony High School | D122: =VLOOKUP($A122,'Oct_New Type 2'!$A$7:$X$39,4,FALSE) -> 45 | E122: =VLOOKUP($A122,'Oct_New Type 2'!$A$7:$X$39,5,FALSE) -> 102 | F122: 57 | H122: =VLOOKUP($A122,'Oct_New Type 2'!$A$7:$X$39,24,FALSE) -> 250363
A123: WBR001 | C123: Athlos Academy | D123: =VLOOKUP($A123,'Oct_New Type 2'!$A$7:$X$39,4,FALSE) -> 974 | E123: =VLOOKUP($A123,'Oct_New Type 2'!$A$7:$X$39,5,FALSE) -> 1131 | F123: 157 | H123: =VLOOKUP($A123,'Oct_New Type 2'!$A$7:$X$39,24,FALSE) -> 705204
A124: WJ5001 | C124: Collegiate Academy (EBR) | D124: =VLOOKUP($A124,'Oct_New Type 2'!$A$7:$X$39,4,FALSE) -> 251 | E124: =VLOOKUP($A124,'Oct_New Type 2'!$A$7:$X$39,5,FALSE) -> 419 | F124: 168 | H124: =VLOOKUP($A124,'Oct_New Type 2'!$A$7:$X$39,24,FALSE) -> 747070
A125: WZ8001 | C125: GEO Prep Mid-City of Greater B. R. | D125: =VLOOKUP($A125,'Oct_New Type 2'!$A$7:$X$39,4,FALSE) -> 636 | E125: =VLOOKUP($A125,'Oct_New Type 2'!$A$7:$X$39,5,FALSE) -> 715 | F125: 79 | H125: =VLOOKUP($A125,'Oct_New Type 2'!$A$7:$X$39,24,FALSE) -> 344078
A126: WBX001 | C126: GEO Next Generation HS (First Year) | D126: =VLOOKUP($A126,'Oct_New Type 2'!$A$7:$X$39,4,FALSE) -> 0 | E126: =VLOOKUP($A126,'Oct_New Type 2'!$A$7:$X$39,5,FALSE) -> 96 | F126: =E126-D126 -> 96 | H126: =VLOOKUP($A126,'Oct_New Type 2'!$A$7:$X$39,24,FALSE) -> 392069
A127: WBY001 | C127: Red River Charter Academy (First Year) | D127: =VLOOKUP($A127,'Oct_New Type 2'!$A$7:$X$39,4,FALSE) -> 0 | E127: =VLOOKUP($A127,'Oct_New Type 2'!$A$7:$X$39,5,FALSE) -> 196 | F127: 196 | H127: =VLOOKUP($A127,'Oct_New Type 2'!$A$7:$X$39,24,FALSE) -> 1059222
C128: Total New Type 2 Charter Schools | D128: =SUM(D95:D127) -> 19170 | E128: =SUM(E95:E127) -> 20857 | F128: =SUM(F95:F127) -> 1687 | H128: =SUM(H95:H127) -> 7990879
A130: 396211 | C130: Linwood Public Charter (RSD Operated) | D130: =VLOOKUP($A130,'[1]Type 5-RSD'!$A$2:$F$10,6,FALSE) -> 960 | E130: =VLOOKUP($A130,'[2]Type 5-RSD'!$A$2:$F$10,6,FALSE) -> 980 | F130: =E130-D130 -> 20 | G130: 5537.159382 | H130: =ROUND($F130*G130,0) -> 110743
A131: WA7001 | C131: Capitol High School (RSD Operated) | D131: =VLOOKUP($A131,'[1]Type 5-RSD'!$A$2:$F$10,6,FALSE) -> 382 | E131: =VLOOKUP($A131,'[2]Type 5-RSD'!$A$2:$F$10,6,FALSE) -> 354 | F131: -28 | G131: 4216.700896 | H131: =ROUND($F131*G131,0) -> -118068
A132: WAO001 | C132: Redesign Dalton Charter School | D132: =VLOOKUP($A132,'[1]Type 5-RSD'!$A$2:$F$10,6,FALSE) -> 305 | E132: =VLOOKUP($A132,'[2]Type 5-RSD'!$A$2:$F$10,6,FALSE) -> 275 | F132: -30 | G132: 4216.700896 | H132: -126501
A133: WAP001 | C133: Redesign Lanier Charter School | D133: =VLOOKUP($A133,'[1]Type 5-RSD'!$A$2:$F$10,6,FALSE) -> 260 | E133: =VLOOKUP($A133,'[2]Type 5-RSD'!$A$2:$F$10,6,FALSE) -> 265 | F133: 5 | G133: 4216.700896 | H133: 21084
A134: WAV001 | C134: Democracy Prep | D134: =VLOOKUP($A134,'[1]Type 5-RSD'!$A$2:$F$10,6,FALSE) -> 522 | E134: =VLOOKUP($A134,'[2]Type 5-RSD'!$A$2:$F$10,6,FALSE) -> 547 | F134: 25 | G134: 4216.700896 | H134: 105418
A135: WB2001 | C135: Kenilworth Science and Tech | D135: =VLOOKUP($A135,'[1]Type 5-RSD'!$A$2:$F$10,6,FALSE) -> 381 | E135: =VLOOKUP($A135,'[2]Type 5-RSD'!$A$2:$F$10,6,FALSE) -> 402 | F135: 21 | G135: 4216.700896 | H135: 88551
A136: WYA001 | C136: Redesign Glen Oaks (First Year) | D136: 0 | E136: =VLOOKUP($A136,'[2]Type 5-RSD'!$A$2:$F$10,6,FALSE) -> 280 | F136: 280 | G136: 4216.700896 | H136: 1180676
C137: Placeholder for Closed LEAs | D137: 317 | E137: 0 | F137: -317 | G137: 4216.700896 | H137: -1336694
C138: Total Type 5 Charters - LA | D138: =SUM(D130:D137) -> 3127 | E138: =SUM(E130:E137) -> 3103 | F138: =SUM(F130:F137) -> -24 | H138: =SUM(H130:H137) -> -74791
C140: Total Statewide | D140: =D138+D128+D93+D84+D76 -> 688465 | E140: =E138+E128+E93+E84+E76 -> 691174 | F140: 2709 | H140: =H138+H128+H93+H84+H76 -> 10139248

Sheet Oct_Legacy
A1: Table 5A2 Legacy Type 2 Charter Schools | C1: Feb. 1, 2019 MFP Funded Membership (Per SIS) | D1: Oct. 1, 2019 MFP Funded Membership (Per SIS) | E1: Change in MFP Funded Membership | F1: Unweighted Legacy Type 2 Charter School (Includes Final Local Revenue Representation) | J1: Economically Disadvantaged | O1: Students with Disabilities | T1: Gifted & Talented | Y1: Change in Total MFP State Cost Allocation (Levels 1, 2, & 3)
F2: Per Pupil Without Continuation of Prior Year Pay Raises | G2: Change in State Cost Allocation | H2: Continuation of Prior Year Pay Raises Per Pupil | I2: Change in State Cost Allocation | J2: 2/1/19 Student Count | K2: 10/1/19 Student Count | L2: Change in Student Count | M2: Per Pupil | N2: Change in State Cost Allocation | O2: 2/1/19 Student Count | P2: 10/1/19 Student Count | Q2: Change in Student Count | R2: Per Pupil | S2: Change in State Cost Allocation | T2: 2/1/19 Student Count | U2: 10/1/19 Student Count | V2: Change in Student Count | W2: Per Pupil | X2: Change in State Cost Allocation
C4: 1 | D4: =C4+1 -> 2 | E4: 3 | F4: 4 | G4: 5 | H4: 6 | I4: 7 | J4: 8 | K4: 9 | L4: 10 | M4: 11 | N4: 12 | O4: 13 | P4: 14 | Q4: 15 | R4: 16 | S4: 17 | T4: 18 | U4: 19 | V4: 20 | W4: 21 | X4: 22 | Y4: 23
C6: Link in File | E6: Link in File | G6: Link in File | H6: Link in File | J6: Link in File | K6: Link in File | M6: Link in File | N6: Link in File | P6: Link in File | Q6: Link in File | S6: Link in File | T6: Link in File | U6: Link in File | V6: Link in File | W6: Link in File | X6: Link in File | Y6: Link in File
A7: 321001 | B7: New Vision Learning | C7: 253 | D7: 269 | E7: 16 | G7: 131897.5711 | I7: 11460.8 | J7: 212 | K7: 226 | L7: 14 | N7: 10395.0003 | O7: 25 | P7: 32 | Q7: 7 | S7: 32011.45398 | T7: 0 | U7: 0 | V7: 0 | X7: 0 | Y7: 185765
A8: 329001 | B8: Glencoe Charter School | C8: 329 | D8: 348 | E8: 19 | G8: 156594.4203 | I8: 11369.6 | J8: 248 | K8: 268 | L8: 20 | N8: 12413.21617 | O8: 40 | P8: 44 | Q8: 4 | S8: 17782.36348 | T8: 2 | U8: 0 | V8: -2 | X8: -3334.849465 | Y8: 194825
A9: 331001 | B9: International School of LA | C9: 1387 | D9: 1401 | E9: 14 | G9: 142241.1511 | I9: 10007.34 | J9: 891 | K9: 854 | L9: -37 | N9: -17380.49336 | O9: 78 | P9: 80 | Q9: 2 | S9: 4428.991645 | T9: 0 | U9: 0 | V9: 0 | X9: 0 | Y9: 139296
A10: 333001 | B10: Avoyelles Public Charter | C10: 718 | D10: 737 | E10: 19 | G10: 120990.8742 | I10: 10186.28 | J10: 402 | K10: 435 | L10: 33 | N10: 23359.34639 | O10: 34 | P10: 41 | Q10: 7 | S10: 33784.17866 | T10: 0 | U10: 0 | V10: 0 | X10: 0 | Y10: 188321
A11: 336001 | B11: Delhi Charter School | C11: 870 | D11: 846 | E11: -24 | G11: -181338.3905 | I11: -12648.48 | J11: 656 | K11: 657 | L11: 1 | N11: -396.3513992 | O11: 65 | P11: 75 | Q11: 10 | S11: 42340.21407 | T11: 7 | U11: 10 | V11: 3 | X11: 5058.476177 | Y11: -146984
A12: 337001 | B12: Belle Chasse Academy | C12: 960 | D12: 912 | E12: -48 | G12: -551166.8544 | I12: -37867.2 | J12: 420 | K12: 404 | L12: -16 | N12: -3539.567439 | O12: 102 | P12: 92 | Q12: -10 | S12: 3968.001191 | T12: 52 | U12: 36 | V12: -16 | X12: -15814.52425 | Y12: -604420
A13: 340001 | B13: The MAX | C13: 120 | D13: 120 | E13: 0 | G13: -21216.27411 | I13: 0 | J13: 52 | K13: 45 | L13: -7 | N13: -3890.30942 | O13: 23 | P13: 28 | Q13: 5 | S13: 22731.97297 | T13: 0 | U13: 0 | V13: 0 | X13: 0 | Y13: -2375
A14: State Total | C14: =SUM(C7:C13) -> 4637 | D14: =SUM(D7:D13) -> 4633 | E14: =SUM(E7:E13) -> -4 | G14: =SUM(G7:G13) -> -201997.5024 | I14: =SUM(I7:I13) -> -7491.66 | J14: =SUM(J7:J13) -> 2881 | K14: =SUM(K7:K13) -> 2889 | L14: =SUM(L7:L13) -> 8 | N14: =SUM(N7:N13) -> 20960.84124 | O14: =SUM(O7:O13) -> 367 | P14: =SUM(P7:P13) -> 392 | Q14: =SUM(Q7:Q13) -> 25 | S14: =SUM(S7:S13) -> 157047.176 | T14: =SUM(T7:T13) -> 61 | U14: =SUM(U7:U13) -> 46 | V14: =SUM(V7:V13) -> -15 | X14: =SUM(X7:X13) -> -14090.89753 | Y14: =SUM(Y7:Y13) -> -45572

Sheet Oct_NOCCA
A1: Table 5A4 New Orleans Center for Creative Arts (NOCCA) (Site Code 334001) | C1: MFP State Cost Allocation
C2: Feb. 1, 2019 MFP Funded Membership (Per SIS) | D2: Oct. 1, 2019 MFP Funded Membership (Per SIS) | E2: Change in MFP Funded Membership | F2: Total State Cost & Local Cost Allocation (With Continuation of Prior Year Pay Raises) | G2: Change in Total MFP Cost Allocation
C4: 1 | D4: =C4+1 -> 2 | E4: =D4+1 -> 3 | F4: =E4+1 -> 4 | G4: =F4+1 -> 5
C6: Link in File | D6: Link in File | E6: Formula | F6: Value | G6: Formula
A7: 1 | B7: Acadia | C7: =[1]Base!$BG7 -> 0 | D7: =[2]Base!$BG7 -> 0 | E7: =D7-C7 -> 0 | F7: ='Per Pupil Summary'!$S7 -> 8365.01413 | G7: =ROUND(E7*F7,0) -> 0
A8: 2 | B8: Allen | C8: =[1]Base!$BG8 -> 0 | D8: =[2]Base!$BG8 -> 0 | E8: 0 | F8: ='Per Pupil Summary'!$S8 -> 10325.95402 | G8: 0
A9: 3 | B9: Ascension | C9: =[1]Base!$BG9 -> 0 | D9: =[2]Base!$BG9 -> 0 | E9: 0 | F9: ='Per Pupil Summary'!$S9 -> 8485.41841 | G9: 0
A10: 4 | B10: Assumption | C10: =[1]Base!$BG10 -> 0 | D10: =[2]Base!$BG10 -> 0 | E10: 0 | F10: ='Per Pupil Summary'!$S10 -> 10279.04041 | G10: 0
A11: 5 | B11: Avoyelles | C11: =[1]Base!$BG11 -> 0 | D11: =[2]Base!$BG11 -> 0 | E11: 0 | F11: ='Per Pupil Summary'!$S11 -> 8450.043222 | G11: 0
A12: 6 | B12: Beauregard | C12: =[1]Base!$BG12 -> 0 | D12: =[2]Base!$BG12 -> 0 | E12: 0 | F12: ='Per Pupil Summary'!$S12 -> 9662.443793 | G12: 0
A13: 7 | B13: Bienville | C13: =[1]Base!$BG13 -> 0 | D13: =[2]Base!$BG13 -> 0 | E13: 0 | F13: ='Per Pupil Summary'!$S13 -> 9387.162109 | G13: 0
A14: 8 | B14: Bossier | C14: =[1]Base!$BG14 -> 0 | D14: =[2]Base!$BG14 -> 0 | E14: 0 | F14: ='Per Pupil Summary'!$S14 -> 9348.415699 | G14: 0
A15: 9 | B15: Caddo | C15: =[1]Base!$BG15 -> 0 | D15: =[2]Base!$BG15 -> 0 | E15: 0 | F15: ='Per Pupil Summary'!$S15 -> 9160.599382 | G15: 0
A16: 10 | B16: Calcasieu | C16: =[1]Base!$BG16 -> 0 | D16: =[2]Base!$BG16 -> 0 | E16: 0 | F16: ='Per Pupil Summary'!$S16 -> 8762.610423 | G16: 0
A17: 11 | B17: Caldwell | C17: =[1]Base!$BG17 -> 0 | D17: =[2]Base!$BG17 -> 0 | E17: 0 | F17: ='Per Pupil Summary'!$S17 -> 11324.38876 | G17: 0
A18: 12 | B18: Cameron | C18: =[1]Base!$BG18 -> 0 | D18: =[2]Base!$BG18 -> 0 | E18: 0 | F18: ='Per Pupil Summary'!$S18 -> 9345.320646 | G18: 0
A19: 13 | B19: Catahoula | C19: =[1]Base!$BG19 -> 0 | D19: =[2]Base!$BG19 -> 0 | E19: 0 | F19: ='Per Pupil Summary'!$S19 -> 10331.28708 | G19: 0
A20: 14 | B20: Claiborne | C20: =[1]Base!$BG20 -> 0 | D20: =[2]Base!$BG20 -> 0 | E20: 0 | F20: ='Per Pupil Summary'!$S20 -> 10630.26718 | G20: 0
A21: 15 | B21: Concordia | C21: =[1]Base!$BG21 -> 0 | D21: =[2]Base!$BG21 -> 0 | E21: 0 | F21: ='Per Pupil Summary'!$S21 -> 9877.11583 | G21: 0
A22: 16 | B22: DeSoto | C22: =[1]Base!$BG22 -> 0 | D22: =[2]Base!$BG22 -> 0 | E22: 0 | F22: ='Per Pupil Summary'!$S22 -> 8538.810933 | G22: 0
A23: 17 | B23: East Baton Rouge | C23: =[1]Base!$BG23 -> 1 | D23: =[2]Base!$BG23 -> 0 | E23: -1 | F23: ='Per Pupil Summary'!$S23 -> 8952.180896 | G23: -8952
A24: 18 | B24: East Carroll | C24: =[1]Base!$BG24 -> 0 | D24: =[2]Base!$BG24 -> 0 | E24: 0 | F24: ='Per Pupil Summary'!$S24 -> 10864.26788 | G24: 0
A25: 19 | B25: East Feliciana | C25: =[1]Base!$BG25 -> 0 | D25: =[2]Base!$BG25 -> 0 | E25: 0 | F25: ='Per Pupil Summary'!$S25 -> 9549.910844 | G25: 0
A26: 20 | B26: Evangeline | C26: =[1]Base!$BG26 -> 0 | D26: =[2]Base!$BG26 -> 0 | E26: 0 | F26: ='Per Pupil Summary'!$S26 -> 8990.389759 | G26: 0
A27: 21 | B27: Franklin | C27: =[1]Base!$BG27 -> 0 | D27: =[2]Base!$BG27 -> 0 | E27: 0 | F27: ='Per Pupil Summary'!$S27 -> 9624.106806 | G27: 0
A28: 22 | B28: Grant | C28: =[1]Base!$BG28 -> 0 | D28: =[2]Base!$BG28 -> 0 | E28: 0 | F28: ='Per Pupil Summary'!$S28 -> 9463.038525 | G28: 0
A29: 23 | B29: Iberia | C29: =[1]Base!$BG29 -> 0 | D29: =[2]Base!$BG29 -> 0 | E29: 0 | F29: ='Per Pupil Summary'!$S29 -> 9594.969789 | G29: 0
A30: 24 | B30: Iberville | C30: =[1]Base!$BG30 -> 0 | D30: =[2]Base!$BG30 -> 0 | E30: 0 | F30: ='Per Pupil Summary'!$S30 -> 9153.353546 | G30: 0
A31: 25 | B31: Jackson | C31: =[1]Base!$BG31 -> 0 | D31: =[2]Base!$BG31 -> 0 | E31: 0 | F31: ='Per Pupil Summary'!$S31 -> 9728.181248 | G31: 0
A32: 26 | B32: Jefferson | C32: =[1]Base!$BG32 -> 49 | D32: =[2]Base!$BG32 -> 40 | E32: -9 | F32: ='Per Pupil Summary'!$S32 -> 9380.546451 | G32: -84425
A33: 27 | B33: Jefferson Davis | C33: =[1]Base!$BG33 -> 0 | D33: =[2]Base!$BG33 -> 0 | E33: 0 | F33: ='Per Pupil Summary'!$S33 -> 9938.012694 | G33: 0
A34: 28 | B34: Lafayette | C34: =[1]Base!$BG34 -> 0 | D34: =[2]Base!$BG34 -> 0 | E34: 0 | F34: ='Per Pupil Summary'!$S34 -> 8545.52015 | G34: 0
A35: 29 | B35: Lafourche | C35: =[1]Base!$BG35 -> 0 | D35: =[2]Base!$BG35 -> 0 | E35: 0 | F35: ='Per Pupil Summary'!$S35 -> 8856.489464 | G35: 0
A36: 30 | B36: LaSalle | C36: =[1]Base!$BG36 -> 0 | D36: =[2]Base!$BG36 -> 0 | E36: 0 | F36: ='Per Pupil Summary'!$S36 -> 10058.69414 | G36: 0
A37: 31 | B37: Lincoln | C37: =[1]Base!$BG37 -> 0 | D37: =[2]Base!$BG37 -> 0 | E37: 0 | F37: ='Per Pupil Summary'!$S37 -> 9424.790315 | G37: 0
A38: 32 | B38: Livingston | C38: =[1]Base!$BG38 -> 0 | D38: =[2]Base!$BG38 -> 0 | E38: 0 | F38: ='Per Pupil Summary'!$S38 -> 9137.151471 | G38: 0
A39: 33 | B39: Madison | C39: =[1]Base!$BG39 -> 0 | D39: =[2]Base!$BG39 -> 0 | E39: =D39-C39 -> 0 | F39: ='Per Pupil Summary'!$S39 -> 10353.30484 | G39: =ROUND(E39*F39,0) -> 0
A40: 34 | B40: Morehouse | C40: =[1]Base!$BG40 -> 0 | D40: =[2]Base!$BG40 -> 0 | E40: 0 | F40: ='Per Pupil Summary'!$S40 -> 10307.09076 | G40: 0
A41: 35 | B41: Natchitoches | C41: =[1]Base!$BG41 -> 0 | D41: =[2]Base!$BG41 -> 0 | E41: 0 | F41: ='Per Pupil Summary'!$S41 -> 9371.042127 | G41: 0
A42: 36 | B42: Orleans | C42: =[1]Base!$BG42 -> 115 | D42: =[2]Base!$BG42 -> 121 | E42: 6 | F42: ='Per Pupil Summary'!$S42 -> 9137.596879 | G42: 54826
A43: 37 | B43: Ouachita | C43: =[1]Base!$BG43 -> 0 | D43: =[2]Base!$BG43 -> 0 | E43: 0 | F43: ='Per Pupil Summary'!$S43 -> 9603.656225 | G43: 0
A44: 38 | B44: Plaquemines | C44: =[1]Base!$BG44 -> 3 | D44: =[2]Base!$BG44 -> 6 | E44: 3 | F44: ='Per Pupil Summary'!$S44 -> 9579.40109 | G44: 28738
A45: 39 | B45: Pointe Coupee | C45: =[1]Base!$BG45 -> 0 | D45: =[2]Base!$BG45 -> 0 | E45: 0 | F45: ='Per Pupil Summary'!$S45 -> 9496.048961 | G45: 0
A46: 40 | B46: Rapides | C46: =[1]Base!$BG46 -> 0 | D46: =[2]Base!$BG46 -> 0 | E46: 0 | F46: ='Per Pupil Summary'!$S46 -> 9504.8479 | G46: 0
A47: 41 | B47: Red River | C47: =[1]Base!$BG47 -> 0 | D47: =[2]Base!$BG47 -> 0 | E47: 0 | F47: ='Per Pupil Summary'!$S47 -> 9761.062899 | G47: 0
A48: 42 | B48: Richland | C48: =[1]Base!$BG48 -> 0 | D48: =[2]Base!$BG48 -> 0 | E48: 0 | F48: ='Per Pupil Summary'!$S48 -> 9814.32231 | G48: 0
A49: 43 | B49: Sabine | C49: =[1]Base!$BG49 -> 0 | D49: =[2]Base!$BG49 -> 0 | E49: 0 | F49: ='Per Pupil Summary'!$S49 -> 10184.54712 | G49: 0
A50: 44 | B50: St. Bernard | C50: =[1]Base!$BG50 -> 5 | D50: =[2]Base!$BG50 -> 8 | E50: 3 | F50: ='Per Pupil Summary'!$S50 -> 9243.768821 | G50: 27731
A51: 45 | B51: St. Charles | C51: =[1]Base!$BG51 -> 7 | D51: =[2]Base!$BG51 -> 5 | E51: -2 | F51: ='Per Pupil Summary'!$S51 -> 8565.508843 | G51: -17131
A52: 46 | B52: St. Helena | C52: =[1]Base!$BG52 -> 0 | D52: =[2]Base!$BG52 -> 0 | E52: 0 | F52: ='Per Pupil Summary'!$S52 -> 11077.62686 | G52: 0
A53: 47 | B53: St. James | C53: =[1]Base!$BG53 -> 2 | D53: =[2]Base!$BG53 -> 2 | E53: 0 | F53: ='Per Pupil Summary'!$S53 -> 9560.357654 | G53: 0
A54: 48 | B54: St. John the Baptist | C54: =[1]Base!$BG54 -> 2 | D54: =[2]Base!$BG54 -> 4 | E54: 2 | F54: ='Per Pupil Summary'!$S54 -> 9694.156975 | G54: 19388
A55: 49 | B55: St. Landry | C55: =[1]Base!$BG55 -> 0 | D55: =[2]Base!$BG55 -> 0 | E55: 0 | F55: ='Per Pupil Summary'!$S55 -> 8716.371411 | G55: 0
A56: 50 | B56: St. Martin | C56: =[1]Base!$BG56 -> 0 | D56: =[2]Base!$BG56 -> 0 | E56: 0 | F56: ='Per Pupil Summary'!$S56 -> 9288.944732 | G56: 0
A57: 51 | B57: St. Mary | C57: =[1]Base!$BG57 -> 0 | D57: =[2]Base!$BG57 -> 0 | E57: 0 | F57: ='Per Pupil Summary'!$S57 -> 9843.564649 | G57: 0
A58: 52 | B58: St. Tammany | C58: =[1]Base!$BG58 -> 44 | D58: =[2]Base!$BG58 -> 40 | E58: -4 | F58: ='Per Pupil Summary'!$S58 -> 9658.856485 | G58: -38635
A59: 53 | B59: Tangipahoa | C59: =[1]Base!$BG59 -> 8 | D59: =[2]Base!$BG59 -> 8 | E59: 0 | F59: ='Per Pupil Summary'!$S59 -> 8631.871971 | G59: 0
A60: 54 | B60: Tensas | C60: =[1]Base!$BG60 -> 0 | D60: =[2]Base!$BG60 -> 0 | E60: 0 | F60: ='Per Pupil Summary'!$S60 -> 11425.12222 | G60: 0
A61: 55 | B61: Terrebonne | C61: =[1]Base!$BG61 -> 0 | D61: =[2]Base!$BG61 -> 0 | E61: 0 | F61: ='Per Pupil Summary'!$S61 -> 9284.012247 | G61: 0
A62: 56 | B62: Union | C62: =[1]Base!$BG62 -> 0 | D62: =[2]Base!$BG62 -> 0 | E62: 0 | F62: ='Per Pupil Summary'!$S62 -> 10185.23866 | G62: 0
A63: 57 | B63: Vermilion | C63: =[1]Base!$BG63 -> 0 | D63: =[2]Base!$BG63 -> 0 | E63: 0 | F63: ='Per Pupil Summary'!$S63 -> 8695.124676 | G63: 0
A64: 58 | B64: Vernon | C64: =[1]Base!$BG64 -> 0 | D64: =[2]Base!$BG64 -> 0 | E64: 0 | F64: ='Per Pupil Summary'!$S64 -> 9143.556863 | G64: 0
A65: 59 | B65: Washington | C65: =[1]Base!$BG65 -> 0 | D65: =[2]Base!$BG65 -> 0 | E65: 0 | F65: ='Per Pupil Summary'!$S65 -> 8907.271476 | G65: 0
A66: 60 | B66: Webster | C66: =[1]Base!$BG66 -> 0 | D66: =[2]Base!$BG66 -> 0 | E66: 0 | F66: ='Per Pupil Summary'!$S66 -> 9784.345579 | G66: 0
A67: 61 | B67: West Baton Rouge | C67: =[1]Base!$BG67 -> 0 | D67: =[2]Base!$BG67 -> 0 | E67: 0 | F67: ='Per Pupil Summary'!$S67 -> 9201.805787 | G67: 0
A68: 62 | B68: West Carroll | C68: =[1]Base!$BG68 -> 0 | D68: =[2]Base!$BG68 -> 0 | E68: 0 | F68: ='Per Pupil Summary'!$S68 -> 9043.240264 | G68: 0
A69: 63 | B69: West Feliciana | C69: =[1]Base!$BG69 -> 0 | D69: =[2]Base!$BG69 -> 0 | E69: 0 | F69: ='Per Pupil Summary'!$S69 -> 9753.744499 | G69: 0
A70: 64 | B70: Winn | C70: =[1]Base!$BG70 -> 0 | D70: =[2]Base!$BG70 -> 0 | E70: 0 | F70: ='Per Pupil Summary'!$S70 -> 10320.65719 | G70: 0
A71: 65 | B71: City of Monroe | C71: =[1]Base!$BG71 -> 0 | D71: =[2]Base!$BG71 -> 0 | E71: =D71-C71 -> 0 | F71: ='Per Pupil Summary'!$S71 -> 9972.543424 | G71: =ROUND(E71*F71,0) -> 0
A72: 66 | B72: City of Bogalusa | C72: =[1]Base!$BG72 -> 0 | D72: =[2]Base!$BG72 -> 0 | E72: 0 | F72: ='Per Pupil Summary'!$S72 -> 11805.26836 | G72: 0
A73: 67 | B73: Zachary Community | C73: =[1]Base!$BG73 -> 0 | D73: =[2]Base!$BG73 -> 0 | E73: 0 | F73: ='Per Pupil Summary'!$S73 -> 9375.66268 | G73: 0
A74: 68 | B74: City of Baker | C74: =[1]Base!$BG74 -> 0 | D74: =[2]Base!$BG74 -> 0 | E74: 0 | F74: ='Per Pupil Summary'!$S74 -> 10430.30813 | G74: 0
A75: 69 | B75: Central Community | C75: =[1]Base!$BG75 -> 0 | D75: =[2]Base!$BG75 -> 0 | E75: 0 | F75: ='Per Pupil Summary'!$S75 -> 9688.897857 | G75: 0
A76: State Subtotal | C76: =SUM(C7:C75) -> 236 | D76: =SUM(D7:D75) -> 234 | E76: =SUM(E7:E75) -> -2 | F76: ='Per Pupil Summary'!$S76 -> 4662.421252 | G76: =SUM(G7:G75) -> -18460

Sheet Oct_LSMSA
A1: Table 5A5 Louisiana School for Math, Science and the Arts (LSMSA) (Site Code 302006) | C1: MFP State Cost Allocation
C2: Feb. 1, 2019 MFP Funded Membership (Per SIS) | D2: Oct. 1, 2019 MFP Funded Membership (Per SIS) | E2: Change in MFP Funded Membership | F2: Total State Cost & Local Cost Allocation (With Continuation of Prior Year Pay Raises) | G2: Change in Total MFP Cost Allocation
C4: 1 | D4: =C4+1 -> 2 | E4: =D4+1 -> 3 | F4: =E4+1 -> 4 | G4: =F4+1 -> 5
C6: Link in File | D6: Link in File | E6: Formula | F6: Value | G6: Formula
A7: 1 | B7: Acadia | C7: =[1]Base!$BF7 -> 7 | D7: =[2]Base!$BF7 -> 8 | E7: =D7-C7 -> 1 | F7: ='Per Pupil Summary'!$S7 -> 8365.01413 | G7: =ROUND(E7*F7,0) -> 8365
A8: 2 | B8: Allen | C8: =[1]Base!$BF8 -> 4 | D8: =[2]Base!$BF8 -> 2 | E8: -2 | F8: ='Per Pupil Summary'!$S8 -> 10325.95402 | G8: -20652
A9: 3 | B9: Ascension | C9: =[1]Base!$BF9 -> 11 | D9: =[2]Base!$BF9 -> 11 | E9: 0 | F9: ='Per Pupil Summary'!$S9 -> 8485.41841 | G9: 0
A10: 4 | B10: Assumption | C10: =[1]Base!$BF10 -> 2 | D10: =[2]Base!$BF10 -> 2 | E10: 0 | F10: ='Per Pupil Summary'!$S10 -> 10279.04041 | G10: 0
A11: 5 | B11: Avoyelles | C11: =[1]Base!$BF11 -> 2 | D11: =[2]Base!$BF11 -> 3 | E11: 1 | F11: ='Per Pupil Summary'!$S11 -> 8450.043222 | G11: 8450
A12: 6 | B12: Beauregard | C12: =[1]Base!$BF12 -> 3 | D12: =[2]Base!$BF12 -> 1 | E12: -2 | F12: ='Per Pupil Summary'!$S12 -> 9662.443793 | G12: -19325
A13: 7 | B13: Bienville | C13: =[1]Base!$BF13 -> 1 | D13: =[2]Base!$BF13 -> 1 | E13: 0 | F13: ='Per Pupil Summary'!$S13 -> 9387.162109 | G13: 0
A14: 8 | B14: Bossier | C14: =[1]Base!$BF14 -> 9 | D14: =[2]Base!$BF14 -> 10 | E14: 1 | F14: ='Per Pupil Summary'!$S14 -> 9348.415699 | G14: 9348
A15: 9 | B15: Caddo | C15: =[1]Base!$BF15 -> 12 | D15: =[2]Base!$BF15 -> 12 | E15: 0 | F15: ='Per Pupil Summary'!$S15 -> 9160.599382 | G15: 0
A16: 10 | B16: Calcasieu | C16: =[1]Base!$BF16 -> 23 | D16: =[2]Base!$BF16 -> 31 | E16: 8 | F16: ='Per Pupil Summary'!$S16 -> 8762.610423 | G16: 70101
A17: 11 | B17: Caldwell | C17: =[1]Base!$BF17 -> 1 | D17: =[2]Base!$BF17 -> 1 | E17: 0 | F17: ='Per Pupil Summary'!$S17 -> 11324.38876 | G17: 0
A18: 12 | B18: Cameron | C18: =[1]Base!$BF18 -> 0 | D18: =[2]Base!$BF18 -> 0 | E18: 0 | F18: ='Per Pupil Summary'!$S18 -> 9345.320646 | G18: 0
A19: 13 | B19: Catahoula | C19: =[1]Base!$BF19 -> 0 | D19: =[2]Base!$BF19 -> 0 | E19: 0 | F19: ='Per Pupil Summary'!$S19 -> 10331.28708 | G19: 0
A20: 14 | B20: Claiborne | C20: =[1]Base!$BF20 -> 2 | D20: =[2]Base!$BF20 -> 2 | E20: 0 | F20: ='Per Pupil Summary'!$S20 -> 10630.26718 | G20: 0
A21: 15 | B21: Concordia | C21: =[1]Base!$BF21 -> 0 | D21: =[2]Base!$BF21 -> 2 | E21: 2 | F21: ='Per Pupil Summary'!$S21 -> 9877.11583 | G21: 19754
A22: 16 | B22: DeSoto | C22: =[1]Base!$BF22 -> 3 | D22: =[2]Base!$BF22 -> 2 | E22: -1 | F22: ='Per Pupil Summary'!$S22 -> 8538.810933 | G22: -8539
A23: 17 | B23: East Baton Rouge | C23: =[1]Base!$BF23 -> 24 | D23: =[2]Base!$BF23 -> 10 | E23: -14 | F23: ='Per Pupil Summary'!$S23 -> 8952.180896 | G23: -125331
A24: 18 | B24: East Carroll | C24: =[1]Base!$BF24 -> 0 | D24: =[2]Base!$BF24 -> 0 | E24: 0 | F24: ='Per Pupil Summary'!$S24 -> 10864.26788 | G24: 0
A25: 19 | B25: East Feliciana | C25: =[1]Base!$BF25 -> 1 | D25: =[2]Base!$BF25 -> 3 | E25: 2 | F25: ='Per Pupil Summary'!$S25 -> 9549.910844 | G25: 19100
A26: 20 | B26: Evangeline | C26: =[1]Base!$BF26 -> 1 | D26: =[2]Base!$BF26 -> 2 | E26: 1 | F26: ='Per Pupil Summary'!$S26 -> 8990.389759 | G26: 8990
A27: 21 | B27: Franklin | C27: =[1]Base!$BF27 -> 2 | D27: =[2]Base!$BF27 -> 3 | E27: 1 | F27: ='Per Pupil Summary'!$S27 -> 9624.106806 | G27: 9624
A28: 22 | B28: Grant | C28: =[1]Base!$BF28 -> 1 | D28: =[2]Base!$BF28 -> 3 | E28: 2 | F28: ='Per Pupil Summary'!$S28 -> 9463.038525 | G28: 18926
A29: 23 | B29: Iberia | C29: =[1]Base!$BF29 -> 9 | D29: =[2]Base!$BF29 -> 6 | E29: -3 | F29: ='Per Pupil Summary'!$S29 -> 9594.969789 | G29: -28785
A30: 24 | B30: Iberville | C30: =[1]Base!$BF30 -> 2 | D30: =[2]Base!$BF30 -> 2 | E30: 0 | F30: ='Per Pupil Summary'!$S30 -> 9153.353546 | G30: 0
A31: 25 | B31: Jackson | C31: =[1]Base!$BF31 -> 3 | D31: =[2]Base!$BF31 -> 3 | E31: 0 | F31: ='Per Pupil Summary'!$S31 -> 9728.181248 | G31: 0
A32: 26 | B32: Jefferson | C32: =[1]Base!$BF32 -> 5 | D32: =[2]Base!$BF32 -> 6 | E32: 1 | F32: ='Per Pupil Summary'!$S32 -> 9380.546451 | G32: 9381
A33: 27 | B33: Jefferson Davis | C33: =[1]Base!$BF33 -> 3 | D33: =[2]Base!$BF33 -> 3 | E33: 0 | F33: ='Per Pupil Summary'!$S33 -> 9938.012694 | G33: 0
A34: 28 | B34: Lafayette | C34: =[1]Base!$BF34 -> 13 | D34: =[2]Base!$BF34 -> 15 | E34: 2 | F34: ='Per Pupil Summary'!$S34 -> 8545.52015 | G34: 17091
A35: 29 | B35: Lafourche | C35: =[1]Base!$BF35 -> 12 | D35: =[2]Base!$BF35 -> 10 | E35: -2 | F35: ='Per Pupil Summary'!$S35 -> 8856.489464 | G35: -17713
A36: 30 | B36: LaSalle | C36: =[1]Base!$BF36 -> 0 | D36: =[2]Base!$BF36 -> 0 | E36: 0 | F36: ='Per Pupil Summary'!$S36 -> 10058.69414 | G36: 0
A37: 31 | B37: Lincoln | C37: =[1]Base!$BF37 -> 2 | D37: =[2]Base!$BF37 -> 5 | E37: 3 | F37: ='Per Pupil Summary'!$S37 -> 9424.790315 | G37: 28274
A38: 32 | B38: Livingston | C38: =[1]Base!$BF38 -> 23 | D38: =[2]Base!$BF38 -> 17 | E38: -6 | F38: ='Per Pupil Summary'!$S38 -> 9137.151471 | G38: -54823
A39: 33 | B39: Madison | C39: =[1]Base!$BF39 -> 1 | D39: =[2]Base!$BF39 -> 1 | E39: =D39-C39 -> 0 | F39: ='Per Pupil Summary'!$S39 -> 10353.30484 | G39: =ROUND(E39*F39,0) -> 0
A40: 34 | B40: Morehouse | C40: =[1]Base!$BF40 -> 0 | D40: =[2]Base!$BF40 -> 0 | E40: 0 | F40: ='Per Pupil Summary'!$S40 -> 10307.09076 | G40: 0
A41: 35 | B41: Natchitoches | C41: =[1]Base!$BF41 -> 27 | D41: =[2]Base!$BF41 -> 23 | E41: -4 | F41: ='Per Pupil Summary'!$S41 -> 9371.042127 | G41: -37484
A42: 36 | B42: Orleans | C42: =[1]Base!$BF42 -> 3 | D42: =[2]Base!$BF42 -> 3 | E42: 0 | F42: ='Per Pupil Summary'!$S42 -> 9137.596879 | G42: 0
A43: 37 | B43: Ouachita | C43: =[1]Base!$BF43 -> 4 | D43: =[2]Base!$BF43 -> 5 | E43: 1 | F43: ='Per Pupil Summary'!$S43 -> 9603.656225 | G43: 9604
A44: 38 | B44: Plaquemines | C44: =[1]Base!$BF44 -> 1 | D44: =[2]Base!$BF44 -> 1 | E44: 0 | F44: ='Per Pupil Summary'!$S44 -> 9579.40109 | G44: 0
A45: 39 | B45: Pointe Coupee | C45: =[1]Base!$BF45 -> 5 | D45: =[2]Base!$BF45 -> 6 | E45: 1 | F45: ='Per Pupil Summary'!$S45 -> 9496.048961 | G45: 9496
A46: 40 | B46: Rapides | C46: =[1]Base!$BF46 -> 9 | D46: =[2]Base!$BF46 -> 14 | E46: 5 | F46: ='Per Pupil Summary'!$S46 -> 9504.8479 | G46: 47524
A47: 41 | B47: Red River | C47: =[1]Base!$BF47 -> 0 | D47: =[2]Base!$BF47 -> 0 | E47: 0 | F47: ='Per Pupil Summary'!$S47 -> 9761.062899 | G47: 0
A48: 42 | B48: Richland | C48: =[1]Base!$BF48 -> 2 | D48: =[2]Base!$BF48 -> 3 | E48: 1 | F48: ='Per Pupil Summary'!$S48 -> 9814.32231 | G48: 9814
A49: 43 | B49: Sabine | C49: =[1]Base!$BF49 -> 9 | D49: =[2]Base!$BF49 -> 13 | E49: 4 | F49: ='Per Pupil Summary'!$S49 -> 10184.54712 | G49: 40738
A50: 44 | B50: St. Bernard | C50: =[1]Base!$BF50 -> 1 | D50: =[2]Base!$BF50 -> 4 | E50: 3 | F50: ='Per Pupil Summary'!$S50 -> 9243.768821 | G50: 27731
A51: 45 | B51: St. Charles | C51: =[1]Base!$BF51 -> 3 | D51: =[2]Base!$BF51 -> 6 | E51: 3 | F51: ='Per Pupil Summary'!$S51 -> 8565.508843 | G51: 25697
A52: 46 | B52: St. Helena | C52: =[1]Base!$BF52 -> 0 | D52: =[2]Base!$BF52 -> 0 | E52: 0 | F52: ='Per Pupil Summary'!$S52 -> 11077.62686 | G52: 0
A53: 47 | B53: St. James | C53: =[1]Base!$BF53 -> 0 | D53: =[2]Base!$BF53 -> 1 | E53: 1 | F53: ='Per Pupil Summary'!$S53 -> 9560.357654 | G53: 9560
A54: 48 | B54: St. John the Baptist | C54: =[1]Base!$BF54 -> 1 | D54: =[2]Base!$BF54 -> 3 | E54: 2 | F54: ='Per Pupil Summary'!$S54 -> 9694.156975 | G54: 19388
A55: 49 | B55: St. Landry | C55: =[1]Base!$BF55 -> 6 | D55: =[2]Base!$BF55 -> 12 | E55: 6 | F55: ='Per Pupil Summary'!$S55 -> 8716.371411 | G55: 52298
A56: 50 | B56: St. Martin | C56: =[1]Base!$BF56 -> 5 | D56: =[2]Base!$BF56 -> 5 | E56: 0 | F56: ='Per Pupil Summary'!$S56 -> 9288.944732 | G56: 0
A57: 51 | B57: St. Mary | C57: =[1]Base!$BF57 -> 2 | D57: =[2]Base!$BF57 -> 2 | E57: 0 | F57: ='Per Pupil Summary'!$S57 -> 9843.564649 | G57: 0
A58: 52 | B58: St. Tammany | C58: =[1]Base!$BF58 -> 33 | D58: =[2]Base!$BF58 -> 30 | E58: -3 | F58: ='Per Pupil Summary'!$S58 -> 9658.856485 | G58: -28977
A59: 53 | B59: Tangipahoa | C59: =[1]Base!$BF59 -> 11 | D59: =[2]Base!$BF59 -> 14 | E59: 3 | F59: ='Per Pupil Summary'!$S59 -> 8631.871971 | G59: 25896
A60: 54 | B60: Tensas | C60: =[1]Base!$BF60 -> 0 | D60: =[2]Base!$BF60 -> 0 | E60: 0 | F60: ='Per Pupil Summary'!$S60 -> 11425.12222 | G60: 0
A61: 55 | B61: Terrebonne | C61: =[1]Base!$BF61 -> 8 | D61: =[2]Base!$BF61 -> 8 | E61: 0 | F61: ='Per Pupil Summary'!$S61 -> 9284.012247 | G61: 0
A62: 56 | B62: Union | C62: =[1]Base!$BF62 -> 0 | D62: =[2]Base!$BF62 -> 1 | E62: 1 | F62: ='Per Pupil Summary'!$S62 -> 10185.23866 | G62: 10185
A63: 57 | B63: Vermilion | C63: =[1]Base!$BF63 -> 3 | D63: =[2]Base!$BF63 -> 2 | E63: -1 | F63: ='Per Pupil Summary'!$S63 -> 8695.124676 | G63: -8695
A64: 58 | B64: Vernon | C64: =[1]Base!$BF64 -> 11 | D64: =[2]Base!$BF64 -> 7 | E64: -4 | F64: ='Per Pupil Summary'!$S64 -> 9143.556863 | G64: -36574
A65: 59 | B65: Washington | C65: =[1]Base!$BF65 -> 0 | D65: =[2]Base!$BF65 -> 0 | E65: 0 | F65: ='Per Pupil Summary'!$S65 -> 8907.271476 | G65: 0
A66: 60 | B66: Webster | C66: =[1]Base!$BF66 -> 2 | D66: =[2]Base!$BF66 -> 1 | E66: -1 | F66: ='Per Pupil Summary'!$S66 -> 9784.345579 | G66: -9784
A67: 61 | B67: West Baton Rouge | C67: =[1]Base!$BF67 -> 2 | D67: =[2]Base!$BF67 -> 2 | E67: 0 | F67: ='Per Pupil Summary'!$S67 -> 9201.805787 | G67: 0
A68: 62 | B68: West Carroll | C68: =[1]Base!$BF68 -> 0 | D68: =[2]Base!$BF68 -> 2 | E68: 2 | F68: ='Per Pupil Summary'!$S68 -> 9043.240264 | G68: 18086
A69: 63 | B69: West Feliciana | C69: =[1]Base!$BF69 -> 2 | D69: =[2]Base!$BF69 -> 2 | E69: 0 | F69: ='Per Pupil Summary'!$S69 -> 9753.744499 | G69: 0
A70: 64 | B70: Winn | C70: =[1]Base!$BF70 -> 0 | D70: =[2]Base!$BF70 -> 0 | E70: 0 | F70: ='Per Pupil Summary'!$S70 -> 10320.65719 | G70: 0
A71: 65 | B71: City of Monroe | C71: =[1]Base!$BF71 -> 4 | D71: =[2]Base!$BF71 -> 2 | E71: =D71-C71 -> -2 | F71: ='Per Pupil Summary'!$S71 -> 9972.543424 | G71: =ROUND(E71*F71,0) -> -19945
A72: 66 | B72: City of Bogalusa | C72: =[1]Base!$BF72 -> 0 | D72: =[2]Base!$BF72 -> 0 | E72: 0 | F72: ='Per Pupil Summary'!$S72 -> 11805.26836 | G72: 0
A73: 67 | B73: Zachary Community | C73: =[1]Base!$BF73 -> 8 | D73: =[2]Base!$BF73 -> 6 | E73: -2 | F73: ='Per Pupil Summary'!$S73 -> 9375.66268 | G73: -18751
A74: 68 | B74: City of Baker | C74: =[1]Base!$BF74 -> 0 | D74: =[2]Base!$BF74 -> 0 | E74: 0 | F74: ='Per Pupil Summary'!$S74 -> 10430.30813 | G74: 0
A75: 69 | B75: Central Community | C75: =[1]Base!$BF75 -> 1 | D75: =[2]Base!$BF75 -> 3 | E75: 2 | F75: ='Per Pupil Summary'!$S75 -> 9688.897857 | G75: 19378
A76: State Subtotal | C76: =SUM(C7:C75) -> 345 | D76: =SUM(D7:D75) -> 358 | E76: =SUM(E7:E75) -> 13 | F76: ='Per Pupil Summary'!$S76 -> 4662.421252 | G76: =SUM(G7:G75) -> 117421

Sheet Oct_Thrive
A1: Table 5A6 Thrive Academy of Baton Rouge (Site Code 3C1001) | C1: MFP State Cost Allocation
C2: Feb. 1, 2019 MFP Funded Membership (Per SIS) | D2: Oct. 1, 2019 MFP Funded Membership (Per SIS) | E2: Change in MFP Funded Membership | F2: Total State Cost & Local Cost Allocation (With Continuation of Prior Year Pay Raises) | G2: Change in Total MFP Cost Allocation
C4: 1 | D4: =C4+1 -> 2 | E4: =D4+1 -> 3 | F4: =E4+1 -> 4 | G4: =F4+1 -> 5
D6: Link in File | E6: Formula | F6: Value | G6: Formula
A7: 1 | B7: Acadia | C7: =[1]Base!$BH7 -> 0 | D7: =[2]Base!$BH7 -> 0 | E7: =D7-C7 -> 0 | F7: ='Per Pupil Summary'!$S7 -> 8365.01413 | G7: =ROUND(E7*F7,0) -> 0
A8: 2 | B8: Allen | C8: =[1]Base!$BH8 -> 0 | D8: =[2]Base!$BH8 -> 0 | E8: 0 | F8: ='Per Pupil Summary'!$S8 -> 10325.95402 | G8: 0
A9: 3 | B9: Ascension | C9: =[1]Base!$BH9 -> 8 | D9: =[2]Base!$BH9 -> 7 | E9: -1 | F9: ='Per Pupil Summary'!$S9 -> 8485.41841 | G9: -8485
A10: 4 | B10: Assumption | C10: =[1]Base!$BH10 -> 0 | D10: =[2]Base!$BH10 -> 0 | E10: 0 | F10: ='Per Pupil Summary'!$S10 -> 10279.04041 | G10: 0
A11: 5 | B11: Avoyelles | C11: =[1]Base!$BH11 -> 0 | D11: =[2]Base!$BH11 -> 0 | E11: 0 | F11: ='Per Pupil Summary'!$S11 -> 8450.043222 | G11: 0
A12: 6 | B12: Beauregard | C12: =[1]Base!$BH12 -> 0 | D12: =[2]Base!$BH12 -> 0 | E12: 0 | F12: ='Per Pupil Summary'!$S12 -> 9662.443793 | G12: 0
A13: 7 | B13: Bienville | C13: =[1]Base!$BH13 -> 0 | D13: =[2]Base!$BH13 -> 0 | E13: 0 | F13: ='Per Pupil Summary'!$S13 -> 9387.162109 | G13: 0
A14: 8 | B14: Bossier | C14: =[1]Base!$BH14 -> 0 | D14: =[2]Base!$BH14 -> 0 | E14: 0 | F14: ='Per Pupil Summary'!$S14 -> 9348.415699 | G14: 0
A15: 9 | B15: Caddo | C15: =[1]Base!$BH15 -> 0 | D15: =[2]Base!$BH15 -> 0 | E15: 0 | F15: ='Per Pupil Summary'!$S15 -> 9160.599382 | G15: 0
A16: 10 | B16: Calcasieu | C16: =[1]Base!$BH16 -> 0 | D16: =[2]Base!$BH16 -> 0 | E16: 0 | F16: ='Per Pupil Summary'!$S16 -> 8762.610423 | G16: 0
A17: 11 | B17: Caldwell | C17: =[1]Base!$BH17 -> 0 | D17: =[2]Base!$BH17 -> 0 | E17: 0 | F17: ='Per Pupil Summary'!$S17 -> 11324.38876 | G17: 0
A18: 12 | B18: Cameron | C18: =[1]Base!$BH18 -> 0 | D18: =[2]Base!$BH18 -> 0 | E18: 0 | F18: ='Per Pupil Summary'!$S18 -> 9345.320646 | G18: 0
A19: 13 | B19: Catahoula | C19: =[1]Base!$BH19 -> 0 | D19: =[2]Base!$BH19 -> 0 | E19: 0 | F19: ='Per Pupil Summary'!$S19 -> 10331.28708 | G19: 0
A20: 14 | B20: Claiborne | C20: =[1]Base!$BH20 -> 0 | D20: =[2]Base!$BH20 -> 0 | E20: 0 | F20: ='Per Pupil Summary'!$S20 -> 10630.26718 | G20: 0
A21: 15 | B21: Concordia | C21: =[1]Base!$BH21 -> 0 | D21: =[2]Base!$BH21 -> 0 | E21: 0 | F21: ='Per Pupil Summary'!$S21 -> 9877.11583 | G21: 0
A22: 16 | B22: DeSoto | C22: =[1]Base!$BH22 -> 0 | D22: =[2]Base!$BH22 -> 0 | E22: 0 | F22: ='Per Pupil Summary'!$S22 -> 8538.810933 | G22: 0
A23: 17 | B23: East Baton Rouge | C23: =[1]Base!$BH23 -> 141 | D23: =[2]Base!$BH23 -> 137 | E23: -4 | F23: ='Per Pupil Summary'!$S23 -> 8952.180896 | G23: -35809
A24: 18 | B24: East Carroll | C24: =[1]Base!$BH24 -> 0 | D24: =[2]Base!$BH24 -> 0 | E24: 0 | F24: ='Per Pupil Summary'!$S24 -> 10864.26788 | G24: 0
A25: 19 | B25: East Feliciana | C25: =[1]Base!$BH25 -> 0 | D25: =[2]Base!$BH25 -> 0 | E25: 0 | F25: ='Per Pupil Summary'!$S25 -> 9549.910844 | G25: 0
A26: 20 | B26: Evangeline | C26: =[1]Base!$BH26 -> 0 | D26: =[2]Base!$BH26 -> 0 | E26: 0 | F26: ='Per Pupil Summary'!$S26 -> 8990.389759 | G26: 0
A27: 21 | B27: Franklin | C27: =[1]Base!$BH27 -> 0 | D27: =[2]Base!$BH27 -> 0 | E27: 0 | F27: ='Per Pupil Summary'!$S27 -> 9624.106806 | G27: 0
A28: 22 | B28: Grant | C28: =[1]Base!$BH28 -> 0 | D28: =[2]Base!$BH28 -> 0 | E28: 0 | F28: ='Per Pupil Summary'!$S28 -> 9463.038525 | G28: 0
A29: 23 | B29: Iberia | C29: =[1]Base!$BH29 -> 0 | D29: =[2]Base!$BH29 -> 0 | E29: 0 | F29: ='Per Pupil Summary'!$S29 -> 9594.969789 | G29: 0
A30: 24 | B30: Iberville | C30: =[1]Base!$BH30 -> 1 | D30: =[2]Base!$BH30 -> 5 | E30: 4 | F30: ='Per Pupil Summary'!$S30 -> 9153.353546 | G30: 36613
A31: 25 | B31: Jackson | C31: =[1]Base!$BH31 -> 0 | D31: =[2]Base!$BH31 -> 0 | E31: 0 | F31: ='Per Pupil Summary'!$S31 -> 9728.181248 | G31: 0
A32: 26 | B32: Jefferson | C32: =[1]Base!$BH32 -> 4 | D32: =[2]Base!$BH32 -> 1 | E32: -3 | F32: ='Per Pupil Summary'!$S32 -> 9380.546451 | G32: -28142
A33: 27 | B33: Jefferson Davis | C33: =[1]Base!$BH33 -> 0 | D33: =[2]Base!$BH33 -> 0 | E33: 0 | F33: ='Per Pupil Summary'!$S33 -> 9938.012694 | G33: 0
A34: 28 | B34: Lafayette | C34: =[1]Base!$BH34 -> 0 | D34: =[2]Base!$BH34 -> 0 | E34: 0 | F34: ='Per Pupil Summary'!$S34 -> 8545.52015 | G34: 0
A35: 29 | B35: Lafourche | C35: =[1]Base!$BH35 -> 0 | D35: =[2]Base!$BH35 -> 0 | E35: 0 | F35: ='Per Pupil Summary'!$S35 -> 8856.489464 | G35: 0
A36: 30 | B36: LaSalle | C36: =[1]Base!$BH36 -> 0 | D36: =[2]Base!$BH36 -> 0 | E36: 0 | F36: ='Per Pupil Summary'!$S36 -> 10058.69414 | G36: 0
A37: 31 | B37: Lincoln | C37: =[1]Base!$BH37 -> 0 | D37: =[2]Base!$BH37 -> 0 | E37: 0 | F37: ='Per Pupil Summary'!$S37 -> 9424.790315 | G37: 0
A38: 32 | B38: Livingston | C38: =[1]Base!$BH38 -> 1 | D38: =[2]Base!$BH38 -> 0 | E38: -1 | F38: ='Per Pupil Summary'!$S38 -> 9137.151471 | G38: -9137
A39: 33 | B39: Madison | C39: =[1]Base!$BH39 -> 0 | D39: =[2]Base!$BH39 -> 0 | E39: =D39-C39 -> 0 | F39: ='Per Pupil Summary'!$S39 -> 10353.30484 | G39: =ROUND(E39*F39,0) -> 0
A40: 34 | B40: Morehouse | C40: =[1]Base!$BH40 -> 0 | D40: =[2]Base!$BH40 -> 0 | E40: 0 | F40: ='Per Pupil Summary'!$S40 -> 10307.09076 | G40: 0
A41: 35 | B41: Natchitoches | C41: =[1]Base!$BH41 -> 0 | D41: =[2]Base!$BH41 -> 0 | E41: 0 | F41: ='Per Pupil Summary'!$S41 -> 9371.042127 | G41: 0
A42: 36 | B42: Orleans | C42: =[1]Base!$BH42 -> 1 | D42: =[2]Base!$BH42 -> 0 | E42: -1 | F42: ='Per Pupil Summary'!$S42 -> 9137.596879 | G42: -9138
A43: 37 | B43: Ouachita | C43: =[1]Base!$BH43 -> 0 | D43: =[2]Base!$BH43 -> 0 | E43: 0 | F43: ='Per Pupil Summary'!$S43 -> 9603.656225 | G43: 0
A44: 38 | B44: Plaquemines | C44: =[1]Base!$BH44 -> 0 | D44: =[2]Base!$BH44 -> 0 | E44: 0 | F44: ='Per Pupil Summary'!$S44 -> 9579.40109 | G44: 0
A45: 39 | B45: Pointe Coupee | C45: =[1]Base!$BH45 -> 2 | D45: =[2]Base!$BH45 -> 2 | E45: 0 | F45: ='Per Pupil Summary'!$S45 -> 9496.048961 | G45: 0
A46: 40 | B46: Rapides | C46: =[1]Base!$BH46 -> 0 | D46: =[2]Base!$BH46 -> 0 | E46: 0 | F46: ='Per Pupil Summary'!$S46 -> 9504.8479 | G46: 0
A47: 41 | B47: Red River | C47: =[1]Base!$BH47 -> 0 | D47: =[2]Base!$BH47 -> 0 | E47: 0 | F47: ='Per Pupil Summary'!$S47 -> 9761.062899 | G47: 0
A48: 42 | B48: Richland | C48: =[1]Base!$BH48 -> 0 | D48: =[2]Base!$BH48 -> 0 | E48: 0 | F48: ='Per Pupil Summary'!$S48 -> 9814.32231 | G48: 0
A49: 43 | B49: Sabine | C49: =[1]Base!$BH49 -> 0 | D49: =[2]Base!$BH49 -> 0 | E49: 0 | F49: ='Per Pupil Summary'!$S49 -> 10184.54712 | G49: 0
A50: 44 | B50: St. Bernard | C50: =[1]Base!$BH50 -> 0 | D50: =[2]Base!$BH50 -> 0 | E50: 0 | F50: ='Per Pupil Summary'!$S50 -> 9243.768821 | G50: 0
A51: 45 | B51: St. Charles | C51: =[1]Base!$BH51 -> 0 | D51: =[2]Base!$BH51 -> 0 | E51: 0 | F51: ='Per Pupil Summary'!$S51 -> 8565.508843 | G51: 0
A52: 46 | B52: St. Helena | C52: =[1]Base!$BH52 -> 0 | D52: =[2]Base!$BH52 -> 1 | E52: 1 | F52: ='Per Pupil Summary'!$S52 -> 11077.62686 | G52: 11078
A53: 47 | B53: St. James | C53: =[1]Base!$BH53 -> 0 | D53: =[2]Base!$BH53 -> 0 | E53: 0 | F53: ='Per Pupil Summary'!$S53 -> 9560.357654 | G53: 0
A54: 48 | B54: St. John the Baptist | C54: =[1]Base!$BH54 -> 2 | D54: =[2]Base!$BH54 -> 3 | E54: 1 | F54: ='Per Pupil Summary'!$S54 -> 9694.156975 | G54: 9694
A55: 49 | B55: St. Landry | C55: =[1]Base!$BH55 -> 0 | D55: =[2]Base!$BH55 -> 0 | E55: 0 | F55: ='Per Pupil Summary'!$S55 -> 8716.371411 | G55: 0
A56: 50 | B56: St. Martin | C56: =[1]Base!$BH56 -> 1 | D56: =[2]Base!$BH56 -> 0 | E56: -1 | F56: ='Per Pupil Summary'!$S56 -> 9288.944732 | G56: -9289
A57: 51 | B57: St. Mary | C57: =[1]Base!$BH57 -> 0 | D57: =[2]Base!$BH57 -> 0 | E57: 0 | F57: ='Per Pupil Summary'!$S57 -> 9843.564649 | G57: 0
A58: 52 | B58: St. Tammany | C58: =[1]Base!$BH58 -> 1 | D58: =[2]Base!$BH58 -> 1 | E58: 0 | F58: ='Per Pupil Summary'!$S58 -> 9658.856485 | G58: 0
A59: 53 | B59: Tangipahoa | C59: =[1]Base!$BH59 -> 0 | D59: =[2]Base!$BH59 -> 2 | E59: 2 | F59: ='Per Pupil Summary'!$S59 -> 8631.871971 | G59: 17264
A60: 54 | B60: Tensas | C60: =[1]Base!$BH60 -> 0 | D60: =[2]Base!$BH60 -> 0 | E60: 0 | F60: ='Per Pupil Summary'!$S60 -> 11425.12222 | G60: 0
A61: 55 | B61: Terrebonne | C61: =[1]Base!$BH61 -> 0 | D61: =[2]Base!$BH61 -> 0 | E61: 0 | F61: ='Per Pupil Summary'!$S61 -> 9284.012247 | G61: 0
A62: 56 | B62: Union | C62: =[1]Base!$BH62 -> 0 | D62: =[2]Base!$BH62 -> 0 | E62: 0 | F62: ='Per Pupil Summary'!$S62 -> 10185.23866 | G62: 0
A63: 57 | B63: Vermilion | C63: =[1]Base!$BH63 -> 0 | D63: =[2]Base!$BH63 -> 0 | E63: 0 | F63: ='Per Pupil Summary'!$S63 -> 8695.124676 | G63: 0
A64: 58 | B64: Vernon | C64: =[1]Base!$BH64 -> 0 | D64: =[2]Base!$BH64 -> 0 | E64: 0 | F64: ='Per Pupil Summary'!$S64 -> 9143.556863 | G64: 0
A65: 59 | B65: Washington | C65: =[1]Base!$BH65 -> 0 | D65: =[2]Base!$BH65 -> 0 | E65: 0 | F65: ='Per Pupil Summary'!$S65 -> 8907.271476 | G65: 0
A66: 60 | B66: Webster | C66: =[1]Base!$BH66 -> 0 | D66: =[2]Base!$BH66 -> 0 | E66: 0 | F66: ='Per Pupil Summary'!$S66 -> 9784.345579 | G66: 0
A67: 61 | B67: West Baton Rouge | C67: =[1]Base!$BH67 -> 3 | D67: =[2]Base!$BH67 -> 6 | E67: 3 | F67: ='Per Pupil Summary'!$S67 -> 9201.805787 | G67: 27605
A68: 62 | B68: West Carroll | C68: =[1]Base!$BH68 -> 0 | D68: =[2]Base!$BH68 -> 0 | E68: 0 | F68: ='Per Pupil Summary'!$S68 -> 9043.240264 | G68: 0
A69: 63 | B69: West Feliciana | C69: =[1]Base!$BH69 -> 4 | D69: =[2]Base!$BH69 -> 2 | E69: -2 | F69: ='Per Pupil Summary'!$S69 -> 9753.744499 | G69: -19507
A70: 64 | B70: Winn | C70: =[1]Base!$BH70 -> 0 | D70: =[2]Base!$BH70 -> 0 | E70: 0 | F70: ='Per Pupil Summary'!$S70 -> 10320.65719 | G70: 0
A71: 65 | B71: City of Monroe | C71: =[1]Base!$BH71 -> 0 | D71: =[2]Base!$BH71 -> 1 | E71: =D71-C71 -> 1 | F71: ='Per Pupil Summary'!$S71 -> 9972.543424 | G71: =ROUND(E71*F71,0) -> 9973
A72: 66 | B72: City of Bogalusa | C72: =[1]Base!$BH72 -> 0 | D72: =[2]Base!$BH72 -> 0 | E72: 0 | F72: ='Per Pupil Summary'!$S72 -> 11805.26836 | G72: 0
A73: 67 | B73: Zachary Community | C73: =[1]Base!$BH73 -> 3 | D73: =[2]Base!$BH73 -> 2 | E73: -1 | F73: ='Per Pupil Summary'!$S73 -> 9375.66268 | G73: -9376
A74: 68 | B74: City of Baker | C74: =[1]Base!$BH74 -> 2 | D74: =[2]Base!$BH74 -> 2 | E74: 0 | F74: ='Per Pupil Summary'!$S74 -> 10430.30813 | G74: 0
A75: 69 | B75: Central Community | C75: =[1]Base!$BH75 -> 1 | D75: =[2]Base!$BH75 -> 1 | E75: 0 | F75: ='Per Pupil Summary'!$S75 -> 9688.897857 | G75: 0
A76: State Subtotal | C76: =SUM(C7:C75) -> 175 | D76: =SUM(D7:D75) -> 173 | E76: =SUM(E7:E75) -> -2 | F76: ='Per Pupil Summary'!$S76 -> 4662.421252 | G76: =SUM(G7:G75) -> -16656

Sheet Oct_New Type 2
A1: Table 5C1 New Type 2 Charter Schools | D1: Feb. 1, 2019 MFP Funded Membership (Per SIS) | E1: Oct. 1, 2019 MFP Funded Membership (Per SIS) | F1: Change in MFP Funded Membership | G1: Unweighted | I1: Economically Disadvantaged | N1: Students with Disabilities | S1: Gifted & Talented | X1: Change in Total MFP State Cost Allocation (Levels 1, 2, & 3)
G2: Per Pupil (With Continuation of Prior Year Pay Raises) | H2: Change in State Cost Allocation | I2: 2/1/19 Student Count | J2: 10/1/19 Student Count | K2: Change in Student Count | L2: Per Pupil | M2: Change in State Cost Allocation | N2: 2/1/19 Student Count | O2: 10/1/19 Student Count | P2: Change in Student Count | Q2: Per Pupil | R2: Change in State Cost Allocation | S2: 2/1/19 Student Count | T2: 10/1/19 Student Count | U2: Change in Student Count | V2: Per Pupil | W2: Change in State Cost Allocation
D4: 1 | E4: =D4+1 -> 2 | F4: 3 | G4: 4 | H4: 5 | I4: 6 | J4: 7 | K4: 8 | L4: 9 | M4: 10 | N4: 11 | O4: 12 | P4: 13 | Q4: 14 | R4: 15 | S4: 16 | T4: 17 | U4: 18 | V4: 19 | W4: 20 | X4: 21
D6: Link in File | F6: Link in File | G6: Link in File | I6: Link in File | J6: Link in File | L6: Link in File | M6: Link in File | O6: Link in File | P6: Link in File | R6: Link in File | S6: Link in File | T6: Link in File | U6: Link in File | V6: Link in File | W6: Link in File | X6: Link in File
A7: 341001 | C7: D'Arbonne Woods | D7: 948 | E7: 977 | F7: 29 | H7: 146347.8771 | I7: 547 | J7: 542 | K7: -5 | M7: -2275.789029 | N7: 75 | O7: 99 | P7: 24 | R7: 111128.8569 | S7: 17 | T7: 20 | U7: 3 | W7: 5591.104694 | X7: 260791
A8: 343001 | C8: Madison Prep | D8: 552 | E8: 570 | F8: 18 | H8: 55145.01098 | I8: 398 | J8: 410 | K8: 12 | M8: 4504.257442 | N8: 35 | O8: 36 | P8: 1 | R8: 2974.945571 | S8: 0 | T8: 0 | U8: 0 | W8: 0 | X8: 62625
A9: 344001 | C9: Int'l High School of N. O. | D9: 508 | E9: 456 | F9: -52 | H9: -177999.8191 | I9: 408 | J9: 349 | K9: -59 | M9: -27170.10287 | N9: 49 | O9: 41 | P9: -8 | R9: -25309.68631 | S9: 0 | T9: 0 | U9: 0 | W9: 0 | X9: -230479
A10: 345001 | C10: University View Academy (90%) | D10: 3000 | E10: 3191 | F10: 191 | H10: 830098.129 | I10: 1825 | J10: 1946 | K10: 121 | M10: 67941.64709 | N10: 347 | O10: 382 | P10: 35 | R10: 148613.0221 | S10: 118 | T10: 139 | U10: 21 | W10: 29847.4817 | X10: 1076501
A11: 346001 | C11: Lake Charles Charter Academy | D11: 920 | E11: 941 | F11: 21 | H11: 70474.26962 | I11: 919 | J11: 941 | K11: 22 | M11: 10373.37161 | N11: 112 | O11: 109 | P11: -3 | R11: -9503.48086 | S11: 16 | T11: 10 | U11: -6 | W11: -7509.914132 | X11: 63835
A12: 347001 | C12: Lycee Francois de la Nouvelle Orleans | D12: 852 | E12: 955 | F12: 103 | H12: 362779.0348 | I12: 382 | J12: 441 | K12: 59 | M12: 27907.77609 | N12: 82 | O12: 103 | P12: 21 | R12: 65565.14847 | S12: 93 | T12: 92 | U12: -1 | W12: -1213.130469 | X12: 455040
A13: 348001 | C13: New Orleans Military/Maritime Academy | D13: 870 | E13: 939 | F13: 69 | H13: 278459.6739 | I13: 664 | J13: 752 | K13: 88 | M13: 42357.41558 | N13: 68 | O13: 85 | P13: 17 | R13: 55615.46802 | S13: 0 | T13: 0 | U13: 0 | W13: 0 | X13: 376432
A14: W18001 | C14: Noble Minds | D14: 67 | E14: 103 | F14: 36 | H14: 126770.7568 | I14: 54 | J14: 85 | K14: 31 | M14: 14683.54236 | N14: 10 | O14: 6 | P14: -4 | R14: -12785.72777 | S14: 0 | T14: 0 | U14: 0 | W14: 0 | X14: 128668
A15: W1A001 | C15: JCFA - East | D15: 264 | E15: 229 | F15: -35 | H15: -130073.4714 | I15: 215 | J15: 170 | K15: -45 | M15: -21218.50745 | N15: 30 | O15: 27 | P15: -3 | R15: -9161.000001 | S15: 0 | T15: 0 | U15: 0 | W15: 0 | X15: -160452
A16: W1B001 | C16: Advantage Charter Academy | D16: 602 | E16: 491 | F16: -111 | H16: -512345.9731 | I16: 540 | J16: 435 | K16: -105 | M16: -63719.61601 | N16: 60 | O16: 51 | P16: -9 | R16: -42470.75941 | S16: 0 | T16: 0 | U16: 0 | W16: 0 | X16: -618536
A17: W1D001 | C17: JCFA - Lafayette | D17: 64 | E17: 68 | F17: 4 | H17: 13248.02791 | I17: 56 | J17: 61 | K17: 5 | M17: 2199.469924 | N17: 14 | O17: 13 | P17: -1 | R17: -6814.163399 | S17: 0 | T17: 0 | U17: 0 | W17: 0 | X17: 8634
A18: W2B001 | C18: Willow Charter Academy | D18: 599 | E18: 612 | F18: 13 | H18: 39589.26985 | I18: 556 | J18: 553 | K18: -3 | M18: -1622.47172 | N18: 72 | O18: 80 | P18: 8 | R18: 26501.64253 | S18: 1 | T18: 0 | U18: -1 | W18: -1817.858175 | X18: 62651
A19: W33001 | C19: Lincoln Prep School | D19: 456 | E19: 477 | F19: 21 | H19: 67538.95317 | I19: 382 | J19: 409 | K19: 27 | M19: 12984.50647 | N19: 72 | O19: 85 | P19: 13 | R19: 42445.82936 | S19: 6 | T19: 4 | U19: -2 | W19: -2915.60893 | X19: 120053
A20: W37001 | C20: Greater Grace | D20: 79 | E20: 76 | F20: -3 | H20: 2293.474085 | I20: 67 | J20: 72 | K20: 5 | M20: 3792.214083 | N20: 19 | O20: 20 | P20: 1 | R20: 2266.996482 | S20: 0 | T20: 0 | U20: 0 | W20: 0 | X20: 8353
A21: W3B001 | C21: Iberville Charter Academy | D21: 270 | E21: 392 | F21: 122 | H21: 548248.271 | I21: 241 | J21: 257 | K21: 16 | M21: 13259.23076 | N21: 34 | O21: 49 | P21: 15 | R21: 55023.96637 | S21: 0 | T21: 1 | U21: 1 | W21: 1067.87683 | X21: 617601
A22: W4A001 | C22: Delta Charter School | D22: 482 | E22: 474 | F22: -8 | H22: -42177.52402 | I22: 282 | J22: 282 | K22: 0 | M22: -759.5122777 | N22: 46 | O22: 51 | P22: 5 | R22: 23385.93525 | S22: 4 | T22: 4 | U22: 0 | W22: 0 | X22: -19551
A23: W4B001 | C23: Lake Charles College Prep | D23: 453 | E23: 504 | F23: 51 | H23: 165941.3265 | I23: 339 | J23: 361 | K23: 22 | M23: 10096.66233 | N23: 52 | O23: 56 | P23: 4 | R23: 12516.52355 | S23: 0 | T23: 0 | U23: 0 | W23: 0 | X23: 188555
A24: W5B001 | C24: Northeast Claiborne Charter | D24: 180 | E24: 180 | F24: 0 | H24: -2482.937395 | I24: 149 | J24: 147 | K24: -2 | M24: -1701.283284 | N24: 22 | O24: 18 | P24: -4 | R24: -18888.68108 | S24: 0 | T24: 0 | U24: 0 | W24: 0 | X24: -23073
A25: W6B001 | C25: Acadiana Renaissance | D25: 892 | E25: 896 | F25: 4 | H25: 21241.93341 | I25: 367 | J25: 345 | K25: -22 | M25: -10361.26431 | N25: 53 | O25: 54 | P25: 1 | R25: 5058.883712 | S25: 41 | T25: 44 | U25: 3 | W25: 4923.320777 | X25: 20863
A26: W7A001 | C26: Louisiana Key Academy | D26: 348 | E26: 380 | F26: 32 | H26: 136818.1878 | I26: 226 | J26: 239 | K26: 13 | M26: 7347.152848 | N26: 211 | O26: 215 | P26: 4 | R26: 31795.07365 | S26: 0 | T26: 0 | U26: 0 | W26: 0 | X26: 175960
A27: W7B001 | C27: Lafayette Renaissance | D27: 906 | E27: 979 | F27: 73 | H27: 247483.8343 | I27: 725 | J27: 841 | K27: 116 | M27: 58075.84747 | N27: 68 | O27: 70 | P27: 2 | R27: 4337.882796 | S27: 15 | T27: 25 | U27: 10 | W27: 13202.01887 | X27: 323099
A28: W8A001 | C28: Impact Charter | D28: 337 | E28: 394 | F28: 57 | H28: 284801.2102 | I28: 292 | J28: 331 | K28: 39 | M28: 26147.46826 | N28: 41 | O28: 37 | P28: -4 | R28: -14747.747 | S28: 0 | T28: 0 | U28: 0 | W28: 0 | X28: 296201
A29: WAG001 | C29: Louisiana Virtual Charter Academy (90%) | D29: 1911 | E29: 1920 | F29: 9 | H29: 53325.32877 | I29: 1599 | J29: 1499 | K29: -100 | M29: -53089.67653 | N29: 255 | O29: 268 | P29: 13 | R29: 52344.48095 | S29: 47 | T29: 55 | U29: 8 | W29: 10770.58955 | X29: 63350
A30: WAK001 | C30: Southwest LA Charter School | D30: 661 | E30: 694 | F30: 33 | H30: 106815.3578 | I30: 617 | J30: 612 | K30: -5 | M30: -2545.251466 | N30: 76 | O30: 81 | P30: 5 | R30: 17184.33304 | S30: 0 | T30: 1 | U30: 1 | W30: 1251.652355 | X30: 122705
A31: WAL001 | C31: J. S. Clark Leadership Academy | D31: 224 | E31: 249 | F31: 25 | H31: 114120.9986 | I31: 224 | J31: 241 | K31: 17 | M31: 11364.67255 | N31: 13 | O31: 12 | P31: -1 | R31: -4544.645437 | S31: 3 | T31: 3 | U31: 0 | W31: 0 | X31: 120941
A32: WAQ001 | C32: Baton Rouge University Prep | D32: 306 | E32: 374 | F32: 68 | H32: 256480.3429 | I32: 302 | J32: 363 | K32: 61 | M32: 29414.57825 | N32: 39 | O32: 51 | P32: 12 | R32: 41047.39152 | S32: 0 | T32: 0 | U32: 0 | W32: 0 | X32: 326943
A33: WAU001 | C33: GEO Prep Academy | D33: 513 | E33: 677 | F33: 164 | H33: 554053.7499 | I33: 451 | J33: 591 | K33: 140 | M33: 60727.52473 | N33: 57 | O33: 76 | P33: 19 | R33: 50382.18392 | S33: 3 | T33: 3 | U33: 0 | W33: 0 | X33: 665163
A34: WBQ001 | C34: New Harmony High School | D34: 45 | E34: 102 | F34: 57 | H34: 192787.2631 | I34: 27 | J34: 76 | K34: 49 | M34: 22774.92769 | N34: 13 | O34: 24 | P34: 11 | R34: 34800.81867 | S34: 0 | T34: 0 | U34: 0 | W34: 0 | X34: 250363
A35: WBR001 | C35: Athlos Academy of Jefferson Parish | D35: 974 | E35: 1131 | F35: 157 | H35: 599798.8392 | I35: 871 | J35: 978 | K35: 107 | M35: 52216.15412 | N35: 101 | O35: 110 | P35: 9 | R35: 29520.47402 | S35: 14 | T35: 32 | U35: 18 | W35: 23668.73306 | X35: 705204
A36: WJ5001 | C36: Collegiate Academies | D36: 251 | E36: 419 | F36: 168 | H36: 610749.9925 | I36: 224 | J36: 378 | K36: 154 | M36: 70935.04337 | N36: 46 | O36: 66 | P36: 20 | R36: 65385.00489 | S36: 0 | T36: 0 | U36: 0 | W36: 0 | X36: 747070
A37: WZ8001 | C37: GEO Prep Mid-City of Great BR | D37: 636 | E37: 715 | F37: 79 | H37: 282394.6017 | I37: 567 | J37: 645 | K37: 78 | M37: 35919.47642 | N37: 62 | O37: 70 | P37: 8 | R37: 25764.31407 | S37: 0 | T37: 0 | U37: 0 | W37: 0 | X37: 344078
A38: WBX001 | C38: GEO Next Generation HS | D38: 0 | E38: 96 | F38: 96 | H38: 338380.3614 | I38: 0 | J38: 74 | K38: 74 | M38: 32863.60507 | N38: 0 | O38: 7 | P38: 7 | R38: 20824.61899 | S38: 0 | T38: 0 | U38: 0 | W38: 0 | X38: 392069
A39: WBY001 | C39: Red River Charter Academy | D39: 0 | E39: 196 | F39: 196 | H39: 920868.1992 | I39: 0 | J39: 145 | K39: 145 | M39: 102639.5523 | N39: 0 | O39: 7 | P39: 7 | R39: 33784.17866 | S39: 0 | T39: 1 | U39: 1 | W39: 1930.524495 | X39: 1059222
A40: State Total | D40: =SUM(D7:D39) -> 19170 | E40: =SUM(E7:E39) -> 20857 | F40: =SUM(F7:F39) -> 1687 | H40: =SUM(H7:H39) -> 6561974.551 | I40: =SUM(I7:I39) -> 14516 | J40: =SUM(J7:J39) -> 15571 | K40: =SUM(K7:K39) -> 1055 | M40: =SUM(M7:M39) -> 536062.6219 | N40: =SUM(N7:N39) -> 2234 | O40: =SUM(O7:O39) -> 2459 | P40: =SUM(P7:P39) -> 225 | R40: =SUM(R7:R39) -> 814042.0822 | S40: =SUM(S7:S39) -> 378 | T40: =SUM(T7:T39) -> 434 | U40: =SUM(U7:U39) -> 56 | W40: =SUM(W7:W39) -> 78796.79063 | X40: =SUM(X7:X39) -> 7990879

Sheet Feb_MidYear Adj
A1: School System | D1: Oct. 1, 2019 MFP Funded Membership (Per SIS) | E1: Feb. 1, 2020 MFP Funded Membership (Per SIS) | F1: Change in MFP Funded Membership (Oct. 1, 2019 to Feb. 1, 2020) | G1: City/Parish Per Pupil (After State Cost Allocations to Other Public Schools) (Half the Per Pupil) | H1: Change in Total State Cost Allocation
D4: 1 | E4: =D4+1 -> 2 | F4: 3 | G4: =F4+1 -> 4 | H4: 5
D6: Input | E6: Per Pupil ($E$3) Resolution | F6: Input | G6: Per Pupil ($I$3) Resolution | H6: Formula
A7: 1 | C7: Acadia | D7: =[2]Base!$C7 -> 9448 | E7: =[5]Base!$C7 -> 9345 | F7: =E7-D7 -> -103 | G7: ='Per Pupil Summary'!$P7*0.5 -> 2884.5 | H7: =ROUND(F7*G7,0) -> -297104
A8: 2 | C8: Allen | D8: =[2]Base!$C8 -> 3981 | E8: =[5]Base!$C8 -> 3918 | F8: -63 | G8: ='Per Pupil Summary'!$P8*0.5 -> 3736.5 | H8: =ROUND(F8*G8,0) -> -235400
A9: 3 | C9: Ascension | D9: =[2]Base!$C9 -> 22709 | E9: =[5]Base!$C9 -> 22555 | F9: -154 | G9: ='Per Pupil Summary'!$P9*0.5 -> 2396.5 | H9: =ROUND(F9*G9,0) -> -369061
A10: 4 | C10: Assumption | D10: =[2]Base!$C10 -> 3038 | E10: =[5]Base!$C10 -> 3039 | F10: 1 | G10: ='Per Pupil Summary'!$P10*0.5 -> 3396 | H10: =ROUND(F10*G10,0) -> 3396
A11: 5 | C11: Avoyelles | D11: =[2]Base!$C11 -> 4928 | E11: =[5]Base!$C11 -> 4904 | F11: -24 | G11: ='Per Pupil Summary'!$P11*0.5 -> 3077.5 | H11: =ROUND(F11*G11,0) -> -73860
A12: 6 | C12: Beauregard | D12: =[2]Base!$C12 -> 5749 | E12: =[5]Base!$C12 -> 5746 | F12: -3 | G12: ='Per Pupil Summary'!$P12*0.5 -> 3166.5 | H12: =ROUND(F12*G12,0) -> -9500
A13: 7 | C13: Bienville | D13: =[2]Base!$C13 -> 2077 | E13: =[5]Base!$C13 -> 2029 | F13: -48 | G13: ='Per Pupil Summary'!$P13*0.5 -> 1922 | H13: =ROUND(F13*G13,0) -> -92256
A14: 8 | C14: Bossier | D14: =[2]Base!$C14 -> 22393 | E14: =[5]Base!$C14 -> 22266 | F14: -127 | G14: ='Per Pupil Summary'!$P14*0.5 -> 2951.5 | H14: =ROUND(F14*G14,0) -> -374841
A15: 9 | C15: Caddo | D15: =[2]Base!$C15 -> 36871 | E15: =[5]Base!$C15 -> 36752 | F15: -119 | G15: ='Per Pupil Summary'!$P15*0.5 -> 2768.5 | H15: =ROUND(F15*G15,0) -> -329452
A16: 10 | C16: Calcasieu | D16: =[2]Base!$C16 -> 30685 | E16: =[5]Base!$C16 -> 30476 | F16: -209 | G16: ='Per Pupil Summary'!$P16*0.5 -> 2041.5 | H16: =ROUND(F16*G16,0) -> -426674
A17: 11 | C17: Caldwell | D17: =[2]Base!$C17 -> 1541 | E17: =[5]Base!$C17 -> 1536 | F17: -5 | G17: ='Per Pupil Summary'!$P17*0.5 -> 3954 | H17: =ROUND(F17*G17,0) -> -19770
A18: 12 | C18: Cameron | D18: =[2]Base!$C18 -> 1292 | E18: =[5]Base!$C18 -> 1278 | F18: -14 | G18: ='Per Pupil Summary'!$P18*0.5 -> 1391.5 | H18: =ROUND(F18*G18,0) -> -19481
A19: 13 | C19: Catahoula | D19: =[2]Base!$C19 -> 1115 | E19: =[5]Base!$C19 -> 1101 | F19: -14 | G19: ='Per Pupil Summary'!$P19*0.5 -> 3748.5 | H19: =ROUND(F19*G19,0) -> -52479
A20: 14 | C20: Claiborne | D20: =[2]Base!$C20 -> 1595 | E20: =[5]Base!$C20 -> 1603 | F20: 8 | G20: ='Per Pupil Summary'!$P20*0.5 -> 3620.5 | H20: =ROUND(F20*G20,0) -> 28964
A21: 15 | C21: Concordia | D21: =[2]Base!$C21 -> 3176 | E21: =[5]Base!$C21 -> 3177 | F21: 1 | G21: ='Per Pupil Summary'!$P21*0.5 -> 3488 | H21: =ROUND(F21*G21,0) -> 3488
A22: 16 | C22: DeSoto | D22: =[2]Base!$C22 -> 4772 | E22: =[5]Base!$C22 -> 4783 | F22: 11 | G22: ='Per Pupil Summary'!$P22*0.5 -> 1434.5 | H22: =ROUND(F22*G22,0) -> 15780
A23: 17 | C23: East Baton Rouge | D23: =[2]Base!$C23 -> 39667 | E23: =[5]Base!$C23 -> 39459 | F23: -208 | G23: ='Per Pupil Summary'!$P23*0.5 -> 2105.5 | H23: =ROUND(F23*G23,0) -> -437944
A24: 18 | C24: East Carroll | D24: =[2]Base!$C24 -> 890 | E24: =[5]Base!$C24 -> 871 | F24: -19 | G24: ='Per Pupil Summary'!$P24*0.5 -> 3605 | H24: =ROUND(F24*G24,0) -> -68495
A25: 19 | C25: East Feliciana | D25: =[2]Base!$C25 -> 1720 | E25: =[5]Base!$C25 -> 1724 | F25: 4 | G25: ='Per Pupil Summary'!$P25*0.5 -> 2953.5 | H25: =ROUND(F25*G25,0) -> 11814
A26: 20 | C26: Evangeline | D26: =[2]Base!$C26 -> 5523 | E26: =[5]Base!$C26 -> 5516 | F26: -7 | G26: ='Per Pupil Summary'!$P26*0.5 -> 3149.5 | H26: =ROUND(F26*G26,0) -> -22047
A27: 21 | C27: Franklin | D27: =[2]Base!$C27 -> 2876 | E27: =[5]Base!$C27 -> 2859 | F27: -17 | G27: ='Per Pupil Summary'!$P27*0.5 -> 3508.5 | H27: =ROUND(F27*G27,0) -> -59645
A28: 22 | C28: Grant | D28: =[2]Base!$C28 -> 2863 | E28: =[5]Base!$C28 -> 2813 | F28: -50 | G28: ='Per Pupil Summary'!$P28*0.5 -> 3753.5 | H28: =ROUND(F28*G28,0) -> -187675
A29: 23 | C29: Iberia | D29: =[2]Base!$C29 -> 12035 | E29: =[5]Base!$C29 -> 11902 | F29: -133 | G29: ='Per Pupil Summary'!$P29*0.5 -> 3062 | H29: =ROUND(F29*G29,0) -> -407246
A30: 24 | C30: Iberville | D30: =[2]Base!$C30 -> 4108 | E30: =[5]Base!$C30 -> 4120 | F30: 12 | G30: ='Per Pupil Summary'!$P30*0.5 -> 1666.5 | H30: =ROUND(F30*G30,0) -> 19998
A31: 25 | C31: Jackson | D31: =[2]Base!$C31 -> 2195 | E31: =[5]Base!$C31 -> 2168 | F31: -27 | G31: ='Per Pupil Summary'!$P31*0.5 -> 2748 | H31: =ROUND(F31*G31,0) -> -74196
A32: 26 | C32: Jefferson | D32: =[2]Base!$C32 -> 48631 | E32: =[5]Base!$C32 -> 48318 | F32: -313 | G32: ='Per Pupil Summary'!$P32*0.5 -> 2413 | H32: =ROUND(F32*G32,0) -> -755269
A33: 27 | C33: Jefferson Davis | D33: =[2]Base!$C33 -> 5453 | E33: =[5]Base!$C33 -> 5466 | F33: 13 | G33: ='Per Pupil Summary'!$P33*0.5 -> 3338.5 | H33: =ROUND(F33*G33,0) -> 43401
A34: 28 | C34: Lafayette | D34: =[2]Base!$C34 -> 30878 | E34: =[5]Base!$C34 -> 30996 | F34: 118 | G34: ='Per Pupil Summary'!$P34*0.5 -> 2152 | H34: =ROUND(F34*G34,0) -> 253936
A35: 29 | C35: Lafourche | D35: =[2]Base!$C35 -> 14140 | E35: =[5]Base!$C35 -> 13945 | F35: -195 | G35: ='Per Pupil Summary'!$P35*0.5 -> 2584 | H35: =ROUND(F35*G35,0) -> -503880
A36: 30 | C36: LaSalle | D36: =[2]Base!$C36 -> 2504 | E36: =[5]Base!$C36 -> 2499 | F36: -5 | G36: ='Per Pupil Summary'!$P36*0.5 -> 3424 | H36: =ROUND(F36*G36,0) -> -17120
A37: 31 | C37: Lincoln | D37: =[2]Base!$C37 -> 5793 | E37: =[5]Base!$C37 -> 5767 | F37: -26 | G37: ='Per Pupil Summary'!$P37*0.5 -> 2528 | H37: =ROUND(F37*G37,0) -> -65728
A38: 32 | C38: Livingston | D38: =[2]Base!$C38 -> 25567 | E38: =[5]Base!$C38 -> 25546 | F38: -21 | G38: ='Per Pupil Summary'!$P38*0.5 -> 3234.5 | H38: =ROUND(F38*G38,0) -> -67925
A39: 33 | C39: Madison | D39: =[2]Base!$C39 -> 1119 | E39: =[5]Base!$C39 -> 1108 | F39: -11 | G39: ='Per Pupil Summary'!$P39*0.5 -> 3371 | H39: =ROUND(F39*G39,0) -> -37081
A40: 34 | C40: Morehouse | D40: =[2]Base!$C40 -> 3526 | E40: =[5]Base!$C40 -> 3528 | F40: 2 | G40: ='Per Pupil Summary'!$P40*0.5 -> 3566.5 | H40: =ROUND(F40*G40,0) -> 7133
A41: 35 | C41: Natchitoches | D41: =[2]Base!$C41 -> 5643 | E41: =[5]Base!$C41 -> 5585 | F41: -58 | G41: ='Per Pupil Summary'!$P41*0.5 -> 2804.5 | H41: =ROUND(F41*G41,0) -> -162661
A42: 36 | C42: Orleans | D42: =[2]Base!$C42 -> 45110 | E42: =[5]Base!$C42 -> 45001 | F42: -109 | G42: ='Per Pupil Summary'!$P42*0.5 -> 2178 | H42: =ROUND(F42*G42,0) -> -237402
A43: 37 | C43: Ouachita | D43: =[2]Base!$C43 -> 18590 | E43: =[5]Base!$C43 -> 18472 | F43: -118 | G43: ='Per Pupil Summary'!$P43*0.5 -> 3234 | H43: =ROUND(F43*G43,0) -> -381612
A44: 38 | C44: Plaquemines | D44: =[2]Base!$C44 -> 3845 | E44: =[5]Base!$C44 -> 3827 | F44: -18 | G44: ='Per Pupil Summary'!$P44*0.5 -> 1405 | H44: =ROUND(F44*G44,0) -> -25290
A45: 39 | C45: Pointe Coupee | D45: =[2]Base!$C45 -> 2606 | E45: =[5]Base!$C45 -> 2605 | F45: -1 | G45: ='Per Pupil Summary'!$P45*0.5 -> 1877.5 | H45: =ROUND(F45*G45,0) -> -1878
A46: 40 | C46: Rapides | D46: =[2]Base!$C46 -> 21769 | E46: =[5]Base!$C46 -> 21699 | F46: -70 | G46: ='Per Pupil Summary'!$P46*0.5 -> 3059.5 | H46: =ROUND(F46*G46,0) -> -214165
A47: 41 | C47: Red River | D47: =[2]Base!$C47 -> 1308 | E47: =[5]Base!$C47 -> 1291 | F47: -17 | G47: ='Per Pupil Summary'!$P47*0.5 -> 1896 | H47: =ROUND(F47*G47,0) -> -32232
A48: 42 | C48: Richland | D48: =[2]Base!$C48 -> 2711 | E48: =[5]Base!$C48 -> 2705 | F48: -6 | G48: ='Per Pupil Summary'!$P48*0.5 -> 2791 | H48: =ROUND(F48*G48,0) -> -16746
A49: 43 | C49: Sabine | D49: =[2]Base!$C49 -> 4033 | E49: =[5]Base!$C49 -> 3998 | F49: -35 | G49: ='Per Pupil Summary'!$P49*0.5 -> 3372 | H49: =ROUND(F49*G49,0) -> -118020
A50: 44 | C50: St. Bernard | D50: =[2]Base!$C50 -> 7514 | E50: =[5]Base!$C50 -> 7398 | F50: -116 | G50: ='Per Pupil Summary'!$P50*0.5 -> 2949.5 | H50: =ROUND(F50*G50,0) -> -342142
A51: 45 | C51: St. Charles | D51: =[2]Base!$C51 -> 9421 | E51: =[5]Base!$C51 -> 9433 | F51: 12 | G51: ='Per Pupil Summary'!$P51*0.5 -> 1590 | H51: =ROUND(F51*G51,0) -> 19080
A52: 46 | C52: St. Helena | D52: =[2]Base!$C52 -> 1156 | E52: =[5]Base!$C52 -> 1165 | F52: 9 | G52: ='Per Pupil Summary'!$P52*0.5 -> 4072.5 | H52: =ROUND(F52*G52,0) -> 36653
A53: 47 | C53: St. James | D53: =[2]Base!$C53 -> 3451 | E53: =[5]Base!$C53 -> 3450 | F53: -1 | G53: ='Per Pupil Summary'!$P53*0.5 -> 1702.5 | H53: =ROUND(F53*G53,0) -> -1703
A54: 48 | C54: St. John the Baptist | D54: =[2]Base!$C54 -> 5696 | E54: =[5]Base!$C54 -> 5715 | F54: 19 | G54: ='Per Pupil Summary'!$P54*0.5 -> 2640 | H54: =ROUND(F54*G54,0) -> 50160
A55: 49 | C55: St. Landry | D55: =[2]Base!$C55 -> 12530 | E55: =[5]Base!$C55 -> 12453 | F55: -77 | G55: ='Per Pupil Summary'!$P55*0.5 -> 2970 | H55: =ROUND(F55*G55,0) -> -228690
A56: 50 | C56: St. Martin | D56: =[2]Base!$C56 -> 7329 | E56: =[5]Base!$C56 -> 7236 | F56: -93 | G56: ='Per Pupil Summary'!$P56*0.5 -> 2912.5 | H56: =ROUND(F56*G56,0) -> -270863
A57: 51 | C57: St. Mary | D57: =[2]Base!$C57 -> 8173 | E57: =[5]Base!$C57 -> 8145 | F57: -28 | G57: ='Per Pupil Summary'!$P57*0.5 -> 2986 | H57: =ROUND(F57*G57,0) -> -83608
A58: 52 | C58: St. Tammany | D58: =[2]Base!$C58 -> 37682 | E58: =[5]Base!$C58 -> 37603 | F58: -79 | G58: ='Per Pupil Summary'!$P58*0.5 -> 2920.5 | H58: =ROUND(F58*G58,0) -> -230720
A59: 53 | C59: Tangipahoa | D59: =[2]Base!$C59 -> 19078 | E59: =[5]Base!$C59 -> 19019 | F59: -59 | G59: ='Per Pupil Summary'!$P59*0.5 -> 2991.5 | H59: =ROUND(F59*G59,0) -> -176499
A60: 54 | C60: Tensas | D60: =[2]Base!$C60 -> 393 | E60: =[5]Base!$C60 -> 403 | F60: 10 | G60: ='Per Pupil Summary'!$P60*0.5 -> 3303.5 | H60: =ROUND(F60*G60,0) -> 33035
A61: 55 | C61: Terrebonne | D61: =[2]Base!$C61 -> 16329 | E61: =[5]Base!$C61 -> 16352 | F61: 23 | G61: ='Per Pupil Summary'!$P61*0.5 -> 2777 | H61: =ROUND(F61*G61,0) -> 63871
A62: 56 | C62: Union | D62: =[2]Base!$C62 -> 1912 | E62: =[5]Base!$C62 -> 1916 | F62: 4 | G62: ='Per Pupil Summary'!$P62*0.5 -> 3538.5 | H62: =ROUND(F62*G62,0) -> 14154
A63: 57 | C63: Vermilion | D63: =[2]Base!$C63 -> 9292 | E63: =[5]Base!$C63 -> 9253 | F63: -39 | G63: ='Per Pupil Summary'!$P63*0.5 -> 3019 | H63: =ROUND(F63*G63,0) -> -117741
A64: 58 | C64: Vernon | D64: =[2]Base!$C64 -> 8029 | E64: =[5]Base!$C64 -> 7971 | F64: -58 | G64: ='Per Pupil Summary'!$P64*0.5 -> 3366 | H64: =ROUND(F64*G64,0) -> -195228
A65: 59 | C65: Washington | D65: =[2]Base!$C65 -> 4883 | E65: =[5]Base!$C65 -> 4937 | F65: 54 | G65: ='Per Pupil Summary'!$P65*0.5 -> 3661 | H65: =ROUND(F65*G65,0) -> 197694
A66: 60 | C66: Webster | D66: =[2]Base!$C66 -> 5797 | E66: =[5]Base!$C66 -> 5795 | F66: -2 | G66: ='Per Pupil Summary'!$P66*0.5 -> 3112.5 | H66: =ROUND(F66*G66,0) -> -6225
A67: 61 | C67: West Baton Rouge | D67: =[2]Base!$C67 -> 3662 | E67: =[5]Base!$C67 -> 3654 | F67: -8 | G67: ='Per Pupil Summary'!$P67*0.5 -> 1888.5 | H67: =ROUND(F67*G67,0) -> -15108
A68: 62 | C68: West Carroll | D68: =[2]Base!$C68 -> 1884 | E68: =[5]Base!$C68 -> 1892 | F68: 8 | G68: ='Per Pupil Summary'!$P68*0.5 -> 3401 | H68: =ROUND(F68*G68,0) -> 27208
A69: 63 | C69: West Feliciana | D69: =[2]Base!$C69 -> 2115 | E69: =[5]Base!$C69 -> 2090 | F69: -25 | G69: ='Per Pupil Summary'!$P69*0.5 -> 2337.5 | H69: =ROUND(F69*G69,0) -> -58438
A70: 64 | C70: Winn | D70: =[2]Base!$C70 -> 2040 | E70: =[5]Base!$C70 -> 2019 | F70: -21 | G70: ='Per Pupil Summary'!$P70*0.5 -> 3561 | H70: =ROUND(F70*G70,0) -> -74781
A71: 65 | C71: City of Monroe | D71: =[2]Base!$C71 -> 7832 | E71: =[5]Base!$C71 -> 7928 | F71: =E71-D71 -> 96 | G71: ='Per Pupil Summary'!$P71*0.5 -> 2903.5 | H71: =ROUND(F71*G71,0) -> 278736
A72: 66 | C72: City of Bogalusa | D72: =[2]Base!$C72 -> 1838 | E72: =[5]Base!$C72 -> 1822 | F72: -16 | G72: ='Per Pupil Summary'!$P72*0.5 -> 3774 | H72: =ROUND(F72*G72,0) -> -60384
A73: 67 | C73: Zachary Community | D73: =[2]Base!$C73 -> 5372 | E73: =[5]Base!$C73 -> 5366 | F73: -6 | G73: ='Per Pupil Summary'!$P73*0.5 -> 2986.5 | H73: =ROUND(F73*G73,0) -> -17919
A74: 68 | C74: City of Baker | D74: =[2]Base!$C74 -> 1242 | E74: =[5]Base!$C74 -> 1208 | F74: -34 | G74: ='Per Pupil Summary'!$P74*0.5 -> 3829.5 | H74: =ROUND(F74*G74,0) -> -130203
A75: 69 | C75: Central Community | D75: =[2]Base!$C75 -> 4708 | E75: =[5]Base!$C75 -> 4749 | F75: 41 | G75: ='Per Pupil Summary'!$P75*0.5 -> 3390 | H75: =ROUND(F75*G75,0) -> 138990
C76: Total City/Parish | D76: =SUM(D7:D75) -> 659831 | E76: =SUM(E7:E75) -> 657268 | F76: =SUM(F7:F75) -> -2563 | H76: =SUM(H7:H75) -> -6956896
A78: 318001 | C78: LSU Lab School | D78: =[2]Base!$BD$76 -> 1416 | E78: =[5]Base!$BD$76 -> 1420 | F78: =E78-D78 -> 4 | G78: 2633.901474 | H78: =ROUND(F78*G78,0) -> 10536
A79: 319001 | C79: Southern Lab School | D79: =[2]Base!$BE$76 -> 569 | E79: =[5]Base!$BE$76 -> 513 | F79: =E79-D79 -> -56 | G79: 2680.866474 | H79: =ROUND(F79*G79,0) -> -150129
A80: 302006 | C80: LA School for Math, Science and the Arts | D80: =Feb_LSMSA!C76 -> 358 | E80: =Feb_LSMSA!D76 -> 330 | F80: =E80-D80 -> -28 | H80: =Feb_LSMSA!G76 -> -130222
A81: 334001 | C81: New Orleans Center for Creative Arts | D81: =Feb_NOCCA!C76 -> 234 | E81: =Feb_NOCCA!D76 -> 229 | F81: =E81-D81 -> -5 | H81: =Feb_NOCCA!G76 -> -23302
A82: 3C1001 | C82: Thrive | D82: =Feb_Thrive!C76 -> 173 | E82: =Feb_Thrive!D76 -> 170 | F82: =E82-D82 -> -3 | H82: =Feb_Thrive!G76 -> -15841
C84: Total Lab & State Approved Schools | D84: =SUM(D78:D83) -> 2750 | E84: =SUM(E78:E83) -> 2662 | F84: =SUM(F78:F83) -> -88 | H84: =SUM(H78:H83) -> -308958
A86: 321001 | C86: New Vision Learning | D86: =VLOOKUP($A86,Feb_Legacy!$A$7:$Y$13,3,FALSE) -> 269 | E86: =VLOOKUP($A86,Feb_Legacy!$A$7:$Y$13,4,FALSE) -> 256 | F86: =E86-D86 -> -13 | H86: =VLOOKUP($A86,Feb_Legacy!$A$7:$Y$13,25,FALSE) -> -72200
A87: 329001 | C87: Glencoe Charter School | D87: =VLOOKUP($A87,Feb_Legacy!$A$7:$Y$13,3,FALSE) -> 348 | E87: =VLOOKUP($A87,Feb_Legacy!$A$7:$Y$13,4,FALSE) -> 346 | F87: -2 | H87: =VLOOKUP($A87,Feb_Legacy!$A$7:$Y$13,25,FALSE) -> -9589
A88: 331001 | C88: International School of LA | D88: =VLOOKUP($A88,Feb_Legacy!$A$7:$Y$13,3,FALSE) -> 1401 | E88: =VLOOKUP($A88,Feb_Legacy!$A$7:$Y$13,4,FALSE) -> 1376 | F88: -25 | H88: =VLOOKUP($A88,Feb_Legacy!$A$7:$Y$13,25,FALSE) -> -105782
A89: 333001 | C89: Avoyelles Public Charter School | D89: =VLOOKUP($A89,Feb_Legacy!$A$7:$Y$13,3,FALSE) -> 737 | E89: =VLOOKUP($A89,Feb_Legacy!$A$7:$Y$13,4,FALSE) -> 722 | F89: -15 | H89: =VLOOKUP($A89,Feb_Legacy!$A$7:$Y$13,25,FALSE) -> -58312
A90: 336001 | C90: Delhi Charter School | D90: =VLOOKUP($A90,Feb_Legacy!$A$7:$Y$13,3,FALSE) -> 846 | E90: =VLOOKUP($A90,Feb_Legacy!$A$7:$Y$13,4,FALSE) -> 821 | F90: -25 | H90: =VLOOKUP($A90,Feb_Legacy!$A$7:$Y$13,25,FALSE) -> -116776
A91: 337001 | C91: Belle Chasse Academy | D91: =VLOOKUP($A91,Feb_Legacy!$A$7:$Y$13,3,FALSE) -> 912 | E91: =VLOOKUP($A91,Feb_Legacy!$A$7:$Y$13,4,FALSE) -> 931 | F91: 19 | H91: =VLOOKUP($A91,Feb_Legacy!$A$7:$Y$13,25,FALSE) -> 119265
A92: 340001 | C92: The MAX Charter School | D92: =VLOOKUP($A92,Feb_Legacy!$A$7:$Y$13,3,FALSE) -> 120 | E92: =VLOOKUP($A92,Feb_Legacy!$A$7:$Y$13,4,FALSE) -> 119 | F92: -1 | H92: =VLOOKUP($A92,Feb_Legacy!$A$7:$Y$13,25,FALSE) -> -13684
C93: Total Legacy Type 2 Charter Schools | D93: =SUM(D86:D92) -> 4633 | E93: =SUM(E86:E92) -> 4571 | F93: =SUM(F86:F92) -> -62 | H93: =SUM(H86:H92) -> -257078
A95: 341001 | C95: D'Arbonne Woods | D95: =VLOOKUP($A95,'Feb_New Type 2'!$A$7:$X$39,4,FALSE) -> 977 | E95: =VLOOKUP($A95,'Feb_New Type 2'!$A$7:$X$39,5,FALSE) -> 973 | F95: =E95-D95 -> -4 | H95: =VLOOKUP($A95,'Feb_New Type 2'!$A$7:$X$39,24,FALSE) -> 6757
A96: 343001 | C96: Madison Prep | D96: =VLOOKUP($A96,'Feb_New Type 2'!$A$7:$X$39,4,FALSE) -> 570 | E96: =VLOOKUP($A96,'Feb_New Type 2'!$A$7:$X$39,5,FALSE) -> 569 | F96: =E96-D96 -> -1 | H96: =VLOOKUP($A96,'Feb_New Type 2'!$A$7:$X$39,24,FALSE) -> 9472
A97: 344001 | C97: Int'l High School of N. O. | D97: =VLOOKUP($A97,'Feb_New Type 2'!$A$7:$X$39,4,FALSE) -> 456 | E97: =VLOOKUP($A97,'Feb_New Type 2'!$A$7:$X$39,5,FALSE) -> 443 | F97: -13 | H97: =VLOOKUP($A97,'Feb_New Type 2'!$A$7:$X$39,24,FALSE) -> -24375
A98: 345001 | C98: University View Academy | D98: =VLOOKUP($A98,'Feb_New Type 2'!$A$7:$X$39,4,FALSE) -> 3191 | E98: =VLOOKUP($A98,'Feb_New Type 2'!$A$7:$X$39,5,FALSE) -> 3227 | F98: 36 | H98: =VLOOKUP($A98,'Feb_New Type 2'!$A$7:$X$39,24,FALSE) -> 109060
A99: 346001 | C99: Lake Charles Charter Academy | D99: =VLOOKUP($A99,'Feb_New Type 2'!$A$7:$X$39,4,FALSE) -> 941 | E99: =VLOOKUP($A99,'Feb_New Type 2'!$A$7:$X$39,5,FALSE) -> 917 | F99: -24 | H99: =VLOOKUP($A99,'Feb_New Type 2'!$A$7:$X$39,24,FALSE) -> -51549
A100: 347001 | C100: Lycee Francois de la Nouvelle Orleans | D100: =VLOOKUP($A100,'Feb_New Type 2'!$A$7:$X$39,4,FALSE) -> 955 | E100: =VLOOKUP($A100,'Feb_New Type 2'!$A$7:$X$39,5,FALSE) -> 939 | F100: -16 | H100: =VLOOKUP($A100,'Feb_New Type 2'!$A$7:$X$39,24,FALSE) -> -9255
A101: 348001 | C101: New Orleans Military/Maritime Acdmy | D101: =VLOOKUP($A101,'Feb_New Type 2'!$A$7:$X$39,4,FALSE) -> 939 | E101: =VLOOKUP($A101,'Feb_New Type 2'!$A$7:$X$39,5,FALSE) -> 957 | F101: 18 | H101: =VLOOKUP($A101,'Feb_New Type 2'!$A$7:$X$39,24,FALSE) -> 45046
A102: W18001 | C102: Noble Minds | D102: =VLOOKUP($A102,'Feb_New Type 2'!$A$7:$X$39,4,FALSE) -> 103 | E102: =VLOOKUP($A102,'Feb_New Type 2'!$A$7:$X$39,5,FALSE) -> 97 | F102: -6 | H102: =VLOOKUP($A102,'Feb_New Type 2'!$A$7:$X$39,24,FALSE) -> 11973
A103: W1A001 | C103: JCFA - East | D103: =VLOOKUP($A103,'Feb_New Type 2'!$A$7:$X$39,4,FALSE) -> 229 | E103: =VLOOKUP($A103,'Feb_New Type 2'!$A$7:$X$39,5,FALSE) -> 217 | F103: -12 | H103: =VLOOKUP($A103,'Feb_New Type 2'!$A$7:$X$39,24,FALSE) -> -11371
A104: W1B001 | C104: Advantage Charter Academy | D104: =VLOOKUP($A104,'Feb_New Type 2'!$A$7:$X$39,4,FALSE) -> 491 | E104: =VLOOKUP($A104,'Feb_New Type 2'!$A$7:$X$39,5,FALSE) -> 488 | F104: -3 | H104: =VLOOKUP($A104,'Feb_New Type 2'!$A$7:$X$39,24,FALSE) -> 5997
A105: W1D001 | C105: JCFA - Lafayette | D105: =VLOOKUP($A105,'Feb_New Type 2'!$A$7:$X$39,4,FALSE) -> 68 | E105: =VLOOKUP($A105,'Feb_New Type 2'!$A$7:$X$39,5,FALSE) -> 65 | F105: -3 | H105: =VLOOKUP($A105,'Feb_New Type 2'!$A$7:$X$39,24,FALSE) -> -7946
A106: W2B001 | C106: Willow Charter Academy | D106: =VLOOKUP($A106,'Feb_New Type 2'!$A$7:$X$39,4,FALSE) -> 612 | E106: =VLOOKUP($A106,'Feb_New Type 2'!$A$7:$X$39,5,FALSE) -> 595 | F106: -17 | H106: =VLOOKUP($A106,'Feb_New Type 2'!$A$7:$X$39,24,FALSE) -> -41700
A107: W33001 | C107: Lincoln Prep School | D107: =VLOOKUP($A107,'Feb_New Type 2'!$A$7:$X$39,4,FALSE) -> 477 | E107: =VLOOKUP($A107,'Feb_New Type 2'!$A$7:$X$39,5,FALSE) -> 475 | F107: -2 | H107: =VLOOKUP($A107,'Feb_New Type 2'!$A$7:$X$39,24,FALSE) -> 27044
A108: W37001 | C108: Greater Grace Charter Academy | D108: =VLOOKUP($A108,'Feb_New Type 2'!$A$7:$X$39,4,FALSE) -> 76 | E108: =VLOOKUP($A108,'Feb_New Type 2'!$A$7:$X$39,5,FALSE) -> 69 | F108: -7 | H108: =VLOOKUP($A108,'Feb_New Type 2'!$A$7:$X$39,24,FALSE) -> -15387
A109: W3B001 | C109: Iberville Charter Academy | D109: =VLOOKUP($A109,'Feb_New Type 2'!$A$7:$X$39,4,FALSE) -> 392 | E109: =VLOOKUP($A109,'Feb_New Type 2'!$A$7:$X$39,5,FALSE) -> 396 | F109: 4 | H109: =VLOOKUP($A109,'Feb_New Type 2'!$A$7:$X$39,24,FALSE) -> 13494
A110: W4A001 | C110: Delta Charter School | D110: =VLOOKUP($A110,'Feb_New Type 2'!$A$7:$X$39,4,FALSE) -> 474 | E110: =VLOOKUP($A110,'Feb_New Type 2'!$A$7:$X$39,5,FALSE) -> 464 | F110: -10 | H110: =VLOOKUP($A110,'Feb_New Type 2'!$A$7:$X$39,24,FALSE) -> -28955
A111: W4B001 | C111: Lake Charles College Prep | D111: =VLOOKUP($A111,'Feb_New Type 2'!$A$7:$X$39,4,FALSE) -> 504 | E111: =VLOOKUP($A111,'Feb_New Type 2'!$A$7:$X$39,5,FALSE) -> 494 | F111: -10 | H111: =VLOOKUP($A111,'Feb_New Type 2'!$A$7:$X$39,24,FALSE) -> -24284
A112: W5B001 | C112: Northeast Claiborne Charter | D112: =VLOOKUP($A112,'Feb_New Type 2'!$A$7:$X$39,4,FALSE) -> 180 | E112: =VLOOKUP($A112,'Feb_New Type 2'!$A$7:$X$39,5,FALSE) -> 184 | F112: 4 | H112: =VLOOKUP($A112,'Feb_New Type 2'!$A$7:$X$39,24,FALSE) -> 20490
A113: W6B001 | C113: Acadiana Renaissance | D113: =VLOOKUP($A113,'Feb_New Type 2'!$A$7:$X$39,4,FALSE) -> 896 | E113: =VLOOKUP($A113,'Feb_New Type 2'!$A$7:$X$39,5,FALSE) -> 896 | F113: 0 | H113: =VLOOKUP($A113,'Feb_New Type 2'!$A$7:$X$39,24,FALSE) -> -6714
A114: W7A001 | C114: Louisiana Key Academy | D114: =VLOOKUP($A114,'Feb_New Type 2'!$A$7:$X$39,4,FALSE) -> 380 | E114: =VLOOKUP($A114,'Feb_New Type 2'!$A$7:$X$39,5,FALSE) -> 390 | F114: 10 | H114: =VLOOKUP($A114,'Feb_New Type 2'!$A$7:$X$39,24,FALSE) -> 57300
A115: W7B001 | C115: Lafayette Renaissance | D115: =VLOOKUP($A115,'Feb_New Type 2'!$A$7:$X$39,4,FALSE) -> 979 | E115: =VLOOKUP($A115,'Feb_New Type 2'!$A$7:$X$39,5,FALSE) -> 968 | F115: -11 | H115: =VLOOKUP($A115,'Feb_New Type 2'!$A$7:$X$39,24,FALSE) -> -25958
A116: W8A001 | C116: Impact Charter | D116: =VLOOKUP($A116,'Feb_New Type 2'!$A$7:$X$39,4,FALSE) -> 394 | E116: =VLOOKUP($A116,'Feb_New Type 2'!$A$7:$X$39,5,FALSE) -> 401 | F116: 7 | H116: =VLOOKUP($A116,'Feb_New Type 2'!$A$7:$X$39,24,FALSE) -> -267
A117: WAG001 | C117: Louisiana Virtual Charter Academy | D117: =VLOOKUP($A117,'Feb_New Type 2'!$A$7:$X$39,4,FALSE) -> 1920 | E117: =VLOOKUP($A117,'Feb_New Type 2'!$A$7:$X$39,5,FALSE) -> 1920 | F117: 0 | H117: =VLOOKUP($A117,'Feb_New Type 2'!$A$7:$X$39,24,FALSE) -> 14215
A118: WAK001 | C118: Southwest LA Charter School | D118: =VLOOKUP($A118,'Feb_New Type 2'!$A$7:$X$39,4,FALSE) -> 694 | E118: =VLOOKUP($A118,'Feb_New Type 2'!$A$7:$X$39,5,FALSE) -> 685 | F118: -9 | H118: =VLOOKUP($A118,'Feb_New Type 2'!$A$7:$X$39,24,FALSE) -> -13029
A119: WAL001 | C119: J. S. Clark Leadership Academy | D119: =VLOOKUP($A119,'Feb_New Type 2'!$A$7:$X$39,4,FALSE) -> 249 | E119: =VLOOKUP($A119,'Feb_New Type 2'!$A$7:$X$39,5,FALSE) -> 244 | F119: -5 | H119: =VLOOKUP($A119,'Feb_New Type 2'!$A$7:$X$39,24,FALSE) -> -24303
A120: WAQ001 | C120: Baton Rouge University Prep | D120: =VLOOKUP($A120,'Feb_New Type 2'!$A$7:$X$39,4,FALSE) -> 374 | E120: =VLOOKUP($A120,'Feb_New Type 2'!$A$7:$X$39,5,FALSE) -> 350 | F120: -24 | H120: =VLOOKUP($A120,'Feb_New Type 2'!$A$7:$X$39,24,FALSE) -> -56390
A121: WAU001 | C121: GEO Prep Academy | D121: =VLOOKUP($A121,'Feb_New Type 2'!$A$7:$X$39,4,FALSE) -> 677 | E121: =VLOOKUP($A121,'Feb_New Type 2'!$A$7:$X$39,5,FALSE) -> 668 | F121: -9 | H121: =VLOOKUP($A121,'Feb_New Type 2'!$A$7:$X$39,24,FALSE) -> -13497
A122: WBQ001 | C122: New Harmony High School | D122: =VLOOKUP($A122,'Feb_New Type 2'!$A$7:$X$39,4,FALSE) -> 102 | E122: =VLOOKUP($A122,'Feb_New Type 2'!$A$7:$X$39,5,FALSE) -> 103 | F122: 1 | H122: =VLOOKUP($A122,'Feb_New Type 2'!$A$7:$X$39,24,FALSE) -> 5571
A123: WBR001 | C123: Athlos Academy | D123: =VLOOKUP($A123,'Feb_New Type 2'!$A$7:$X$39,4,FALSE) -> 1131 | E123: =VLOOKUP($A123,'Feb_New Type 2'!$A$7:$X$39,5,FALSE) -> 1121 | F123: -10 | H123: =VLOOKUP($A123,'Feb_New Type 2'!$A$7:$X$39,24,FALSE) -> -22153
A124: WJ5001 | C124: Collegiate Academy (EBR) | D124: =VLOOKUP($A124,'Feb_New Type 2'!$A$7:$X$39,4,FALSE) -> 419 | E124: =VLOOKUP($A124,'Feb_New Type 2'!$A$7:$X$39,5,FALSE) -> 399 | F124: -20 | H124: =VLOOKUP($A124,'Feb_New Type 2'!$A$7:$X$39,24,FALSE) -> -43456
A125: WZ8001 | C125: GEO Prep Mid-City of Greater B. R. | D125: =VLOOKUP($A125,'Feb_New Type 2'!$A$7:$X$39,4,FALSE) -> 715 | E125: =VLOOKUP($A125,'Feb_New Type 2'!$A$7:$X$39,5,FALSE) -> 707 | F125: -8 | H125: =VLOOKUP($A125,'Feb_New Type 2'!$A$7:$X$39,24,FALSE) -> -5764
A126: WBX001 | C126: GEO Next Generation HS | D126: =VLOOKUP($A126,'Feb_New Type 2'!$A$7:$X$39,4,FALSE) -> 96 | E126: =VLOOKUP($A126,'Feb_New Type 2'!$A$7:$X$39,5,FALSE) -> 90 | F126: -6 | H126: =VLOOKUP($A126,'Feb_New Type 2'!$A$7:$X$39,24,FALSE) -> -13454
A127: WBY001 | C127: Red River Charter Academy | D127: =VLOOKUP($A127,'Feb_New Type 2'!$A$7:$X$39,4,FALSE) -> 196 | E127: =VLOOKUP($A127,'Feb_New Type 2'!$A$7:$X$39,5,FALSE) -> 198 | F127: 2 | H127: =VLOOKUP($A127,'Feb_New Type 2'!$A$7:$X$39,24,FALSE) -> 6609
C128: Total New Type 2 Charter Schools | D128: =SUM(D95:D127) -> 20857 | E128: =SUM(E95:E127) -> 20709 | F128: =SUM(F95:F127) -> -148 | H128: =SUM(H95:H127) -> -106779
A130: 396211 | C130: Linwood Public Charter (RSD Operated) | D130: =VLOOKUP($A130,'[2]Type 5-RSD'!$A$2:$F$10,6,FALSE) -> 980 | E130: =VLOOKUP($A130,'[5]Type 5-RSD'!$A$2:$F$10,6,FALSE) -> 952 | F130: =E130-D130 -> -28 | G130: 2768.579691 | H130: =ROUND($F130*G130,0) -> -77520
A131: WA7001 | C131: Capitol High School (RSD Operated) | D131: =VLOOKUP($A131,'[2]Type 5-RSD'!$A$2:$F$10,6,FALSE) -> 354 | E131: =VLOOKUP($A131,'[5]Type 5-RSD'!$A$2:$F$10,6,FALSE) -> 360 | F131: 6 | G131: 2108.350448 | H131: =ROUND($F131*G131,0) -> 12650
A132: WAO001 | C132: Redesign Dalton Charter School | D132: =VLOOKUP($A132,'[2]Type 5-RSD'!$A$2:$F$10,6,FALSE) -> 275 | E132: =VLOOKUP($A132,'[5]Type 5-RSD'!$A$2:$F$10,6,FALSE) -> 259 | F132: -16 | G132: 2108.350448 | H132: -33734
A133: WAP001 | C133: Redesign Lanier Charter School | D133: =VLOOKUP($A133,'[2]Type 5-RSD'!$A$2:$F$10,6,FALSE) -> 265 | E133: =VLOOKUP($A133,'[5]Type 5-RSD'!$A$2:$F$10,6,FALSE) -> 252 | F133: -13 | G133: 2108.350448 | H133: -27409
A134: WAV001 | C134: Democracy Prep | D134: =VLOOKUP($A134,'[2]Type 5-RSD'!$A$2:$F$10,6,FALSE) -> 547 | E134: =VLOOKUP($A134,'[5]Type 5-RSD'!$A$2:$F$10,6,FALSE) -> 539 | F134: -8 | G134: 2108.350448 | H134: -16867
A135: WB2001 | C135: Kenilworth Science and Tech | D135: =VLOOKUP($A135,'[2]Type 5-RSD'!$A$2:$F$10,6,FALSE) -> 402 | E135: =VLOOKUP($A135,'[5]Type 5-RSD'!$A$2:$F$10,6,FALSE) -> 402 | F135: 0 | G135: 2108.350448 | H135: 0
A136: WYA001 | C136: Redesign Glen Oaks | D136: =VLOOKUP($A136,'[2]Type 5-RSD'!$A$2:$F$10,6,FALSE) -> 280 | E136: =VLOOKUP($A136,'[5]Type 5-RSD'!$A$2:$F$10,6,FALSE) -> 258 | F136: -22 | G136: 2108.350448 | H136: -46384
C137: Placeholder for Closed LEAs
C138: Total Type 5 Charters - LA | D138: =SUM(D130:D137) -> 3103 | E138: =SUM(E130:E137) -> 3022 | F138: =SUM(F130:F137) -> -81 | H138: =SUM(H130:H137) -> -189264
C140: Total Statewide | D140: =D138+D128+D93+D84+D76 -> 691174 | E140: =E138+E128+E93+E84+E76 -> 688232 | F140: -2942 | H140: =H138+H128+H93+H84+H76 -> -7818975

Sheet Feb_Legacy
A1: Table 5A2 Legacy Type 2 Charter Schools | C1: Oct. 1, 2019 MFP Funded Membership (Per SIS) | D1: Feb. 1, 2020 MFP Funded Membership (Per SIS) | E1: Change in MFP Funded Membership | F1: Unweighted Legacy Type 2 Charter School (Includes Final Local Revenue Representation) | J1: Economically Disadvantaged | O1: Students with Disabilities | T1: Gifted & Talented | Y1: Change in Total MFP State Cost Allocation (Levels 1, 2, & 3)
F2: Per Pupil Without Continuation of Prior Year Pay Raises (Half) | G2: Change in State Cost Allocation | H2: Continuation of Prior Year Pay Raises Per Pupil (Half) | I2: Change in State Cost Allocation | J2: 10/1/19 Student Count | K2: 2/1/20 Student Count | L2: Change in Student Count | M2: Half Per Pupil | N2: Change in State Cost Allocation | O2: 10/1/19 Student Count | P2: 2/1/20 Student Count | Q2: Change in Student Count | R2: Half Per Pupil | S2: Change in State Cost Allocation | T2: 10/1/19 Student Count | U2: 2/1/20 Student Count | V2: Change in Student Count | W2: Half Per Pupil | X2: Change in State Cost Allocation
C4: 1 | D4: =C4+1 -> 2 | E4: 3 | F4: 4 | G4: 5 | H4: 6 | I4: 7 | J4: 8 | K4: 9 | L4: 10 | M4: 11 | N4: 12 | O4: 13 | P4: 14 | Q4: 15 | R4: 16 | S4: 17 | T4: 18 | U4: 19 | V4: 20 | W4: 21 | X4: 22 | Y4: 23
C6: Link in File | E6: Link in File | G6: Link in File | H6: Link in File | J6: Link in File | K6: Link in File | M6: Link in File | N6: Link in File | P6: Link in File | Q6: Link in File | S6: Link in File | T6: Link in File | U6: Link in File | V6: Link in File | W6: Link in File | X6: Link in File | Y6: Link in File
A7: 321001 | B7: New Vision Learning | C7: 269 | D7: 256 | E7: -13 | G7: -55723.61555 | I7: -4655.95 | J7: 226 | K7: 219 | L7: -7 | N7: -2364.490477 | O7: 32 | P7: 28 | Q7: -4 | S7: -9455.647607 | T7: 0 | U7: 0 | V7: 0 | X7: 0 | Y7: -72200
A8: 329001 | B8: Glencoe Charter School | C8: 348 | D8: 346 | E8: -2 | G8: -9027.863956 | I8: -598.4 | J8: 268 | K8: 268 | L8: 0 | N8: 37.08695945 | O8: 44 | P8: 44 | Q8: 0 | S8: 0 | T8: 0 | U8: 0 | V8: 0 | X8: 0 | Y8: -9589
A9: 331001 | B9: International School of LA | C9: 1401 | D9: 1376 | E9: -25 | G9: -113001.4276 | I9: -8935.125 | J9: 854 | K9: 863 | L9: 9 | N9: 2240.296403 | O9: 80 | P9: 88 | Q9: 8 | S9: 13282.20285 | T9: 0 | U9: 1 | V9: 1 | X9: 632.7421577 | Y9: -105782
A10: 333001 | B10: Avoyelles Public Charter | C10: 737 | D10: 722 | E10: -15 | G10: -47759.5556 | I10: -4020.9 | J10: 435 | K10: 437 | L10: 2 | N10: 707.8589815 | O10: 41 | P10: 38 | Q10: -3 | S10: -7239.466856 | T10: 0 | U10: 0 | V10: 0 | X10: 0 | Y10: -58312
A11: 336001 | B11: Delhi Charter School | C11: 846 | D11: 821 | E11: -25 | G11: -97630.6816 | I11: -6587.75 | J11: 657 | K11: 646 | L11: -11 | N11: -3353.167466 | O11: 75 | P11: 70 | Q11: -5 | S11: -9990.111607 | T11: 10 | U11: 11 | V11: 1 | X11: 786.4244072 | Y11: -116776
A12: 337001 | B12: Belle Chasse Academy | C12: 912 | D12: 931 | E12: 19 | G12: 90959.67979 | I12: 7494.55 | J12: 404 | K12: 409 | L12: 5 | N12: 2042.527799 | O12: 92 | P12: 107 | Q12: 15 | S12: 16298.72125 | T12: 36 | U12: 42 | V12: 6 | X12: 2469.984322 | Y12: 119265
A13: 340001 | B13: The MAX | C13: 120 | D13: 119 | E13: -1 | G13: -2970.934822 | I13: -329.605 | J13: 45 | K13: 45 | L13: 0 | N13: -17.33988037 | O13: 28 | P13: 23 | Q13: -5 | S13: -10366.36706 | T13: 0 | U13: 0 | V13: 0 | X13: 0 | Y13: -13684
A14: State Total | C14: =SUM(C7:C13) -> 4633 | D14: =SUM(D7:D13) -> 4571 | E14: =SUM(E7:E13) -> -62 | G14: =SUM(G7:G13) -> -235154.3993 | I14: =SUM(I7:I13) -> -17633.18 | J14: =SUM(J7:J13) -> 2889 | K14: =SUM(K7:K13) -> 2887 | L14: =SUM(L7:L13) -> -2 | N14: =SUM(N7:N13) -> -707.227681 | O14: =SUM(O7:O13) -> 392 | P14: =SUM(P7:P13) -> 398 | Q14: =SUM(Q7:Q13) -> 6 | S14: =SUM(S7:S13) -> -7470.669031 | T14: =SUM(T7:T13) -> 46 | U14: =SUM(U7:U13) -> 54 | V14: =SUM(V7:V13) -> 8 | X14: =SUM(X7:X13) -> 3889.150887 | Y14: =SUM(Y7:Y13) -> -257078

Sheet Feb_LSMSA
A1: Table 5A5 Louisiana School for Math, Science and the Arts (LSMSA) (Site Code 302006) | C1: MFP State Cost Allocation
C2: Oct. 1, 2019 MFP Funded Membership (Per SIS) | D2: Feb. 1, 2020 MFP Funded Membership (Per SIS) | E2: Change in MFP Funded Membership | F2: Total State Cost & Local Cost Allocation (With Continuation of Prior Year Pay Raises) Half Per Pupil | G2: Change in Total MFP Cost Allocation
C4: 1 | D4: =C4+1 -> 2 | E4: =D4+1 -> 3 | F4: =E4+1 -> 4 | G4: =F4+1 -> 5
C6: Link in File | D6: Link in File | E6: Formula | F6: Value | G6: Formula
A7: 1 | B7: Acadia | C7: =[2]Base!$BF7 -> 8 | D7: =[5]Base!$BF7 -> 5 | E7: =D7-C7 -> -3 | F7: ='Per Pupil Summary'!$S7*0.5 -> 4182.507065 | G7: =ROUND(E7*F7,0) -> -12548
A8: 2 | B8: Allen | C8: =[2]Base!$BF8 -> 2 | D8: =[5]Base!$BF8 -> 1 | E8: -1 | F8: ='Per Pupil Summary'!$S8*0.5 -> 5162.977012 | G8: -5163
A9: 3 | B9: Ascension | C9: =[2]Base!$BF9 -> 11 | D9: =[5]Base!$BF9 -> 11 | E9: 0 | F9: ='Per Pupil Summary'!$S9*0.5 -> 4242.709205 | G9: 0
A10: 4 | B10: Assumption | C10: =[2]Base!$BF10 -> 2 | D10: =[5]Base!$BF10 -> 2 | E10: 0 | F10: ='Per Pupil Summary'!$S10*0.5 -> 5139.520205 | G10: 0
A11: 5 | B11: Avoyelles | C11: =[2]Base!$BF11 -> 3 | D11: =[5]Base!$BF11 -> 3 | E11: 0 | F11: ='Per Pupil Summary'!$S11*0.5 -> 4225.021611 | G11: 0
A12: 6 | B12: Beauregard | C12: =[2]Base!$BF12 -> 1 | D12: =[5]Base!$BF12 -> 1 | E12: 0 | F12: ='Per Pupil Summary'!$S12*0.5 -> 4831.221896 | G12: 0
A13: 7 | B13: Bienville | C13: =[2]Base!$BF13 -> 1 | D13: =[5]Base!$BF13 -> 1 | E13: 0 | F13: ='Per Pupil Summary'!$S13*0.5 -> 4693.581055 | G13: 0
A14: 8 | B14: Bossier | C14: =[2]Base!$BF14 -> 10 | D14: =[5]Base!$BF14 -> 10 | E14: 0 | F14: ='Per Pupil Summary'!$S14*0.5 -> 4674.20785 | G14: 0
A15: 9 | B15: Caddo | C15: =[2]Base!$BF15 -> 12 | D15: =[5]Base!$BF15 -> 12 | E15: 0 | F15: ='Per Pupil Summary'!$S15*0.5 -> 4580.299691 | G15: 0
A16: 10 | B16: Calcasieu | C16: =[2]Base!$BF16 -> 31 | D16: =[5]Base!$BF16 -> 30 | E16: -1 | F16: ='Per Pupil Summary'!$S16*0.5 -> 4381.305211 | G16: -4381
A17: 11 | B17: Caldwell | C17: =[2]Base!$BF17 -> 1 | D17: =[5]Base!$BF17 -> 1 | E17: 0 | F17: ='Per Pupil Summary'!$S17*0.5 -> 5662.194379 | G17: 0
A18: 12 | B18: Cameron | C18: =[2]Base!$BF18 -> 0 | D18: =[5]Base!$BF18 -> 0 | E18: 0 | F18: ='Per Pupil Summary'!$S18*0.5 -> 4672.660323 | G18: 0
A19: 13 | B19: Catahoula | C19: =[2]Base!$BF19 -> 0 | D19: =[5]Base!$BF19 -> 0 | E19: 0 | F19: ='Per Pupil Summary'!$S19*0.5 -> 5165.643538 | G19: 0
A20: 14 | B20: Claiborne | C20: =[2]Base!$BF20 -> 2 | D20: =[5]Base!$BF20 -> 1 | E20: -1 | F20: ='Per Pupil Summary'!$S20*0.5 -> 5315.13359 | G20: -5315
A21: 15 | B21: Concordia | C21: =[2]Base!$BF21 -> 2 | D21: =[5]Base!$BF21 -> 2 | E21: 0 | F21: ='Per Pupil Summary'!$S21*0.5 -> 4938.557915 | G21: 0
A22: 16 | B22: DeSoto | C22: =[2]Base!$BF22 -> 2 | D22: =[5]Base!$BF22 -> 2 | E22: 0 | F22: ='Per Pupil Summary'!$S22*0.5 -> 4269.405466 | G22: 0
A23: 17 | B23: East Baton Rouge | C23: =[2]Base!$BF23 -> 10 | D23: =[5]Base!$BF23 -> 9 | E23: -1 | F23: ='Per Pupil Summary'!$S23*0.5 -> 4476.090448 | G23: -4476
A24: 18 | B24: East Carroll | C24: =[2]Base!$BF24 -> 0 | D24: =[5]Base!$BF24 -> 0 | E24: 0 | F24: ='Per Pupil Summary'!$S24*0.5 -> 5432.133942 | G24: 0
A25: 19 | B25: East Feliciana | C25: =[2]Base!$BF25 -> 3 | D25: =[5]Base!$BF25 -> 3 | E25: 0 | F25: ='Per Pupil Summary'!$S25*0.5 -> 4774.955422 | G25: 0
A26: 20 | B26: Evangeline | C26: =[2]Base!$BF26 -> 2 | D26: =[5]Base!$BF26 -> 2 | E26: 0 | F26: ='Per Pupil Summary'!$S26*0.5 -> 4495.19488 | G26: 0
A27: 21 | B27: Franklin | C27: =[2]Base!$BF27 -> 3 | D27: =[5]Base!$BF27 -> 3 | E27: 0 | F27: ='Per Pupil Summary'!$S27*0.5 -> 4812.053403 | G27: 0
A28: 22 | B28: Grant | C28: =[2]Base!$BF28 -> 3 | D28: =[5]Base!$BF28 -> 3 | E28: 0 | F28: ='Per Pupil Summary'!$S28*0.5 -> 4731.519262 | G28: 0
A29: 23 | B29: Iberia | C29: =[2]Base!$BF29 -> 6 | D29: =[5]Base!$BF29 -> 6 | E29: 0 | F29: ='Per Pupil Summary'!$S29*0.5 -> 4797.484895 | G29: 0
A30: 24 | B30: Iberville | C30: =[2]Base!$BF30 -> 2 | D30: =[5]Base!$BF30 -> 2 | E30: 0 | F30: ='Per Pupil Summary'!$S30*0.5 -> 4576.676773 | G30: 0
A31: 25 | B31: Jackson | C31: =[2]Base!$BF31 -> 3 | D31: =[5]Base!$BF31 -> 3 | E31: 0 | F31: ='Per Pupil Summary'!$S31*0.5 -> 4864.090624 | G31: 0
A32: 26 | B32: Jefferson | C32: =[2]Base!$BF32 -> 6 | D32: =[5]Base!$BF32 -> 6 | E32: 0 | F32: ='Per Pupil Summary'!$S32*0.5 -> 4690.273226 | G32: 0
A33: 27 | B33: Jefferson Davis | C33: =[2]Base!$BF33 -> 3 | D33: =[5]Base!$BF33 -> 1 | E33: -2 | F33: ='Per Pupil Summary'!$S33*0.5 -> 4969.006347 | G33: -9938
A34: 28 | B34: Lafayette | C34: =[2]Base!$BF34 -> 15 | D34: =[5]Base!$BF34 -> 14 | E34: -1 | F34: ='Per Pupil Summary'!$S34*0.5 -> 4272.760075 | G34: -4273
A35: 29 | B35: Lafourche | C35: =[2]Base!$BF35 -> 10 | D35: =[5]Base!$BF35 -> 10 | E35: 0 | F35: ='Per Pupil Summary'!$S35*0.5 -> 4428.244732 | G35: 0
A36: 30 | B36: LaSalle | C36: =[2]Base!$BF36 -> 0 | D36: =[5]Base!$BF36 -> 0 | E36: 0 | F36: ='Per Pupil Summary'!$S36*0.5 -> 5029.347071 | G36: 0
A37: 31 | B37: Lincoln | C37: =[2]Base!$BF37 -> 5 | D37: =[5]Base!$BF37 -> 4 | E37: -1 | F37: ='Per Pupil Summary'!$S37*0.5 -> 4712.395157 | G37: -4712
A38: 32 | B38: Livingston | C38: =[2]Base!$BF38 -> 17 | D38: =[5]Base!$BF38 -> 16 | E38: -1 | F38: ='Per Pupil Summary'!$S38*0.5 -> 4568.575736 | G38: -4569
A39: 33 | B39: Madison | C39: =[2]Base!$BF39 -> 1 | D39: =[5]Base!$BF39 -> 1 | E39: 0 | F39: ='Per Pupil Summary'!$S39*0.5 -> 5176.652421 | G39: 0
A40: 34 | B40: Morehouse | C40: =[2]Base!$BF40 -> 0 | D40: =[5]Base!$BF40 -> 0 | E40: 0 | F40: ='Per Pupil Summary'!$S40*0.5 -> 5153.545381 | G40: 0
A41: 35 | B41: Natchitoches | C41: =[2]Base!$BF41 -> 23 | D41: =[5]Base!$BF41 -> 20 | E41: -3 | F41: ='Per Pupil Summary'!$S41*0.5 -> 4685.521064 | G41: -14057
A42: 36 | B42: Orleans | C42: =[2]Base!$BF42 -> 3 | D42: =[5]Base!$BF42 -> 3 | E42: 0 | F42: ='Per Pupil Summary'!$S42*0.5 -> 4568.798439 | G42: 0
A43: 37 | B43: Ouachita | C43: =[2]Base!$BF43 -> 5 | D43: =[5]Base!$BF43 -> 4 | E43: -1 | F43: ='Per Pupil Summary'!$S43*0.5 -> 4801.828113 | G43: -4802
A44: 38 | B44: Plaquemines | C44: =[2]Base!$BF44 -> 1 | D44: =[5]Base!$BF44 -> 1 | E44: 0 | F44: ='Per Pupil Summary'!$S44*0.5 -> 4789.700545 | G44: 0
A45: 39 | B45: Pointe Coupee | C45: =[2]Base!$BF45 -> 6 | D45: =[5]Base!$BF45 -> 6 | E45: 0 | F45: ='Per Pupil Summary'!$S45*0.5 -> 4748.024481 | G45: 0
A46: 40 | B46: Rapides | C46: =[2]Base!$BF46 -> 14 | D46: =[5]Base!$BF46 -> 12 | E46: -2 | F46: ='Per Pupil Summary'!$S46*0.5 -> 4752.42395 | G46: -9505
A47: 41 | B47: Red River | C47: =[2]Base!$BF47 -> 0 | D47: =[5]Base!$BF47 -> 0 | E47: 0 | F47: ='Per Pupil Summary'!$S47*0.5 -> 4880.53145 | G47: 0
A48: 42 | B48: Richland | C48: =[2]Base!$BF48 -> 3 | D48: =[5]Base!$BF48 -> 3 | E48: 0 | F48: ='Per Pupil Summary'!$S48*0.5 -> 4907.161155 | G48: 0
A49: 43 | B49: Sabine | C49: =[2]Base!$BF49 -> 13 | D49: =[5]Base!$BF49 -> 12 | E49: -1 | F49: ='Per Pupil Summary'!$S49*0.5 -> 5092.273561 | G49: -5092
A50: 44 | B50: St. Bernard | C50: =[2]Base!$BF50 -> 4 | D50: =[5]Base!$BF50 -> 4 | E50: 0 | F50: ='Per Pupil Summary'!$S50*0.5 -> 4621.88441 | G50: 0
A51: 45 | B51: St. Charles | C51: =[2]Base!$BF51 -> 6 | D51: =[5]Base!$BF51 -> 5 | E51: -1 | F51: ='Per Pupil Summary'!$S51*0.5 -> 4282.754422 | G51: -4283
A52: 46 | B52: St. Helena | C52: =[2]Base!$BF52 -> 0 | D52: =[5]Base!$BF52 -> 0 | E52: 0 | F52: ='Per Pupil Summary'!$S52*0.5 -> 5538.813431 | G52: 0
A53: 47 | B53: St. James | C53: =[2]Base!$BF53 -> 1 | D53: =[5]Base!$BF53 -> 1 | E53: 0 | F53: ='Per Pupil Summary'!$S53*0.5 -> 4780.178827 | G53: 0
A54: 48 | B54: St. John the Baptist | C54: =[2]Base!$BF54 -> 3 | D54: =[5]Base!$BF54 -> 2 | E54: -1 | F54: ='Per Pupil Summary'!$S54*0.5 -> 4847.078488 | G54: -4847
A55: 49 | B55: St. Landry | C55: =[2]Base!$BF55 -> 12 | D55: =[5]Base!$BF55 -> 10 | E55: -2 | F55: ='Per Pupil Summary'!$S55*0.5 -> 4358.185705 | G55: -8716
A56: 50 | B56: St. Martin | C56: =[2]Base!$BF56 -> 5 | D56: =[5]Base!$BF56 -> 5 | E56: 0 | F56: ='Per Pupil Summary'!$S56*0.5 -> 4644.472366 | G56: 0
A57: 51 | B57: St. Mary | C57: =[2]Base!$BF57 -> 2 | D57: =[5]Base!$BF57 -> 1 | E57: -1 | F57: ='Per Pupil Summary'!$S57*0.5 -> 4921.782325 | G57: -4922
A58: 52 | B58: St. Tammany | C58: =[2]Base!$BF58 -> 30 | D58: =[5]Base!$BF58 -> 30 | E58: 0 | F58: ='Per Pupil Summary'!$S58*0.5 -> 4829.428243 | G58: 0
A59: 53 | B59: Tangipahoa | C59: =[2]Base!$BF59 -> 14 | D59: =[5]Base!$BF59 -> 13 | E59: -1 | F59: ='Per Pupil Summary'!$S59*0.5 -> 4315.935985 | G59: -4316
A60: 54 | B60: Tensas | C60: =[2]Base!$BF60 -> 0 | D60: =[5]Base!$BF60 -> 0 | E60: 0 | F60: ='Per Pupil Summary'!$S60*0.5 -> 5712.561111 | G60: 0
A61: 55 | B61: Terrebonne | C61: =[2]Base!$BF61 -> 8 | D61: =[5]Base!$BF61 -> 7 | E61: -1 | F61: ='Per Pupil Summary'!$S61*0.5 -> 4642.006124 | G61: -4642
A62: 56 | B62: Union | C62: =[2]Base!$BF62 -> 1 | D62: =[5]Base!$BF62 -> 0 | E62: -1 | F62: ='Per Pupil Summary'!$S62*0.5 -> 5092.619329 | G62: -5093
A63: 57 | B63: Vermilion | C63: =[2]Base!$BF63 -> 2 | D63: =[5]Base!$BF63 -> 2 | E63: 0 | F63: ='Per Pupil Summary'!$S63*0.5 -> 4347.562338 | G63: 0
A64: 58 | B64: Vernon | C64: =[2]Base!$BF64 -> 7 | D64: =[5]Base!$BF64 -> 6 | E64: -1 | F64: ='Per Pupil Summary'!$S64*0.5 -> 4571.778432 | G64: -4572
A65: 59 | B65: Washington | C65: =[2]Base!$BF65 -> 0 | D65: =[5]Base!$BF65 -> 0 | E65: 0 | F65: ='Per Pupil Summary'!$S65*0.5 -> 4453.635738 | G65: 0
A66: 60 | B66: Webster | C66: =[2]Base!$BF66 -> 1 | D66: =[5]Base!$BF66 -> 1 | E66: 0 | F66: ='Per Pupil Summary'!$S66*0.5 -> 4892.17279 | G66: 0
A67: 61 | B67: West Baton Rouge | C67: =[2]Base!$BF67 -> 2 | D67: =[5]Base!$BF67 -> 2 | E67: 0 | F67: ='Per Pupil Summary'!$S67*0.5 -> 4600.902893 | G67: 0
A68: 62 | B68: West Carroll | C68: =[2]Base!$BF68 -> 2 | D68: =[5]Base!$BF68 -> 2 | E68: 0 | F68: ='Per Pupil Summary'!$S68*0.5 -> 4521.620132 | G68: 0
A69: 63 | B69: West Feliciana | C69: =[2]Base!$BF69 -> 2 | D69: =[5]Base!$BF69 -> 2 | E69: 0 | F69: ='Per Pupil Summary'!$S69*0.5 -> 4876.87225 | G69: 0
A70: 64 | B70: Winn | C70: =[2]Base!$BF70 -> 0 | D70: =[5]Base!$BF70 -> 0 | E70: 0 | F70: ='Per Pupil Summary'!$S70*0.5 -> 5160.328595 | G70: 0
A71: 65 | B71: City of Monroe | C71: =[2]Base!$BF71 -> 2 | D71: =[5]Base!$BF71 -> 2 | E71: =D71-C71 -> 0 | F71: ='Per Pupil Summary'!$S71*0.5 -> 4986.271712 | G71: =ROUND(E71*F71,0) -> 0
A72: 66 | B72: City of Bogalusa | C72: =[2]Base!$BF72 -> 0 | D72: =[5]Base!$BF72 -> 0 | E72: 0 | F72: ='Per Pupil Summary'!$S72*0.5 -> 5902.634181 | G72: 0
A73: 67 | B73: Zachary Community | C73: =[2]Base!$BF73 -> 6 | D73: =[5]Base!$BF73 -> 6 | E73: 0 | F73: ='Per Pupil Summary'!$S73*0.5 -> 4687.83134 | G73: 0
A74: 68 | B74: City of Baker | C74: =[2]Base!$BF74 -> 0 | D74: =[5]Base!$BF74 -> 0 | E74: 0 | F74: ='Per Pupil Summary'!$S74*0.5 -> 5215.154063 | G74: 0
A75: 69 | B75: Central Community | C75: =[2]Base!$BF75 -> 3 | D75: =[5]Base!$BF75 -> 3 | E75: 0 | F75: ='Per Pupil Summary'!$S75*0.5 -> 4844.448929 | G75: 0
A76: State Subtotal | C76: =SUM(C7:C75) -> 358 | D76: =SUM(D7:D75) -> 330 | E76: =SUM(E7:E75) -> -28 | F76: ='Per Pupil Summary'!$S76*0.5 -> 2331.210626 | G76: =SUM(G7:G75) -> -130222

Sheet Feb_NOCCA
A1: Table 5A4 New Orleans Center for Creative Arts (NOCCA) (Site Code 334001) | C1: MFP State Cost Allocation
C2: Oct. 1, 2019 MFP Funded Membership (Per SIS) | D2: Feb. 1, 2020 MFP Funded Membership (Per SIS) | E2: Change in MFP Funded Membership | F2: Total State Cost & Local Cost Allocation (With Continuation of Prior Year Pay Raises) Half Per Pupil | G2: Change in Total MFP Cost Allocation
C4: 1 | D4: =C4+1 -> 2 | E4: =D4+1 -> 3 | F4: =E4+1 -> 4 | G4: =F4+1 -> 5
C6: Link in File | D6: Link in File | E6: Formula | F6: Value | G6: Formula
A7: 1 | B7: Acadia | C7: =[2]Base!$BG7 -> 0 | D7: =[5]Base!$BG7 -> 0 | E7: =D7-C7 -> 0 | F7: ='Per Pupil Summary'!$S7*0.5 -> 4182.507065 | G7: =ROUND(E7*F7,0) -> 0
A8: 2 | B8: Allen | C8: =[2]Base!$BG8 -> 0 | D8: =[5]Base!$BG8 -> 0 | E8: 0 | F8: ='Per Pupil Summary'!$S8*0.5 -> 5162.977012 | G8: 0
A9: 3 | B9: Ascension | C9: =[2]Base!$BG9 -> 0 | D9: =[5]Base!$BG9 -> 0 | E9: 0 | F9: ='Per Pupil Summary'!$S9*0.5 -> 4242.709205 | G9: 0
A10: 4 | B10: Assumption | C10: =[2]Base!$BG10 -> 0 | D10: =[5]Base!$BG10 -> 0 | E10: 0 | F10: ='Per Pupil Summary'!$S10*0.5 -> 5139.520205 | G10: 0
A11: 5 | B11: Avoyelles | C11: =[2]Base!$BG11 -> 0 | D11: =[5]Base!$BG11 -> 0 | E11: 0 | F11: ='Per Pupil Summary'!$S11*0.5 -> 4225.021611 | G11: 0
A12: 6 | B12: Beauregard | C12: =[2]Base!$BG12 -> 0 | D12: =[5]Base!$BG12 -> 0 | E12: 0 | F12: ='Per Pupil Summary'!$S12*0.5 -> 4831.221896 | G12: 0
A13: 7 | B13: Bienville | C13: =[2]Base!$BG13 -> 0 | D13: =[5]Base!$BG13 -> 0 | E13: 0 | F13: ='Per Pupil Summary'!$S13*0.5 -> 4693.581055 | G13: 0
A14: 8 | B14: Bossier | C14: =[2]Base!$BG14 -> 0 | D14: =[5]Base!$BG14 -> 0 | E14: 0 | F14: ='Per Pupil Summary'!$S14*0.5 -> 4674.20785 | G14: 0
A15: 9 | B15: Caddo | C15: =[2]Base!$BG15 -> 0 | D15: =[5]Base!$BG15 -> 0 | E15: 0 | F15: ='Per Pupil Summary'!$S15*0.5 -> 4580.299691 | G15: 0
A16: 10 | B16: Calcasieu | C16: =[2]Base!$BG16 -> 0 | D16: =[5]Base!$BG16 -> 0 | E16: 0 | F16: ='Per Pupil Summary'!$S16*0.5 -> 4381.305211 | G16: 0
A17: 11 | B17: Caldwell | C17: =[2]Base!$BG17 -> 0 | D17: =[5]Base!$BG17 -> 0 | E17: 0 | F17: ='Per Pupil Summary'!$S17*0.5 -> 5662.194379 | G17: 0
A18: 12 | B18: Cameron | C18: =[2]Base!$BG18 -> 0 | D18: =[5]Base!$BG18 -> 0 | E18: 0 | F18: ='Per Pupil Summary'!$S18*0.5 -> 4672.660323 | G18: 0
A19: 13 | B19: Catahoula | C19: =[2]Base!$BG19 -> 0 | D19: =[5]Base!$BG19 -> 0 | E19: 0 | F19: ='Per Pupil Summary'!$S19*0.5 -> 5165.643538 | G19: 0
A20: 14 | B20: Claiborne | C20: =[2]Base!$BG20 -> 0 | D20: =[5]Base!$BG20 -> 0 | E20: 0 | F20: ='Per Pupil Summary'!$S20*0.5 -> 5315.13359 | G20: 0
A21: 15 | B21: Concordia | C21: =[2]Base!$BG21 -> 0 | D21: =[5]Base!$BG21 -> 0 | E21: 0 | F21: ='Per Pupil Summary'!$S21*0.5 -> 4938.557915 | G21: 0
A22: 16 | B22: DeSoto | C22: =[2]Base!$BG22 -> 0 | D22: =[5]Base!$BG22 -> 0 | E22: 0 | F22: ='Per Pupil Summary'!$S22*0.5 -> 4269.405466 | G22: 0
A23: 17 | B23: East Baton Rouge | C23: =[2]Base!$BG23 -> 0 | D23: =[5]Base!$BG23 -> 0 | E23: 0 | F23: ='Per Pupil Summary'!$S23*0.5 -> 4476.090448 | G23: 0
A24: 18 | B24: East Carroll | C24: =[2]Base!$BG24 -> 0 | D24: =[5]Base!$BG24 -> 0 | E24: 0 | F24: ='Per Pupil Summary'!$S24*0.5 -> 5432.133942 | G24: 0
A25: 19 | B25: East Feliciana | C25: =[2]Base!$BG25 -> 0 | D25: =[5]Base!$BG25 -> 0 | E25: 0 | F25: ='Per Pupil Summary'!$S25*0.5 -> 4774.955422 | G25: 0
A26: 20 | B26: Evangeline | C26: =[2]Base!$BG26 -> 0 | D26: =[5]Base!$BG26 -> 0 | E26: 0 | F26: ='Per Pupil Summary'!$S26*0.5 -> 4495.19488 | G26: 0
A27: 21 | B27: Franklin | C27: =[2]Base!$BG27 -> 0 | D27: =[5]Base!$BG27 -> 0 | E27: 0 | F27: ='Per Pupil Summary'!$S27*0.5 -> 4812.053403 | G27: 0
A28: 22 | B28: Grant | C28: =[2]Base!$BG28 -> 0 | D28: =[5]Base!$BG28 -> 0 | E28: 0 | F28: ='Per Pupil Summary'!$S28*0.5 -> 4731.519262 | G28: 0
A29: 23 | B29: Iberia | C29: =[2]Base!$BG29 -> 0 | D29: =[5]Base!$BG29 -> 0 | E29: 0 | F29: ='Per Pupil Summary'!$S29*0.5 -> 4797.484895 | G29: 0
A30: 24 | B30: Iberville | C30: =[2]Base!$BG30 -> 0 | D30: =[5]Base!$BG30 -> 0 | E30: 0 | F30: ='Per Pupil Summary'!$S30*0.5 -> 4576.676773 | G30: 0
A31: 25 | B31: Jackson | C31: =[2]Base!$BG31 -> 0 | D31: =[5]Base!$BG31 -> 0 | E31: 0 | F31: ='Per Pupil Summary'!$S31*0.5 -> 4864.090624 | G31: 0
A32: 26 | B32: Jefferson | C32: =[2]Base!$BG32 -> 40 | D32: =[5]Base!$BG32 -> 42 | E32: 2 | F32: ='Per Pupil Summary'!$S32*0.5 -> 4690.273226 | G32: 9381
A33: 27 | B33: Jefferson Davis | C33: =[2]Base!$BG33 -> 0 | D33: =[5]Base!$BG33 -> 0 | E33: 0 | F33: ='Per Pupil Summary'!$S33*0.5 -> 4969.006347 | G33: 0
A34: 28 | B34: Lafayette | C34: =[2]Base!$BG34 -> 0 | D34: =[5]Base!$BG34 -> 0 | E34: 0 | F34: ='Per Pupil Summary'!$S34*0.5 -> 4272.760075 | G34: 0
A35: 29 | B35: Lafourche | C35: =[2]Base!$BG35 -> 0 | D35: =[5]Base!$BG35 -> 0 | E35: 0 | F35: ='Per Pupil Summary'!$S35*0.5 -> 4428.244732 | G35: 0
A36: 30 | B36: LaSalle | C36: =[2]Base!$BG36 -> 0 | D36: =[5]Base!$BG36 -> 0 | E36: 0 | F36: ='Per Pupil Summary'!$S36*0.5 -> 5029.347071 | G36: 0
A37: 31 | B37: Lincoln | C37: =[2]Base!$BG37 -> 0 | D37: =[5]Base!$BG37 -> 0 | E37: 0 | F37: ='Per Pupil Summary'!$S37*0.5 -> 4712.395157 | G37: 0
A38: 32 | B38: Livingston | C38: =[2]Base!$BG38 -> 0 | D38: =[5]Base!$BG38 -> 0 | E38: 0 | F38: ='Per Pupil Summary'!$S38*0.5 -> 4568.575736 | G38: 0
A39: 33 | B39: Madison | C39: =[2]Base!$BG39 -> 0 | D39: =[5]Base!$BG39 -> 0 | E39: 0 | F39: ='Per Pupil Summary'!$S39*0.5 -> 5176.652421 | G39: 0
A40: 34 | B40: Morehouse | C40: =[2]Base!$BG40 -> 0 | D40: =[5]Base!$BG40 -> 0 | E40: 0 | F40: ='Per Pupil Summary'!$S40*0.5 -> 5153.545381 | G40: 0
A41: 35 | B41: Natchitoches | C41: =[2]Base!$BG41 -> 0 | D41: =[5]Base!$BG41 -> 0 | E41: 0 | F41: ='Per Pupil Summary'!$S41*0.5 -> 4685.521064 | G41: 0
A42: 36 | B42: Orleans | C42: =[2]Base!$BG42 -> 121 | D42: =[5]Base!$BG42 -> 117 | E42: -4 | F42: ='Per Pupil Summary'!$S42*0.5 -> 4568.798439 | G42: -18275
A43: 37 | B43: Ouachita | C43: =[2]Base!$BG43 -> 0 | D43: =[5]Base!$BG43 -> 0 | E43: 0 | F43: ='Per Pupil Summary'!$S43*0.5 -> 4801.828113 | G43: 0
A44: 38 | B44: Plaquemines | C44: =[2]Base!$BG44 -> 6 | D44: =[5]Base!$BG44 -> 4 | E44: -2 | F44: ='Per Pupil Summary'!$S44*0.5 -> 4789.700545 | G44: -9579
A45: 39 | B45: Pointe Coupee | C45: =[2]Base!$BG45 -> 0 | D45: =[5]Base!$BG45 -> 0 | E45: 0 | F45: ='Per Pupil Summary'!$S45*0.5 -> 4748.024481 | G45: 0
A46: 40 | B46: Rapides | C46: =[2]Base!$BG46 -> 0 | D46: =[5]Base!$BG46 -> 0 | E46: 0 | F46: ='Per Pupil Summary'!$S46*0.5 -> 4752.42395 | G46: 0
A47: 41 | B47: Red River | C47: =[2]Base!$BG47 -> 0 | D47: =[5]Base!$BG47 -> 0 | E47: 0 | F47: ='Per Pupil Summary'!$S47*0.5 -> 4880.53145 | G47: 0
A48: 42 | B48: Richland | C48: =[2]Base!$BG48 -> 0 | D48: =[5]Base!$BG48 -> 0 | E48: 0 | F48: ='Per Pupil Summary'!$S48*0.5 -> 4907.161155 | G48: 0
A49: 43 | B49: Sabine | C49: =[2]Base!$BG49 -> 0 | D49: =[5]Base!$BG49 -> 0 | E49: 0 | F49: ='Per Pupil Summary'!$S49*0.5 -> 5092.273561 | G49: 0
A50: 44 | B50: St. Bernard | C50: =[2]Base!$BG50 -> 8 | D50: =[5]Base!$BG50 -> 8 | E50: 0 | F50: ='Per Pupil Summary'!$S50*0.5 -> 4621.88441 | G50: 0
A51: 45 | B51: St. Charles | C51: =[2]Base!$BG51 -> 5 | D51: =[5]Base!$BG51 -> 5 | E51: 0 | F51: ='Per Pupil Summary'!$S51*0.5 -> 4282.754422 | G51: 0
A52: 46 | B52: St. Helena | C52: =[2]Base!$BG52 -> 0 | D52: =[5]Base!$BG52 -> 0 | E52: 0 | F52: ='Per Pupil Summary'!$S52*0.5 -> 5538.813431 | G52: 0
A53: 47 | B53: St. James | C53: =[2]Base!$BG53 -> 2 | D53: =[5]Base!$BG53 -> 2 | E53: 0 | F53: ='Per Pupil Summary'!$S53*0.5 -> 4780.178827 | G53: 0
A54: 48 | B54: St. John the Baptist | C54: =[2]Base!$BG54 -> 4 | D54: =[5]Base!$BG54 -> 4 | E54: 0 | F54: ='Per Pupil Summary'!$S54*0.5 -> 4847.078488 | G54: 0
A55: 49 | B55: St. Landry | C55: =[2]Base!$BG55 -> 0 | D55: =[5]Base!$BG55 -> 0 | E55: 0 | F55: ='Per Pupil Summary'!$S55*0.5 -> 4358.185705 | G55: 0
A56: 50 | B56: St. Martin | C56: =[2]Base!$BG56 -> 0 | D56: =[5]Base!$BG56 -> 0 | E56: 0 | F56: ='Per Pupil Summary'!$S56*0.5 -> 4644.472366 | G56: 0
A57: 51 | B57: St. Mary | C57: =[2]Base!$BG57 -> 0 | D57: =[5]Base!$BG57 -> 0 | E57: 0 | F57: ='Per Pupil Summary'!$S57*0.5 -> 4921.782325 | G57: 0
A58: 52 | B58: St. Tammany | C58: =[2]Base!$BG58 -> 40 | D58: =[5]Base!$BG58 -> 39 | E58: -1 | F58: ='Per Pupil Summary'!$S58*0.5 -> 4829.428243 | G58: -4829
A59: 53 | B59: Tangipahoa | C59: =[2]Base!$BG59 -> 8 | D59: =[5]Base!$BG59 -> 8 | E59: 0 | F59: ='Per Pupil Summary'!$S59*0.5 -> 4315.935985 | G59: 0
A60: 54 | B60: Tensas | C60: =[2]Base!$BG60 -> 0 | D60: =[5]Base!$BG60 -> 0 | E60: 0 | F60: ='Per Pupil Summary'!$S60*0.5 -> 5712.561111 | G60: 0
A61: 55 | B61: Terrebonne | C61: =[2]Base!$BG61 -> 0 | D61: =[5]Base!$BG61 -> 0 | E61: 0 | F61: ='Per Pupil Summary'!$S61*0.5 -> 4642.006124 | G61: 0
A62: 56 | B62: Union | C62: =[2]Base!$BG62 -> 0 | D62: =[5]Base!$BG62 -> 0 | E62: 0 | F62: ='Per Pupil Summary'!$S62*0.5 -> 5092.619329 | G62: 0
A63: 57 | B63: Vermilion | C63: =[2]Base!$BG63 -> 0 | D63: =[5]Base!$BG63 -> 0 | E63: 0 | F63: ='Per Pupil Summary'!$S63*0.5 -> 4347.562338 | G63: 0
A64: 58 | B64: Vernon | C64: =[2]Base!$BG64 -> 0 | D64: =[5]Base!$BG64 -> 0 | E64: 0 | F64: ='Per Pupil Summary'!$S64*0.5 -> 4571.778432 | G64: 0
A65: 59 | B65: Washington | C65: =[2]Base!$BG65 -> 0 | D65: =[5]Base!$BG65 -> 0 | E65: 0 | F65: ='Per Pupil Summary'!$S65*0.5 -> 4453.635738 | G65: 0
A66: 60 | B66: Webster | C66: =[2]Base!$BG66 -> 0 | D66: =[5]Base!$BG66 -> 0 | E66: 0 | F66: ='Per Pupil Summary'!$S66*0.5 -> 4892.17279 | G66: 0
A67: 61 | B67: West Baton Rouge | C67: =[2]Base!$BG67 -> 0 | D67: =[5]Base!$BG67 -> 0 | E67: 0 | F67: ='Per Pupil Summary'!$S67*0.5 -> 4600.902893 | G67: 0
A68: 62 | B68: West Carroll | C68: =[2]Base!$BG68 -> 0 | D68: =[5]Base!$BG68 -> 0 | E68: 0 | F68: ='Per Pupil Summary'!$S68*0.5 -> 4521.620132 | G68: 0
A69: 63 | B69: West Feliciana | C69: =[2]Base!$BG69 -> 0 | D69: =[5]Base!$BG69 -> 0 | E69: 0 | F69: ='Per Pupil Summary'!$S69*0.5 -> 4876.87225 | G69: 0
A70: 64 | B70: Winn | C70: =[2]Base!$BG70 -> 0 | D70: =[5]Base!$BG70 -> 0 | E70: 0 | F70: ='Per Pupil Summary'!$S70*0.5 -> 5160.328595 | G70: 0
A71: 65 | B71: City of Monroe | C71: =[2]Base!$BG71 -> 0 | D71: =[5]Base!$BG71 -> 0 | E71: =D71-C71 -> 0 | F71: ='Per Pupil Summary'!$S71*0.5 -> 4986.271712 | G71: =ROUND(E71*F71,0) -> 0
A72: 66 | B72: City of Bogalusa | C72: =[2]Base!$BG72 -> 0 | D72: =[5]Base!$BG72 -> 0 | E72: 0 | F72: ='Per Pupil Summary'!$S72*0.5 -> 5902.634181 | G72: 0
A73: 67 | B73: Zachary Community | C73: =[2]Base!$BG73 -> 0 | D73: =[5]Base!$BG73 -> 0 | E73: 0 | F73: ='Per Pupil Summary'!$S73*0.5 -> 4687.83134 | G73: 0
A74: 68 | B74: City of Baker | C74: =[2]Base!$BG74 -> 0 | D74: =[5]Base!$BG74 -> 0 | E74: 0 | F74: ='Per Pupil Summary'!$S74*0.5 -> 5215.154063 | G74: 0
A75: 69 | B75: Central Community | C75: =[2]Base!$BG75 -> 0 | D75: =[5]Base!$BG75 -> 0 | E75: 0 | F75: ='Per Pupil Summary'!$S75*0.5 -> 4844.448929 | G75: 0
A76: State Subtotal | C76: =SUM(C7:C75) -> 234 | D76: =SUM(D7:D75) -> 229 | E76: =SUM(E7:E75) -> -5 | F76: ='Per Pupil Summary'!$S76*0.5 -> 2331.210626 | G76: =SUM(G7:G75) -> -23302

Sheet Feb_Thrive
A1: Table 5A6 Thrive Academy of Baton Rouge (Site Code 3C1001) | C1: MFP State Cost Allocation
C2: Oct. 1, 2019 MFP Funded Membership (Per SIS) | D2: Feb. 1, 2020 MFP Funded Membership (Per SIS) | E2: Change in MFP Funded Membership | F2: Total State Cost & Local Cost Allocation (With Continuation of Prior Year Pay Raises) Half Per Pupil | G2: Change in Total MFP Cost Allocation
C4: 1 | D4: =C4+1 -> 2 | E4: =D4+1 -> 3 | F4: =E4+1 -> 4 | G4: =F4+1 -> 5
D6: Link in File | E6: Formula | F6: Value | G6: Formula
A7: 1 | B7: Acadia | C7: =[2]Base!$BH7 -> 0 | D7: =[5]Base!$BH7 -> 0 | E7: =D7-C7 -> 0 | F7: ='Per Pupil Summary'!$S7*0.5 -> 4182.507065 | G7: =ROUND(E7*F7,0) -> 0
A8: 2 | B8: Allen | C8: =[2]Base!$BH8 -> 0 | D8: =[5]Base!$BH8 -> 0 | E8: 0 | F8: ='Per Pupil Summary'!$S8*0.5 -> 5162.977012 | G8: 0
A9: 3 | B9: Ascension | C9: =[2]Base!$BH9 -> 7 | D9: =[5]Base!$BH9 -> 9 | E9: 2 | F9: ='Per Pupil Summary'!$S9*0.5 -> 4242.709205 | G9: 8485
A10: 4 | B10: Assumption | C10: =[2]Base!$BH10 -> 0 | D10: =[5]Base!$BH10 -> 0 | E10: 0 | F10: ='Per Pupil Summary'!$S10*0.5 -> 5139.520205 | G10: 0
A11: 5 | B11: Avoyelles | C11: =[2]Base!$BH11 -> 0 | D11: =[5]Base!$BH11 -> 0 | E11: 0 | F11: ='Per Pupil Summary'!$S11*0.5 -> 4225.021611 | G11: 0
A12: 6 | B12: Beauregard | C12: =[2]Base!$BH12 -> 0 | D12: =[5]Base!$BH12 -> 0 | E12: 0 | F12: ='Per Pupil Summary'!$S12*0.5 -> 4831.221896 | G12: 0
A13: 7 | B13: Bienville | C13: =[2]Base!$BH13 -> 0 | D13: =[5]Base!$BH13 -> 0 | E13: 0 | F13: ='Per Pupil Summary'!$S13*0.5 -> 4693.581055 | G13: 0
A14: 8 | B14: Bossier | C14: =[2]Base!$BH14 -> 0 | D14: =[5]Base!$BH14 -> 0 | E14: 0 | F14: ='Per Pupil Summary'!$S14*0.5 -> 4674.20785 | G14: 0
A15: 9 | B15: Caddo | C15: =[2]Base!$BH15 -> 0 | D15: =[5]Base!$BH15 -> 0 | E15: 0 | F15: ='Per Pupil Summary'!$S15*0.5 -> 4580.299691 | G15: 0
A16: 10 | B16: Calcasieu | C16: =[2]Base!$BH16 -> 0 | D16: =[5]Base!$BH16 -> 0 | E16: 0 | F16: ='Per Pupil Summary'!$S16*0.5 -> 4381.305211 | G16: 0
A17: 11 | B17: Caldwell | C17: =[2]Base!$BH17 -> 0 | D17: =[5]Base!$BH17 -> 0 | E17: 0 | F17: ='Per Pupil Summary'!$S17*0.5 -> 5662.194379 | G17: 0
A18: 12 | B18: Cameron | C18: =[2]Base!$BH18 -> 0 | D18: =[5]Base!$BH18 -> 0 | E18: 0 | F18: ='Per Pupil Summary'!$S18*0.5 -> 4672.660323 | G18: 0
A19: 13 | B19: Catahoula | C19: =[2]Base!$BH19 -> 0 | D19: =[5]Base!$BH19 -> 0 | E19: 0 | F19: ='Per Pupil Summary'!$S19*0.5 -> 5165.643538 | G19: 0
A20: 14 | B20: Claiborne | C20: =[2]Base!$BH20 -> 0 | D20: =[5]Base!$BH20 -> 0 | E20: 0 | F20: ='Per Pupil Summary'!$S20*0.5 -> 5315.13359 | G20: 0
A21: 15 | B21: Concordia | C21: =[2]Base!$BH21 -> 0 | D21: =[5]Base!$BH21 -> 0 | E21: 0 | F21: ='Per Pupil Summary'!$S21*0.5 -> 4938.557915 | G21: 0
A22: 16 | B22: DeSoto | C22: =[2]Base!$BH22 -> 0 | D22: =[5]Base!$BH22 -> 0 | E22: 0 | F22: ='Per Pupil Summary'!$S22*0.5 -> 4269.405466 | G22: 0
A23: 17 | B23: East Baton Rouge | C23: =[2]Base!$BH23 -> 137 | D23: =[5]Base!$BH23 -> 132 | E23: -5 | F23: ='Per Pupil Summary'!$S23*0.5 -> 4476.090448 | G23: -22380
A24: 18 | B24: East Carroll | C24: =[2]Base!$BH24 -> 0 | D24: =[5]Base!$BH24 -> 0 | E24: 0 | F24: ='Per Pupil Summary'!$S24*0.5 -> 5432.133942 | G24: 0
A25: 19 | B25: East Feliciana | C25: =[2]Base!$BH25 -> 0 | D25: =[5]Base!$BH25 -> 0 | E25: 0 | F25: ='Per Pupil Summary'!$S25*0.5 -> 4774.955422 | G25: 0
A26: 20 | B26: Evangeline | C26: =[2]Base!$BH26 -> 0 | D26: =[5]Base!$BH26 -> 0 | E26: 0 | F26: ='Per Pupil Summary'!$S26*0.5 -> 4495.19488 | G26: 0
A27: 21 | B27: Franklin | C27: =[2]Base!$BH27 -> 0 | D27: =[5]Base!$BH27 -> 0 | E27: 0 | F27: ='Per Pupil Summary'!$S27*0.5 -> 4812.053403 | G27: 0
A28: 22 | B28: Grant | C28: =[2]Base!$BH28 -> 0 | D28: =[5]Base!$BH28 -> 0 | E28: 0 | F28: ='Per Pupil Summary'!$S28*0.5 -> 4731.519262 | G28: 0
A29: 23 | B29: Iberia | C29: =[2]Base!$BH29 -> 0 | D29: =[5]Base!$BH29 -> 0 | E29: 0 | F29: ='Per Pupil Summary'!$S29*0.5 -> 4797.484895 | G29: 0
A30: 24 | B30: Iberville | C30: =[2]Base!$BH30 -> 5 | D30: =[5]Base!$BH30 -> 4 | E30: -1 | F30: ='Per Pupil Summary'!$S30*0.5 -> 4576.676773 | G30: -4577
A31: 25 | B31: Jackson | C31: =[2]Base!$BH31 -> 0 | D31: =[5]Base!$BH31 -> 0 | E31: 0 | F31: ='Per Pupil Summary'!$S31*0.5 -> 4864.090624 | G31: 0
A32: 26 | B32: Jefferson | C32: =[2]Base!$BH32 -> 1 | D32: =[5]Base!$BH32 -> 0 | E32: -1 | F32: ='Per Pupil Summary'!$S32*0.5 -> 4690.273226 | G32: -4690
A33: 27 | B33: Jefferson Davis | C33: =[2]Base!$BH33 -> 0 | D33: =[5]Base!$BH33 -> 0 | E33: 0 | F33: ='Per Pupil Summary'!$S33*0.5 -> 4969.006347 | G33: 0
A34: 28 | B34: Lafayette | C34: =[2]Base!$BH34 -> 0 | D34: =[5]Base!$BH34 -> 0 | E34: 0 | F34: ='Per Pupil Summary'!$S34*0.5 -> 4272.760075 | G34: 0
A35: 29 | B35: Lafourche | C35: =[2]Base!$BH35 -> 0 | D35: =[5]Base!$BH35 -> 0 | E35: 0 | F35: ='Per Pupil Summary'!$S35*0.5 -> 4428.244732 | G35: 0
A36: 30 | B36: LaSalle | C36: =[2]Base!$BH36 -> 0 | D36: =[5]Base!$BH36 -> 0 | E36: 0 | F36: ='Per Pupil Summary'!$S36*0.5 -> 5029.347071 | G36: 0
A37: 31 | B37: Lincoln | C37: =[2]Base!$BH37 -> 0 | D37: =[5]Base!$BH37 -> 0 | E37: 0 | F37: ='Per Pupil Summary'!$S37*0.5 -> 4712.395157 | G37: 0
A38: 32 | B38: Livingston | C38: =[2]Base!$BH38 -> 0 | D38: =[5]Base!$BH38 -> 0 | E38: 0 | F38: ='Per Pupil Summary'!$S38*0.5 -> 4568.575736 | G38: 0
A39: 33 | B39: Madison | C39: =[2]Base!$BH39 -> 0 | D39: =[5]Base!$BH39 -> 0 | E39: 0 | F39: ='Per Pupil Summary'!$S39*0.5 -> 5176.652421 | G39: 0
A40: 34 | B40: Morehouse | C40: =[2]Base!$BH40 -> 0 | D40: =[5]Base!$BH40 -> 0 | E40: 0 | F40: ='Per Pupil Summary'!$S40*0.5 -> 5153.545381 | G40: 0
A41: 35 | B41: Natchitoches | C41: =[2]Base!$BH41 -> 0 | D41: =[5]Base!$BH41 -> 0 | E41: 0 | F41: ='Per Pupil Summary'!$S41*0.5 -> 4685.521064 | G41: 0
A42: 36 | B42: Orleans | C42: =[2]Base!$BH42 -> 0 | D42: =[5]Base!$BH42 -> 0 | E42: 0 | F42: ='Per Pupil Summary'!$S42*0.5 -> 4568.798439 | G42: 0
A43: 37 | B43: Ouachita | C43: =[2]Base!$BH43 -> 0 | D43: =[5]Base!$BH43 -> 0 | E43: 0 | F43: ='Per Pupil Summary'!$S43*0.5 -> 4801.828113 | G43: 0
A44: 38 | B44: Plaquemines | C44: =[2]Base!$BH44 -> 0 | D44: =[5]Base!$BH44 -> 0 | E44: 0 | F44: ='Per Pupil Summary'!$S44*0.5 -> 4789.700545 | G44: 0
A45: 39 | B45: Pointe Coupee | C45: =[2]Base!$BH45 -> 2 | D45: =[5]Base!$BH45 -> 2 | E45: 0 | F45: ='Per Pupil Summary'!$S45*0.5 -> 4748.024481 | G45: 0
A46: 40 | B46: Rapides | C46: =[2]Base!$BH46 -> 0 | D46: =[5]Base!$BH46 -> 0 | E46: 0 | F46: ='Per Pupil Summary'!$S46*0.5 -> 4752.42395 | G46: 0
A47: 41 | B47: Red River | C47: =[2]Base!$BH47 -> 0 | D47: =[5]Base!$BH47 -> 0 | E47: 0 | F47: ='Per Pupil Summary'!$S47*0.5 -> 4880.53145 | G47: 0
A48: 42 | B48: Richland | C48: =[2]Base!$BH48 -> 0 | D48: =[5]Base!$BH48 -> 0 | E48: 0 | F48: ='Per Pupil Summary'!$S48*0.5 -> 4907.161155 | G48: 0
A49: 43 | B49: Sabine | C49: =[2]Base!$BH49 -> 0 | D49: =[5]Base!$BH49 -> 0 | E49: 0 | F49: ='Per Pupil Summary'!$S49*0.5 -> 5092.273561 | G49: 0
A50: 44 | B50: St. Bernard | C50: =[2]Base!$BH50 -> 0 | D50: =[5]Base!$BH50 -> 1 | E50: 1 | F50: ='Per Pupil Summary'!$S50*0.5 -> 4621.88441 | G50: 4622
A51: 45 | B51: St. Charles | C51: =[2]Base!$BH51 -> 0 | D51: =[5]Base!$BH51 -> 0 | E51: 0 | F51: ='Per Pupil Summary'!$S51*0.5 -> 4282.754422 | G51: 0
A52: 46 | B52: St. Helena | C52: =[2]Base!$BH52 -> 1 | D52: =[5]Base!$BH52 -> 0 | E52: -1 | F52: ='Per Pupil Summary'!$S52*0.5 -> 5538.813431 | G52: -5539
A53: 47 | B53: St. James | C53: =[2]Base!$BH53 -> 0 | D53: =[5]Base!$BH53 -> 0 | E53: 0 | F53: ='Per Pupil Summary'!$S53*0.5 -> 4780.178827 | G53: 0
A54: 48 | B54: St. John the Baptist | C54: =[2]Base!$BH54 -> 3 | D54: =[5]Base!$BH54 -> 2 | E54: -1 | F54: ='Per Pupil Summary'!$S54*0.5 -> 4847.078488 | G54: -4847
A55: 49 | B55: St. Landry | C55: =[2]Base!$BH55 -> 0 | D55: =[5]Base!$BH55 -> 0 | E55: 0 | F55: ='Per Pupil Summary'!$S55*0.5 -> 4358.185705 | G55: 0
A56: 50 | B56: St. Martin | C56: =[2]Base!$BH56 -> 0 | D56: =[5]Base!$BH56 -> 0 | E56: 0 | F56: ='Per Pupil Summary'!$S56*0.5 -> 4644.472366 | G56: 0
A57: 51 | B57: St. Mary | C57: =[2]Base!$BH57 -> 0 | D57: =[5]Base!$BH57 -> 0 | E57: 0 | F57: ='Per Pupil Summary'!$S57*0.5 -> 4921.782325 | G57: 0
A58: 52 | B58: St. Tammany | C58: =[2]Base!$BH58 -> 1 | D58: =[5]Base!$BH58 -> 3 | E58: 2 | F58: ='Per Pupil Summary'!$S58*0.5 -> 4829.428243 | G58: 9659
A59: 53 | B59: Tangipahoa | C59: =[2]Base!$BH59 -> 2 | D59: =[5]Base!$BH59 -> 3 | E59: 1 | F59: ='Per Pupil Summary'!$S59*0.5 -> 4315.935985 | G59: 4316
A60: 54 | B60: Tensas | C60: =[2]Base!$BH60 -> 0 | D60: =[5]Base!$BH60 -> 0 | E60: 0 | F60: ='Per Pupil Summary'!$S60*0.5 -> 5712.561111 | G60: 0
A61: 55 | B61: Terrebonne | C61: =[2]Base!$BH61 -> 0 | D61: =[5]Base!$BH61 -> 0 | E61: 0 | F61: ='Per Pupil Summary'!$S61*0.5 -> 4642.006124 | G61: 0
A62: 56 | B62: Union | C62: =[2]Base!$BH62 -> 0 | D62: =[5]Base!$BH62 -> 0 | E62: 0 | F62: ='Per Pupil Summary'!$S62*0.5 -> 5092.619329 | G62: 0
A63: 57 | B63: Vermilion | C63: =[2]Base!$BH63 -> 0 | D63: =[5]Base!$BH63 -> 0 | E63: 0 | F63: ='Per Pupil Summary'!$S63*0.5 -> 4347.562338 | G63: 0
A64: 58 | B64: Vernon | C64: =[2]Base!$BH64 -> 0 | D64: =[5]Base!$BH64 -> 0 | E64: 0 | F64: ='Per Pupil Summary'!$S64*0.5 -> 4571.778432 | G64: 0
A65: 59 | B65: Washington | C65: =[2]Base!$BH65 -> 0 | D65: =[5]Base!$BH65 -> 0 | E65: 0 | F65: ='Per Pupil Summary'!$S65*0.5 -> 4453.635738 | G65: 0
A66: 60 | B66: Webster | C66: =[2]Base!$BH66 -> 0 | D66: =[5]Base!$BH66 -> 0 | E66: 0 | F66: ='Per Pupil Summary'!$S66*0.5 -> 4892.17279 | G66: 0
A67: 61 | B67: West Baton Rouge | C67: =[2]Base!$BH67 -> 6 | D67: =[5]Base!$BH67 -> 8 | E67: 2 | F67: ='Per Pupil Summary'!$S67*0.5 -> 4600.902893 | G67: 9202
A68: 62 | B68: West Carroll | C68: =[2]Base!$BH68 -> 0 | D68: =[5]Base!$BH68 -> 0 | E68: 0 | F68: ='Per Pupil Summary'!$S68*0.5 -> 4521.620132 | G68: 0
A69: 63 | B69: West Feliciana | C69: =[2]Base!$BH69 -> 2 | D69: =[5]Base!$BH69 -> 1 | E69: -1 | F69: ='Per Pupil Summary'!$S69*0.5 -> 4876.87225 | G69: -4877
A70: 64 | B70: Winn | C70: =[2]Base!$BH70 -> 0 | D70: =[5]Base!$BH70 -> 0 | E70: 0 | F70: ='Per Pupil Summary'!$S70*0.5 -> 5160.328595 | G70: 0
A71: 65 | B71: City of Monroe | C71: =[2]Base!$BH71 -> 1 | D71: =[5]Base!$BH71 -> 1 | E71: =D71-C71 -> 0 | F71: ='Per Pupil Summary'!$S71*0.5 -> 4986.271712 | G71: =ROUND(E71*F71,0) -> 0
A72: 66 | B72: City of Bogalusa | C72: =[2]Base!$BH72 -> 0 | D72: =[5]Base!$BH72 -> 0 | E72: 0 | F72: ='Per Pupil Summary'!$S72*0.5 -> 5902.634181 | G72: 0
A73: 67 | B73: Zachary Community | C73: =[2]Base!$BH73 -> 2 | D73: =[5]Base!$BH73 -> 2 | E73: 0 | F73: ='Per Pupil Summary'!$S73*0.5 -> 4687.83134 | G73: 0
A74: 68 | B74: City of Baker | C74: =[2]Base!$BH74 -> 2 | D74: =[5]Base!$BH74 -> 1 | E74: -1 | F74: ='Per Pupil Summary'!$S74*0.5 -> 5215.154063 | G74: -5215
A75: 69 | B75: Central Community | C75: =[2]Base!$BH75 -> 1 | D75: =[5]Base!$BH75 -> 1 | E75: 0 | F75: ='Per Pupil Summary'!$S75*0.5 -> 4844.448929 | G75: 0
A76: State Subtotal | C76: =SUM(C7:C75) -> 173 | D76: =SUM(D7:D75) -> 170 | E76: =SUM(E7:E75) -> -3 | F76: ='Per Pupil Summary'!$S76*0.5 -> 2331.210626 | G76: =SUM(G7:G75) -> -15841

Sheet Feb_New Type 2
A1: Table 5C1 New Type 2 Charter Schools | D1: Oct. 1, 2019 MFP Funded Membership (Per SIS) | E1: Feb. 1, 2020 MFP Funded Membership (Per SIS) | F1: Change in MFP Funded Membership | G1: Unweighted | I1: Economically Disadvantaged | N1: Students with Disabilities | S1: Gifted & Talented | X1: Change in Total MFP State Cost Allocation (Levels 1, 2, & 3)
G2: Half Per Pupil (With Continuation of Prior Year Pay Raises) | H2: Change in State Cost Allocation | I2: 10/1/19 Student Count | J2: 2/1/20 Student Count | K2: Change in Student Count | L2: Half Per Pupil | M2: Change in State Cost Allocation | N2: 10/1/19 Student Count | O2: 2/1/20 Student Count | P2: Change in Student Count | Q2: Half Per Pupil | R2: Change in State Cost Allocation | S2: 10/1/19 Student Count | T2: 2/1/20 Student Count | U2: Change in Student Count | V2: Half Per Pupil | W2: Change in State Cost Allocation
D4: 1 | E4: =D4+1 -> 2 | F4: 3 | G4: 4 | H4: 5 | I4: 6 | J4: 7 | K4: 8 | L4: 9 | M4: 10 | N4: 11 | O4: 12 | P4: 13 | Q4: 14 | R4: 15 | S4: 16 | T4: 17 | U4: 18 | V4: 19 | W4: 20 | X4: 21
D6: Link in File | F6: Link in File | G6: Link in File | I6: Link in File | J6: Link in File | L6: Link in File | M6: Link in File | O6: Link in File | P6: Link in File | R6: Link in File | S6: Link in File | T6: Link in File | U6: Link in File | V6: Link in File | W6: Link in File | X6: Link in File
A7: 341001 | C7: D'Arbonne Woods | D7: 977 | E7: 973 | F7: -4 | H7: -10916.99942 | I7: 542 | J7: 544 | K7: 2 | M7: 534.5283038 | N7: 99 | O7: 103 | P7: 4 | R7: 9740.166834 | S7: 20 | T7: 28 | U7: 8 | W7: 7399.950346 | X7: 6757
A8: 343001 | C8: Madison Prep | D8: 570 | E8: 569 | F8: -1 | H8: 4746.565829 | I8: 410 | J8: 422 | K8: 12 | M8: 3237.370307 | N8: 36 | O8: 37 | P8: 1 | R8: 1487.472785 | S8: 0 | T8: 0 | U8: 0 | W8: 0 | X8: 9472
A9: 344001 | C9: Int'l High School of N. O. | D9: 456 | E9: 443 | F9: -13 | H9: -22978.63782 | I9: 349 | J9: 350 | K9: 1 | M9: 251.2018681 | N9: 41 | O9: 40 | P9: -1 | R9: -1647.297702 | S9: 0 | T9: 0 | U9: 0 | W9: 0 | X9: -24375
A10: 345001 | C10: University View Academy (90%) | D10: 3191 | E10: 3227 | F10: 36 | H10: 69310.68891 | I10: 1946 | J10: 1995 | K10: 49 | M10: 11918.82212 | N10: 382 | O10: 392 | P10: 10 | R10: 20725.7154 | S10: 139 | T10: 150 | U10: 11 | W10: 7103.107279 | X10: 109060
A11: 346001 | C11: Lake Charles Charter Academy | D11: 941 | E11: 917 | F11: -24 | H11: -38406.32588 | I11: 941 | J11: 911 | K11: -30 | M11: -6884.087954 | N11: 109 | O11: 103 | P11: -6 | R11: -9387.392665 | S11: 10 | T11: 15 | U11: 5 | W11: 3129.130888 | X11: -51549
A12: 347001 | C12: Lycee Francois de la Nouvelle Orleans | D12: 955 | E12: 939 | F12: -16 | H12: -28842.64962 | I12: 441 | J12: 452 | K12: 11 | M12: 2571.256446 | N12: 103 | O12: 101 | P12: -2 | R12: -1767.39424 | S12: 92 | T12: 121 | U12: 29 | W12: 18783.70491 | X12: -9255
A13: 348001 | C13: New Orleans Military/Maritime Academy | D13: 939 | E13: 957 | F13: 18 | H13: 29697.23505 | I13: 752 | J13: 777 | K13: 25 | M13: 5409.17823 | N13: 85 | O13: 92 | P13: 7 | R13: 9940.667311 | S13: 0 | T13: 0 | U13: 0 | W13: 0 | X13: 45046
A14: W18001 | C14: Noble Minds | D14: 103 | E14: 97 | F14: -6 | H14: -11515.54759 | I14: 85 | J14: 97 | K14: 12 | M14: 2728.408197 | N14: 6 | O14: 19 | P14: 13 | R14: 20760.44705 | S14: 0 | T14: 0 | U14: 0 | W14: 0 | X14: 11973
A15: W1A001 | C15: JCFA - East | D15: 229 | E15: 217 | F15: -12 | H15: -21883.88295 | I15: 170 | J15: 162 | K15: -8 | M15: -1755.978111 | N15: 27 | O15: 34 | P15: 7 | R15: 12268.52364 | S15: 0 | T15: 0 | U15: 0 | W15: 0 | X15: -11371
A16: W1B001 | C16: Advantage Charter Academy | D16: 491 | E16: 488 | F16: -3 | H16: -5879.753366 | I16: 435 | J16: 467 | K16: 32 | M16: 10389.22369 | N16: 51 | O16: 52 | P16: 1 | R16: 1488.83196 | S16: 0 | T16: 0 | U16: 0 | W16: 0 | X16: 5997
A17: W1D001 | C17: JCFA - Lafayette | D17: 68 | E17: 65 | F17: -3 | H17: -7729.825691 | I17: 61 | J17: 59 | K17: -2 | M17: -832.9574524 | N17: 13 | O17: 13 | P17: 0 | R17: 618.0910334 | S17: 0 | T17: 0 | U17: 0 | W17: 0 | X17: -7946
A18: W2B001 | C18: Willow Charter Academy | D18: 612 | E18: 595 | F18: -17 | H18: -34108.64829 | I18: 553 | J18: 583 | K18: 30 | M18: 6986.884046 | N18: 80 | O18: 73 | P18: -7 | R18: -14578.34975 | S18: 0 | T18: 0 | U18: 0 | W18: 0 | X18: -41700
A19: W33001 | C19: Lincoln Prep School | D19: 477 | E19: 475 | F19: -2 | H19: -991.6886148 | I19: 409 | J19: 475 | K19: 66 | M19: 18935.02839 | N19: 85 | O19: 89 | P19: 4 | R19: 6717.240447 | S19: 4 | T19: 7 | U19: 3 | W19: 2382.798258 | X19: 27044
A20: W37001 | C20: Greater Grace | D20: 76 | E20: 69 | F20: -7 | H20: -12960.08241 | I20: 72 | J20: 66 | K20: -6 | M20: -1402.067443 | N20: 20 | O20: 19 | P20: -1 | R20: -1025.268261 | S20: 0 | T20: 0 | U20: 0 | W20: 0 | X20: -15387
A21: W3B001 | C21: Iberville Charter Academy | D21: 392 | E21: 396 | F21: 4 | H21: 11972.05427 | I21: 257 | J21: 259 | K21: 2 | M21: 936.7592804 | N21: 49 | O21: 49 | P21: 0 | R21: 585.5381472 | S21: 1 | T21: 1 | U21: 0 | W21: 0 | X21: 13494
A22: W4A001 | C22: Delta Charter School | D22: 474 | E22: 464 | F22: -10 | H22: -25556.91113 | I22: 282 | J22: 279 | K22: -3 | M22: -964.5551623 | N22: 51 | O22: 50 | P22: -1 | R22: -2450.80794 | S22: 4 | T22: 4 | U22: 0 | W22: 17.28911743 | X22: -28955
A23: W4B001 | C23: Lake Charles College Prep | D23: 504 | E23: 494 | F23: -10 | H23: -16002.63578 | I23: 361 | J23: 359 | K23: -2 | M23: -458.9391969 | N23: 56 | O23: 51 | P23: -5 | R23: -7822.827221 | S23: 0 | T23: 0 | U23: 0 | W23: 0 | X23: -24284
A24: W5B001 | C24: Northeast Claiborne Charter | D24: 180 | E24: 184 | F24: 4 | H24: 10222.74529 | I24: 147 | J24: 150 | K24: 3 | M24: 1017.493173 | N24: 18 | O24: 22 | P24: 4 | R24: 9249.937932 | S24: 0 | T24: 0 | U24: 0 | W24: 0 | X24: 20490
A25: W6B001 | C25: Acadiana Renaissance | D25: 896 | E25: 896 | F25: 0 | H25: -1193.273474 | I25: 345 | J25: 345 | K25: 0 | M25: -434.4618952 | N25: 54 | O25: 51 | P25: -3 | R25: -5085.848915 | S25: 44 | T25: 44 | U25: 0 | W25: 0 | X25: -6714
A26: W7A001 | C26: Louisiana Key Academy | D26: 380 | E26: 390 | F26: 10 | H26: 17788.08186 | I26: 239 | J26: 248 | K26: 9 | M26: 2169.007685 | N26: 215 | O26: 238 | P26: 23 | R26: 37341.71526 | S26: 0 | T26: 0 | U26: 0 | W26: 0 | X26: 57300
A27: W7B001 | C27: Lafayette Renaissance | D27: 979 | E27: 968 | F27: -11 | H27: -18468.6046 | I27: 841 | J27: 835 | K27: -6 | M27: -1344.345504 | N27: 70 | O27: 67 | P27: -3 | R27: -4351.875929 | S27: 25 | T27: 23 | U27: -2 | W27: -1793.21458 | X27: -25958
A28: W8A001 | C28: Impact Charter | D28: 394 | E28: 401 | F28: 7 | H28: -1263.776264 | I28: 331 | J28: 348 | K28: 17 | M28: 2958.678291 | N28: 37 | O28: 37 | P28: 0 | R28: -1962.031159 | S28: 0 | T28: 0 | U28: 0 | W28: 0 | X28: -267
A29: WAG001 | C29: Louisiana Virtual Charter Academy (90%) | D29: 1920 | E29: 1920 | F29: 0 | H29: -2471.879623 | I29: 1499 | J29: 1496 | K29: -3 | M29: -406.5869639 | N29: 268 | O29: 280 | P29: 12 | R29: 18975.7556 | S29: 55 | T29: 52 | U29: -3 | W29: -1883.070343 | X29: 14215
A30: WAK001 | C30: Southwest LA Charter School | D30: 694 | E30: 685 | F30: -9 | H30: -13612.91395 | I30: 612 | J30: 614 | K30: 2 | M30: 583.0680012 | N30: 81 | O30: 81 | P30: 0 | R30: 0 | S30: 1 | T30: 1 | U30: 0 | W30: 0 | X30: -13029
A31: WAL001 | C31: J. S. Clark Leadership Academy | D31: 249 | E31: 244 | F31: -5 | H31: -11531.10024 | I31: 241 | J31: 230 | K31: -11 | M31: -3683.047799 | N31: 12 | O31: 8 | P31: -4 | R31: -9089.290875 | S31: 3 | T31: 3 | U31: 0 | W31: 0 | X31: -24303
A32: WAQ001 | C32: Baton Rouge University Prep | D32: 374 | E32: 350 | F32: -24 | H32: -44445.67288 | I32: 363 | J32: 342 | K32: -21 | M32: -5013.063034 | N32: 51 | O32: 47 | P32: -4 | R32: -6930.906721 | S32: 0 | T32: 0 | U32: 0 | W32: 0 | X32: -56390
A33: WAU001 | C33: GEO Prep Academy | D33: 677 | E33: 668 | F33: -9 | H33: -14018.67845 | I33: 591 | J33: 595 | K33: 4 | M33: 705.984468 | N33: 76 | O33: 74 | P33: -2 | R33: -184.5255803 | S33: 3 | T33: 3 | U33: 0 | W33: 0 | X33: -13497
A34: WBQ001 | C34: New Harmony High School | D34: 102 | E34: 103 | F34: 1 | H34: 1932.910546 | I34: 76 | J34: 78 | K34: 2 | M34: 473.6091208 | N34: 24 | O34: 26 | P34: 2 | R34: 3163.710788 | S34: 0 | T34: 0 | U34: 0 | W34: 0 | X34: 5571
A35: WBR001 | C35: Athlos Academy of Jefferson Parish | D35: 1131 | E35: 1121 | F35: -10 | H35: -19475.27259 | I35: 978 | J35: 979 | K35: 1 | M35: 222.4072527 | N35: 110 | O35: 109 | P35: -1 | R35: -1581.855394 | S35: 32 | T35: 30 | U35: -2 | W35: -1317.838162 | X35: -22153
A36: WJ5001 | C36: Collegiate Academies | D36: 419 | E36: 399 | F36: -20 | H36: -38375.97974 | I36: 378 | J36: 368 | K36: -10 | M36: -2612.874915 | N36: 66 | O36: 65 | P36: -1 | R36: -2468.488365 | S36: 0 | T36: 0 | U36: 0 | W36: 0 | X36: -43456
A37: WZ8001 | C37: GEO Prep Mid-City of Great BR | D37: 715 | E37: 707 | F37: -8 | H37: -16399.53567 | I37: 645 | J37: 648 | K37: 3 | M37: 222.8411706 | N37: 70 | O37: 77 | P37: 7 | R37: 10412.3095 | S37: 0 | T37: 0 | U37: 0 | W37: 0 | X37: -5764
A38: WBX001 | C38: GEO Next Generation HS | D38: 96 | E38: 90 | F38: -6 | H38: -13528.06189 | I38: 74 | J38: 75 | K38: 1 | M38: 74.28039019 | N38: 7 | O38: 7 | P38: 0 | R38: 0 | S38: 0 | T38: 0 | U38: 0 | W38: 0 | X38: -13454
A39: WBY001 | C39: Red River Charter Academy | D39: 196 | E39: 198 | F39: 2 | H39: 4486.000728 | I39: 145 | J39: 151 | K39: 6 | M39: 2123.576944 | N39: 7 | O39: 7 | P39: 0 | R39: 0 | S39: 1 | T39: 1 | U39: 0 | W39: 0 | X39: 6609
A40: State Total | D40: =SUM(D7:D39) -> 20857 | E40: =SUM(E7:E39) -> 20709 | F40: =SUM(F7:F39) -> -148 | H40: =SUM(H7:H39) -> -282402.0555 | I40: =SUM(I7:I39) -> 15571 | J40: =SUM(J7:J39) -> 15759 | K40: =SUM(K7:K39) -> 188 | M40: =SUM(M7:M39) -> 48656.64195 | N40: =SUM(N7:N39) -> 2459 | O40: =SUM(O7:O39) -> 2513 | P40: =SUM(P7:P39) -> 54 | R40: =SUM(R7:R39) -> 93141.96297 | S40: =SUM(S7:S39) -> 434 | T40: =SUM(T7:T39) -> 483 | U40: =SUM(U7:U39) -> 49 | W40: =SUM(W7:W39) -> 33821.85772 | X40: =SUM(X7:X39) -> -106779

Sheet 10.1.19 MFP Base Count
A1: MFP Base_10.1.19
A3: LEA | B3: School System | C3: City/Parish | D3: RSD Operated & Type 5 Charters | E3: Madison Preparatory Academy | F3: D'Arbonne Woods Charter School | G3: Int'l High School of New Orleans | H3: New Orleans Military/ Maritime Academy | I3: Lycee Francais de la Nouvelle- Orleans | J3: Lake Charles Charter Academy | K3: JS Clark Leadership Academy | L3: Southwest Louisiana Charter School | M3: Louisiana Key Academy | N3: JCFA - East | O3: GEO Prep Mid-City of Greater Baton Rouge | P3: Delta Charter School | Q3: Impact Charter | R3: Advantage Charter Academy | S3: Iberville Charter Academy | T3: Lake Charles College Prep | U3: Northeast Claiborne Charter | V3: Acadiana Renaissance Charter Academy | W3: Lafayette Renaissance Charter Academy | X3: Willow Charter Academy | Y3: GEO Prep Academy | Z3: Lincoln Prep School | AA3: Greater Grace | AB3: Noble Minds | AC3: JCFA Lafayette | AD3: Collegiate Academy | AE3: Baton Rouge Univ. Prep | AF3: New Harmony High School | AG3: Athlos Academy of Jefferson Parish | AH3: GEO Next Generation High School | AI3: Red River Charter Academy | AJ3: Louisiana Virtual Charter Academy | AK3: University View Academy | AL3: Total Table 3 | AM3: Legacy New Vision Learning Academy | AN3: Legacy VB Glencoe Charter School | AO3: Legacy Int'l School of Louisiana | AP3: Legacy Avoyelles Public Charter School | AQ3: Legacy Delhi Charter School | AR3: Legacy Belle Chasse Academy | AS3: Legacy The MAX Charter School | AT3: LSU Lab School | AU3: Southern University Lab School | AV3: Louisiana School for Math Science & the Arts | AW3: New Orleans Center for Creative Arts | AX3: Thrive Academy | AY3: Total MFP Funded
E4: 343001 | F4: 341001 | G4: 344001 | H4: 348001 | I4: 347001 | J4: 346001 | K4: WAL001 | L4: WAK001 | M4: W7A001 | N4: W1A001 | O4: WZ8001 | P4: W4A001 | Q4: W8A001 | R4: W1B001 | S4: W3B001 | T4: W4B001 | U4: W5B001 | V4: W6B001 | W4: W7B001 | X4: W2B001 | Y4: WAU001 | Z4: W33001 | AA4: W37001 | AB4: W18001 | AC4: W1D001 | AD4: WJ5001 | AE4: WAQ001 | AF4: WBQ001 | AG4: WBR001 | AH4: WBX001 | AI4: WBY001 | AJ4: WAG001 | AK4: 345001 | AM4: 321001 | AN4: 329001 | AO4: 331001 | AP4: 333001 | AQ4: 336001 | AR4: 337001 | AS4: 340001 | AT4: 318001 | AU4: 319 | AV4: 302006 | AW4: 334001 | AX4: 3C1001
C5: 1 | D5: =C5+1 -> 2 | E5: =D5+1 -> 3 | F5: 4 | G5: 5 | H5: 6 | I5: 7 | J5: 8 | K5: 9 | L5: 10 | M5: 11 | N5: 12 | O5: 13 | P5: 14 | Q5: 15 | R5: =Q5+1 -> 16 | S5: =R5+1 -> 17 | T5: =S5+1 -> 18 | U5: =T5+1 -> 19 | V5: =U5+1 -> 20 | W5: =V5+1 -> 21 | X5: =W5+1 -> 22 | Y5: =X5+1 -> 23 | Z5: =Y5+1 -> 24 | AA5: =Z5+1 -> 25 | AB5: =AA5+1 -> 26 | AC5: =AB5+1 -> 27 | AD5: =AC5+1 -> 28 | AE5: =AD5+1 -> 29 | AF5: =AE5+1 -> 30 | AG5: =AF5+1 -> 31 | AH5: =AG5+1 -> 32 | AI5: =AH5+1 -> 33 | AJ5: =AI5+1 -> 34 | AK5: =AJ5+1 -> 35 | AL5: =AK5+1 -> 36 | AM5: =AL5+1 -> 37 | AN5: =AM5+1 -> 38 | AO5: =AN5+1 -> 39 | AP5: =AO5+1 -> 40 | AQ5: =AP5+1 -> 41 | AR5: =AQ5+1 -> 42 | AS5: =AR5+1 -> 43 | AT5: =AS5+1 -> 44 | AU5: =AT5+1 -> 45 | AV5: =AU5+1 -> 46 | AW5: =AV5+1 -> 47 | AX5: =AW5+1 -> 48 | AY5: =AX5+1 -> 49
A7: 1 | B7: Acadia | C7: 9448 | V7: 1 | W7: 14 | X7: 6 | AC7: 1 | AJ7: 20 | AK7: 40 | AL7: =SUM(C7:AK7) -> 9530 | AV7: 8 | AY7: =SUM(AL7:AX7) -> 9538
A8: 2 | B8: Allen | C8: 3981 | J8: 1 | T8: 1 | AJ8: 11 | AK8: 17 | AL8: 4011 | AV8: 2 | AY8: 4013
A9: 3 | B9: Ascension | C9: 22709 | E9: 2 | M9: 16 | O9: 3 | S9: 15 | AA9: 2 | AJ9: 35 | AK9: 89 | AL9: 22871 | AV9: 11 | AX9: 7 | AY9: 22889
A10: 4 | B10: Assumption | C10: 3038 | S10: 5 | AJ10: 10 | AK10: 8 | AL10: 3061 | AS10: 5 | AV10: 2 | AY10: 3068
A11: 5 | B11: Avoyelles | C11: 4928 | AI11: 193 | AJ11: 22 | AK11: 46 | AL11: 5189 | AP11: 727 | AV11: 3 | AY11: 5919
A12: 6 | B12: Beauregard | C12: 5749 | AJ12: 27 | AK12: 14 | AL12: 5790 | AV12: 1 | AY12: 5791
A13: 7 | B13: Bienville | C13: 2077 | F13: 2 | Z13: 42 | AJ13: 7 | AK13: 5 | AL13: 2133 | AV13: 1 | AY13: 2134
A14: 8 | B14: Bossier | C14: 22393 | AJ14: 70 | AK14: 41 | AL14: 22504 | AV14: 10 | AY14: 22514
A15: 9 | B15: Caddo | C15: 36871 | D15: 980 | AJ15: 117 | AK15: 75 | AL15: 38043 | AV15: 12 | AY15: 38055
A16: 10 | B16: Calcasieu | C16: 30685 | J16: 936 | L16: 689 | T16: 503 | AJ16: 70 | AK16: 96 | AL16: 32979 | AP16: 1 | AV16: 31 | AY16: 33011
A17: 11 | B17: Caldwell | C17: 1541 | AJ17: 1 | AK17: 5 | AL17: 1547 | AV17: 1 | AY17: 1548
A18: 12 | B18: Cameron | C18: 1292 | L18: 3 | AL18: 1295 | AY18: 1295
A19: 13 | B19: Catahoula | C19: 1115 | P19: 91 | AJ19: 7 | AK19: 7 | AL19: 1220 | AY19: 1220
A20: 14 | B20: Claiborne | C20: 1595 | F20: 1 | U20: 45 | Z20: 51 | AJ20: 5 | AK20: 5 | AL20: 1702 | AM20: 1 | AV20: 2 | AY20: 1705
A21: 15 | B21: Concordia | C21: 3176 | P21: 336 | AJ21: 9 | AK21: 8 | AL21: 3529 | AV21: 2 | AY21: 3531
A22: 16 | B22: DeSoto | C22: 4772 | AJ22: 18 | AK22: 11 | AL22: 4801 | AV22: 2 | AY22: 4803
A23: 17 | B23: East Baton Rouge | C23: 39667 | D23: 2123 | E23: 533 | M23: 252 | O23: 691 | Q23: 185 | R23: 172 | S23: 2 | Y23: 642 | AD23: 403 | AE23: 360 | AH23: 92 | AJ23: 101 | AK23: 274 | AL23: 45497 | AT23: 1416 | AU23: 569 | AV23: 10 | AX23: 137 | AY23: 47629
A24: 18 | B24: East Carroll | C24: 890 | AJ24: 6 | AK24: 2 | AL24: 898 | AQ24: 15 | AY24: 913
A25: 19 | B25: East Feliciana | C25: 1720 | M25: 5 | R25: 20 | Y25: 1 | AJ25: 12 | AK25: 26 | AL25: 1784 | AV25: 3 | AY25: 1787
A26: 20 | B26: Evangeline | C26: 5523 | K26: 3 | AJ26: 18 | AK26: 20 | AL26: 5564 | AV26: 2 | AY26: 5566
A27: 21 | B27: Franklin | C27: 2876 | P27: 2 | AJ27: 10 | AK27: 12 | AL27: 2900 | AM27: 2 | AQ27: 67 | AV27: 3 | AY27: 2972
A28: 22 | B28: Grant | C28: 2863 | AJ28: 9 | AK28: 18 | AL28: 2890 | AV28: 3 | AY28: 2893
A29: 23 | B29: Iberia | C29: 12035 | V29: 66 | W29: 4 | AC29: 1 | AJ29: 31 | AK29: 40 | AL29: 12177 | AN29: 91 | AV29: 6 | AY29: 12274
A30: 24 | B30: Iberville | C30: 4108 | E30: 2 | M30: 18 | Q30: 1 | R30: 2 | S30: 202 | AJ30: 6 | AK30: 18 | AL30: 4357 | AR30: 1 | AV30: 2 | AX30: 5 | AY30: 4365
A31: 25 | B31: Jackson | C31: 2195 | Z31: 15 | AJ31: 12 | AK31: 7 | AL31: 2229 | AV31: 3 | AY31: 2232
A32: 26 | B32: Jefferson | C32: 48631 | G32: 44 | H32: 684 | I32: 241 | N32: 181 | S32: 8 | AB32: 12 | AF32: 6 | AG32: 1039 | AJ32: 170 | AK32: 193 | AL32: 51209 | AO32: 594 | AR32: 228 | AV32: 6 | AW32: 40 | AX32: 1 | AY32: 52078
A33: 27 | B33: Jefferson Davis | C33: 5453 | J33: 4 | L33: 2 | AC33: 1 | AJ33: 15 | AK33: 2 | AL33: 5477 | AV33: 3 | AY33: 5480
A34: 28 | B34: Lafayette | C34: 30878 | V34: 746 | W34: 823 | X34: 550 | AC34: 58 | AJ34: 68 | AK34: 110 | AL34: 33233 | AN34: 3 | AV34: 15 | AY34: 33251
A35: 29 | B35: Lafourche | C35: 14140 | G35: 1 | N35: 1 | S35: 63 | AA35: 2 | AJ35: 29 | AK35: 67 | AL35: 14303 | AO35: 1 | AS35: 62 | AV35: 10 | AY35: 14376
A36: 30 | B36: LaSalle | C36: 2504 | AK36: 9 | AL36: 2513 | AY36: 2513
A37: 31 | B37: Lincoln | C37: 5793 | F37: 55 | U37: 5 | Z37: 330 | AJ37: 12 | AK37: 5 | AL37: 6200 | AM37: 2 | AV37: 5 | AY37: 6207
A38: 32 | B38: Livingston | C38: 25567 | E38: 6 | M38: 19 | O38: 4 | Y38: 4 | AJ38: 92 | AK38: 252 | AL38: 25944 | AV38: 17 | AY38: 25961
A39: 33 | B39: Madison | C39: 1119 | AJ39: 3 | AK39: 304 | AL39: =SUM(C39:AK39) -> 1426 | AM39: 1 | AQ39: 316 | AV39: 1 | AY39: 1744
A40: 34 | B40: Morehouse | C40: 3526 | F40: 1 | AJ40: 39 | AK40: 24 | AL40: 3590 | AM40: 15 | AY40: 3605
A41: 35 | B41: Natchitoches | C41: 5643 | AJ41: 18 | AK41: 9 | AL41: 5670 | AV41: 23 | AY41: 5693
A42: 36 | B42: Orleans | C42: 45110 | G42: 403 | H42: 235 | I42: 690 | N42: 44 | S42: 1 | AB42: 88 | AF42: 95 | AG42: 79 | AJ42: 90 | AK42: 71 | AL42: 46906 | AO42: 757 | AR42: 213 | AV42: 3 | AW42: 121 | AY42: 48000
A43: 37 | B43: Ouachita | C43: 18590 | F43: 15 | Z43: 9 | AJ43: 59 | AK43: 60 | AL43: 18733 | AM43: 78 | AV43: 5 | AY43: 18816
A44: 38 | B44: Plaquemines | C44: 3845 | H44: 12 | I44: 7 | AF44: 1 | AG44: 7 | AJ44: 11 | AK44: 13 | AL44: 3896 | AO44: 9 | AR44: 460 | AV44: 1 | AW44: 6 | AY44: 4372
A45: 39 | B45: Pointe Coupee | C45: 2606 | M45: 7 | R45: 5 | AJ45: 12 | AK45: 14 | AL45: 2644 | AV45: 6 | AX45: 2 | AY45: 2652
A46: 40 | B46: Rapides | C46: 21769 | AI46: 2 | AJ46: 61 | AK46: 75 | AL46: 21907 | AP46: 5 | AV46: 14 | AY46: 21926
A47: 41 | B47: Red River | C47: 1308 | AJ47: 1 | AK47: 3 | AL47: 1312 | AY47: 1312
A48: 42 | B48: Richland | C48: 2711 | AJ48: 3 | AK48: 18 | AL48: 2732 | AQ48: 393 | AV48: 3 | AY48: 3128
A49: 43 | B49: Sabine | C49: 4033 | AJ49: 7 | AK49: 6 | AL49: 4046 | AV49: 13 | AY49: 4059
A50: 44 | B50: St. Bernard | C50: 7514 | G50: 6 | H50: 3 | I50: 3 | AB50: 3 | AG50: 5 | AJ50: 29 | AK50: 18 | AL50: 7581 | AO50: 18 | AR50: 1 | AV50: 4 | AW50: 8 | AY50: 7612
A51: 45 | B51: St. Charles | C51: 9421 | H51: 2 | I51: 4 | N51: 1 | AG51: 1 | AJ51: 20 | AK51: 8 | AL51: 9457 | AO51: 8 | AR51: 2 | AS51: 1 | AV51: 6 | AW51: 5 | AY51: 9479
A52: 46 | B52: St. Helena | C52: 1156 | AJ52: 12 | AK52: 16 | AL52: 1184 | AX52: 1 | AY52: 1185
A53: 47 | B53: St. James | C53: 3451 | S53: 1 | AA53: 50 | AJ53: 4 | AK53: 4 | AL53: 3510 | AS53: 1 | AV53: 1 | AW53: 2 | AY53: 3514
A54: 48 | B54: St. John the Baptist | C54: 5696 | I54: 2 | R54: 6 | S54: 1 | AA54: 22 | AJ54: 19 | AK54: 38 | AL54: 5784 | AO54: 8 | AR54: 2 | AS54: 3 | AV54: 3 | AW54: 4 | AX54: 3 | AY54: 5807
A55: 49 | B55: St. Landry | C55: 12530 | K55: 246 | M55: 1 | V55: 3 | W55: 92 | X55: 32 | AC55: 2 | AI55: 1 | AJ55: 65 | AK55: 63 | AL55: 13035 | AP55: 4 | AV55: 12 | AY55: 13051
A56: 50 | B56: St. Martin | C56: 7329 | V56: 53 | W56: 42 | X56: 24 | AC56: 3 | AJ56: 25 | AK56: 11 | AL56: 7487 | AV56: 5 | AY56: 7492
A57: 51 | B57: St. Mary | C57: 8173 | AJ57: 9 | AK57: 20 | AL57: 8202 | AN57: 254 | AS57: 3 | AV57: 2 | AY57: 8461
A58: 52 | B58: St. Tammany | C58: 37682 | G58: 2 | H58: 3 | I58: 8 | M58: 1 | N58: 2 | AJ58: 105 | AK58: 298 | AL58: 38101 | AO58: 6 | AR58: 4 | AV58: 30 | AW58: 40 | AX58: 1 | AY58: 38182
A59: 53 | B59: Tangipahoa | C59: 19078 | E59: 1 | AJ59: 78 | AK59: 196 | AL59: 19353 | AR59: 1 | AV59: 14 | AW59: 8 | AX59: 2 | AY59: 19378
A60: 54 | B60: Tensas | C60: 393 | P60: 45 | AJ60: 5 | AK60: 8 | AL60: 451 | AQ60: 15 | AY60: 466
A61: 55 | B61: Terrebonne | C61: 16329 | S61: 56 | AJ61: 59 | AK61: 111 | AL61: 16555 | AS61: 45 | AV61: 8 | AY61: 16608
A62: 56 | B62: Union | C62: 1912 | F62: 903 | U62: 130 | Z62: 27 | AJ62: 8 | AK62: 10 | AL62: 2990 | AM62: 1 | AV62: 1 | AY62: 2992
A63: 57 | B63: Vermilion | C63: 9292 | V63: 27 | W63: 4 | AC63: 2 | AJ63: 27 | AK63: 18 | AL63: 9370 | AV63: 2 | AY63: 9372
A64: 58 | B64: Vernon | C64: 8029 | AJ64: 23 | AK64: 20 | AL64: 8072 | AV64: 7 | AY64: 8079
A65: 59 | B65: Washington | C65: 4883 | AJ65: 18 | AK65: 43 | AL65: 4944 | AY65: 4944
A66: 60 | B66: Webster | C66: 5797 | Z66: 2 | AJ66: 17 | AK66: 23 | AL66: 5839 | AV66: 1 | AY66: 5840
A67: 61 | B67: West Baton Rouge | C67: 3662 | E67: 3 | M67: 14 | O67: 1 | R67: 6 | S67: 38 | Y67: 1 | AJ67: 10 | AK67: 26 | AL67: 3761 | AV67: 2 | AX67: 6 | AY67: 3769
A68: 62 | B68: West Carroll | C68: 1884 | AJ68: 4 | AK68: 11 | AL68: 1899 | AQ68: 40 | AV68: 2 | AY68: 1941
A69: 63 | B69: West Feliciana | C69: 2115 | M69: 3 | R69: 1 | AJ69: 2 | AK69: 8 | AL69: 2129 | AV69: 2 | AX69: 2 | AY69: 2133
A70: 64 | B70: Winn | C70: 2040 | Z70: 1 | AJ70: 5 | AK70: 2 | AL70: 2048 | AY70: 2048
A71: 65 | B71: City of Monroe | C71: 7832 | AJ71: 9 | AK71: 9 | AL71: =SUM(C71:AK71) -> 7850 | AM71: 169 | AV71: 2 | AX71: 1 | AY71: =SUM(AL71:AX71) -> 8022
A72: 66 | B72: City of Bogalusa | C72: 1838 | AJ72: 18 | AK72: 30 | AL72: 1886 | AY72: 1886
A73: 67 | B73: Zachary Community | C73: 5372 | E73: 8 | M73: 9 | Q73: 11 | R73: 19 | Y73: 1 | AD73: 1 | AE73: 1 | AJ73: 12 | AK73: 35 | AL73: 5469 | AV73: 6 | AX73: 2 | AY73: 5477
A74: 68 | B74: City of Baker | C74: 1242 | E74: 14 | M74: 16 | O74: 11 | Q74: 194 | R74: 256 | Y74: 20 | AD74: 15 | AE74: 13 | AH74: 4 | AJ74: 5 | AK74: 14 | AL74: 1804 | AX74: 2 | AY74: 1806
A75: 69 | B75: Central Community | C75: 4708 | E75: 1 | M75: 19 | O75: 5 | Q75: 3 | R75: 4 | Y75: 8 | AJ75: 8 | AK75: 32 | AL75: 4788 | AV75: 3 | AX75: 1 | AY75: 4792
A76: Total | C76: =SUM(C7:C75) -> 659831 | D76: 3103 | E76: =SUM(E7:E75) -> 570 | F76: 977 | G76: 456 | H76: 939 | I76: 955 | J76: 941 | K76: 249 | L76: 694 | M76: 380 | N76: 229 | O76: 715 | P76: 474 | Q76: 394 | R76: 491 | S76: 392 | T76: 504 | U76: 180 | V76: 896 | W76: 979 | X76: 612 | Y76: 677 | Z76: 477 | AA76: 76 | AB76: =SUM(AB7:AB75) -> 103 | AC76: =SUM(AC7:AC75) -> 68 | AD76: =SUM(AD7:AD75) -> 419 | AE76: =SUM(AE7:AE75) -> 374 | AF76: =SUM(AF7:AF75) -> 102 | AG76: =SUM(AG7:AG75) -> 1131 | AH76: =SUM(AH7:AH75) -> 96 | AI76: =SUM(AI7:AI75) -> 196 | AJ76: =SUM(AJ7:AJ75) -> 1920 | AK76: =SUM(AK7:AK75) -> 3191 | AL76: 683791 | AM76: 269 | AN76: 348 | AO76: 1401 | AP76: 737 | AQ76: 846 | AR76: 912 | AS76: 120 | AT76: 1416 | AU76: 569 | AV76: 358 | AW76: 234 | AX76: 173 | AY76: 691174

Sheet 2.1.20 MFP Base Count
A1: MFP Base_2.1.20
A3: LEA | B3: School System | C3: City/Parish | D3: RSD Operated & Type 5 Charters | E3: Madison Preparatory Academy | F3: D'Arbonne Woods Charter School | G3: Int'l High School of New Orleans | H3: New Orleans Military/ Maritime Academy | I3: Lycee Francais de la Nouvelle- Orleans | J3: Lake Charles Charter Academy | K3: JS Clark Leadership Academy | L3: Southwest Louisiana Charter School | M3: Louisiana Key Academy | N3: JCFA - East | O3: GEO Prep Mid-City of Greater Baton Rouge | P3: Delta Charter School | Q3: Impact Charter | R3: Advantage Charter Academy | S3: Iberville Charter Academy | T3: Lake Charles College Prep | U3: Northeast Claiborne Charter | V3: Acadiana Renaissance Charter Academy | W3: Lafayette Renaissance Charter Academy | X3: Willow Charter Academy | Y3: GEO Prep Academy | Z3: Lincoln Prep School | AA3: Greater Grace | AB3: Noble Minds | AC3: JCFA Lafayette | AD3: Collegiate Academy | AE3: Baton Rouge Univ. Prep | AF3: New Harmony High School | AG3: Athlos Academy of Jefferson Parish | AH3: GEO Next Generation High School | AI3: Red River Charter Academy | AJ3: Louisiana Virtual Charter Academy | AK3: University View Academy | AL3: Total Table 3 | AM3: Legacy New Vision Learning Academy | AN3: Legacy VB Glencoe Charter School | AO3: Legacy Int'l School of Louisiana | AP3: Legacy Avoyelles Public Charter School | AQ3: Legacy Delhi Charter School | AR3: Legacy Belle Chasse Academy | AS3: Legacy The MAX Charter School | AT3: LSU Lab School | AU3: Southern University Lab School | AV3: Louisiana School for Math Science & the Arts | AW3: New Orleans Center for Creative Arts | AX3: Thrive Academy | AY3: Total MFP Funded
E4: 343001 | F4: 341001 | G4: 344001 | H4: 348001 | I4: 347001 | J4: 346001 | K4: WAL001 | L4: WAK001 | M4: W7A001 | N4: W1A001 | O4: WZ8001 | P4: W4A001 | Q4: W8A001 | R4: W1B001 | S4: W3B001 | T4: W4B001 | U4: W5B001 | V4: W6B001 | W4: W7B001 | X4: W2B001 | Y4: WAU001 | Z4: W33001 | AA4: W37001 | AB4: W18001 | AC4: W1D001 | AD4: WJ5001 | AE4: WAQ001 | AF4: WBQ001 | AG4: WBR001 | AH4: WBX001 | AI4: WBY001 | AJ4: WAG001 | AK4: 345001 | AM4: 321001 | AN4: 329001 | AO4: 331001 | AP4: 333001 | AQ4: 336001 | AR4: 337001 | AS4: 340001 | AT4: 318001 | AU4: 319 | AV4: 302006 | AW4: 334001 | AX4: 3C1001
C5: 1 | D5: =C5+1 -> 2 | E5: =D5+1 -> 3 | F5: 4 | G5: 5 | H5: 6 | I5: 7 | J5: 8 | K5: 9 | L5: 10 | M5: 11 | N5: 12 | O5: 13 | P5: 14 | Q5: 15 | R5: 16 | S5: 17 | T5: 18 | U5: 19 | V5: 20 | W5: 21 | X5: 22 | Y5: 23 | Z5: 24 | AA5: 25 | AB5: 26 | AC5: 27 | AD5: 28 | AE5: 29 | AF5: 30 | AG5: 31 | AH5: 32 | AI5: 33 | AJ5: 34 | AK5: 35 | AL5: 36 | AM5: 37 | AN5: 38 | AO5: 39 | AP5: 40 | AQ5: 41 | AR5: 42 | AS5: 43 | AT5: 44 | AU5: 45 | AV5: 46 | AW5: 47 | AX5: 48 | AY5: 49
A7: 1 | B7: Acadia | C7: 9345 | V7: 1 | W7: 19 | X7: 4 | AC7: 2 | AJ7: 24 | AK7: 37 | AL7: =SUM(C7:AK7) -> 9432 | AV7: 5 | AY7: =SUM(AL7:AX7) -> 9437
A8: 2 | B8: Allen | C8: 3918 | J8: 1 | T8: 1 | AJ8: 11 | AK8: 16 | AL8: 3947 | AV8: 1 | AY8: 3948
A9: 3 | B9: Ascension | C9: 22555 | E9: 2 | M9: 16 | O9: 5 | S9: 14 | AA9: 1 | AJ9: 34 | AK9: 85 | AL9: 22712 | AV9: 11 | AX9: 9 | AY9: 22732
A10: 4 | B10: Assumption | C10: 3039 | S10: 6 | AJ10: 9 | AK10: 7 | AL10: 3061 | AS10: 6 | AV10: 2 | AY10: 3069
A11: 5 | B11: Avoyelles | C11: 4904 | AI11: 197 | AJ11: 24 | AK11: 44 | AL11: 5169 | AP11: 712 | AV11: 3 | AY11: 5884
A12: 6 | B12: Beauregard | C12: 5746 | AJ12: 27 | AK12: 12 | AL12: 5785 | AV12: 1 | AY12: 5786
A13: 7 | B13: Bienville | C13: 2029 | F13: 2 | Z13: 38 | AJ13: 8 | AK13: 5 | AL13: 2082 | AV13: 1 | AY13: 2083
A14: 8 | B14: Bossier | C14: 22266 | AJ14: 70 | AK14: 37 | AL14: 22373 | AV14: 10 | AY14: 22383
A15: 9 | B15: Caddo | C15: 36752 | D15: 952 | AJ15: 124 | AK15: 80 | AL15: 37908 | AV15: 12 | AY15: 37920
A16: 10 | B16: Calcasieu | C16: 30476 | J16: 912 | L16: 678 | S16: 1 | T16: 493 | AJ16: 65 | AK16: 94 | AL16: 32719 | AP16: 1 | AV16: 30 | AY16: 32750
A17: 11 | B17: Caldwell | C17: 1536 | AJ17: 2 | AK17: 7 | AL17: 1545 | AV17: 1 | AY17: 1546
A18: 12 | B18: Cameron | C18: 1278 | L18: 2 | AK18: 2 | AL18: 1282 | AY18: 1282
A19: 13 | B19: Catahoula | C19: 1101 | P19: 88 | AJ19: 6 | AK19: 7 | AL19: 1202 | AY19: 1202
A20: 14 | B20: Claiborne | C20: 1603 | F20: 1 | U20: 45 | Z20: 51 | AJ20: 4 | AK20: 4 | AL20: 1708 | AM20: 1 | AV20: 1 | AY20: 1710
A21: 15 | B21: Concordia | C21: 3177 | P21: 331 | AJ21: 7 | AK21: 7 | AL21: 3522 | AV21: 2 | AY21: 3524
A22: 16 | B22: DeSoto | C22: 4783 | AJ22: 16 | AK22: 8 | AL22: 4807 | AV22: 2 | AY22: 4809
A23: 17 | B23: East Baton Rouge | C23: 39459 | D23: 2070 | E23: 526 | L23: 1 | M23: 262 | O23: 684 | Q23: 204 | R23: 170 | S23: 1 | Y23: 630 | AD23: 387 | AE23: 339 | AH23: 89 | AJ23: 98 | AK23: 288 | AL23: 45208 | AT23: 1420 | AU23: 513 | AV23: 9 | AX23: 132 | AY23: 47282
A24: 18 | B24: East Carroll | C24: 871 | AJ24: 6 | AK24: 2 | AL24: 879 | AQ24: 15 | AY24: 894
A25: 19 | B25: East Feliciana | C25: 1724 | M25: 5 | R25: 20 | Y25: 1 | AJ25: 10 | AK25: 31 | AL25: 1791 | AV25: 3 | AY25: 1794
A26: 20 | B26: Evangeline | C26: 5516 | K26: 2 | AJ26: 20 | AK26: 22 | AL26: 5560 | AV26: 2 | AY26: 5562
A27: 21 | B27: Franklin | C27: 2859 | P27: 2 | AJ27: 7 | AK27: 10 | AL27: 2878 | AM27: 1 | AQ27: 64 | AV27: 3 | AY27: 2946
A28: 22 | B28: Grant | C28: 2813 | AJ28: 11 | AK28: 19 | AL28: 2843 | AV28: 3 | AY28: 2846
A29: 23 | B29: Iberia | C29: 11902 | V29: 66 | W29: 3 | AC29: 1 | AJ29: 32 | AK29: 43 | AL29: 12047 | AN29: 93 | AV29: 6 | AY29: 12146
A30: 24 | B30: Iberville | C30: 4120 | E30: 2 | M30: 18 | Q30: 1 | R30: 2 | S30: 198 | AJ30: 9 | AK30: 13 | AL30: 4363 | AR30: 1 | AV30: 2 | AX30: 4 | AY30: 4370
A31: 25 | B31: Jackson | C31: 2168 | Z31: 20 | AJ31: 15 | AK31: 6 | AL31: 2209 | AV31: 3 | AY31: 2212
A32: 26 | B32: Jefferson | C32: 48318 | G32: 43 | H32: 695 | I32: 229 | M32: 1 | N32: 171 | S32: 8 | AB32: 11 | AF32: 7 | AG32: 1026 | AJ32: 172 | AK32: 198 | AL32: 50879 | AO32: 583 | AR32: 238 | AV32: 6 | AW32: 42 | AY32: 51748
A33: 27 | B33: Jefferson Davis | C33: 5466 | J33: 4 | L33: 2 | AC33: 1 | AJ33: 14 | AK33: 2 | AL33: 5489 | AV33: 1 | AY33: 5490
A34: 28 | B34: Lafayette | C34: 30996 | V34: 747 | W34: 810 | X34: 540 | AC34: 59 | AJ34: 66 | AK34: 111 | AL34: 33329 | AN34: 3 | AV34: 14 | AY34: 33346
A35: 29 | B35: Lafourche | C35: 13945 | G35: 1 | S35: 61 | V35: 2 | AA35: 1 | AJ35: 29 | AK35: 67 | AL35: 14106 | AO35: 1 | AS35: 63 | AV35: 10 | AY35: 14180
A36: 30 | B36: LaSalle | C36: 2499 | V36: 1 | AJ36: 3 | AK36: 9 | AL36: 2512 | AY36: 2512
A37: 31 | B37: Lincoln | C37: 5767 | F37: 56 | U37: 5 | Z37: 327 | AJ37: 13 | AK37: 5 | AL37: 6173 | AM37: 2 | AV37: 4 | AY37: 6179
A38: 32 | B38: Livingston | C38: 25546 | E38: 7 | M38: 19 | O38: 4 | S38: 1 | Y38: 5 | AJ38: 85 | AK38: 255 | AL38: 25922 | AR38: 1 | AV38: 16 | AY38: 25939
A39: 33 | B39: Madison | C39: 1108 | AJ39: 2 | AK39: 302 | AL39: 1412 | AQ39: 306 | AV39: 1 | AY39: 1719
A40: 34 | B40: Morehouse | C40: 3528 | F40: 1 | AJ40: 39 | AK40: 23 | AL40: 3591 | AM40: 14 | AY40: 3605
A41: 35 | B41: Natchitoches | C41: 5585 | AJ41: 16 | AK41: 10 | AL41: 5611 | AV41: 20 | AY41: 5631
A42: 36 | B42: Orleans | C42: 45001 | G42: 392 | H42: 238 | I42: 688 | L42: 2 | N42: 40 | S42: 4 | AB42: 83 | AF42: 95 | AG42: 83 | AJ42: 88 | AK42: 61 | AL42: 46775 | AO42: 747 | AR42: 214 | AV42: 3 | AW42: 117 | AY42: 47856
A43: 37 | B43: Ouachita | C43: 18472 | F43: 13 | P43: 1 | Q43: 2 | Z43: 10 | AJ43: 52 | AK43: 64 | AL43: 18614 | AM43: 74 | AQ43: 1 | AV43: 4 | AY43: 18693
A44: 38 | B44: Plaquemines | C44: 3827 | H44: 17 | I44: 5 | AF44: 1 | AG44: 6 | AJ44: 10 | AK44: 13 | AL44: 3879 | AO44: 9 | AR44: 465 | AV44: 1 | AW44: 4 | AY44: 4358
A45: 39 | B45: Pointe Coupee | C45: 2605 | M45: 6 | R45: 4 | AJ45: 12 | AK45: 14 | AL45: 2641 | AV45: 6 | AX45: 2 | AY45: 2649
A46: 40 | B46: Rapides | C46: 21699 | V46: 1 | AJ46: 52 | AK46: 82 | AL46: 21834 | AP46: 5 | AV46: 12 | AY46: 21851
A47: 41 | B47: Red River | C47: 1291 | AJ47: 1 | AK47: 3 | AL47: 1295 | AY47: 1295
A48: 42 | B48: Richland | C48: 2705 | AJ48: 4 | AK48: 18 | AL48: 2727 | AQ48: 385 | AV48: 3 | AY48: 3115
A49: 43 | B49: Sabine | C49: 3998 | AJ49: 10 | AK49: 9 | AL49: 4017 | AV49: 12 | AY49: 4029
A50: 44 | B50: St. Bernard | C50: 7398 | G50: 5 | H50: 2 | I50: 3 | AB50: 1 | AG50: 5 | AJ50: 29 | AK50: 15 | AL50: 7458 | AO50: 17 | AR50: 1 | AV50: 4 | AW50: 8 | AX50: 1 | AY50: 7489
A51: 45 | B51: St. Charles | C51: 9433 | H51: 2 | I51: 4 | N51: 1 | AB51: 1 | AG51: 1 | AJ51: 23 | AK51: 8 | AL51: 9473 | AO51: 6 | AR51: 2 | AS51: 1 | AV51: 5 | AW51: 5 | AY51: 9492
A52: 46 | B52: St. Helena | C52: 1165 | AJ52: 10 | AK52: 10 | AL52: 1185 | AY52: 1185
A53: 47 | B53: St. James | C53: 3450 | S53: 1 | AA53: 48 | AJ53: 2 | AK53: 4 | AL53: 3505 | AS53: 1 | AV53: 1 | AW53: 2 | AY53: 3509
A54: 48 | B54: St. John the Baptist | C54: 5715 | I54: 2 | N54: 2 | R54: 6 | S54: 1 | AA54: 19 | AJ54: 20 | AK54: 40 | AL54: 5805 | AO54: 7 | AR54: 2 | AS54: 3 | AV54: 2 | AW54: 4 | AX54: 2 | AY54: 5825
A55: 49 | B55: St. Landry | C55: 12453 | K55: 242 | M55: 1 | V55: 4 | W55: 90 | X55: 31 | AC55: 1 | AI55: 1 | AJ55: 68 | AK55: 64 | AL55: 12955 | AP55: 4 | AV55: 10 | AY55: 12969
A56: 50 | B56: St. Martin | C56: 7236 | V56: 49 | W56: 45 | X56: 20 | AC56: 1 | AJ56: 25 | AK56: 12 | AL56: 7388 | AV56: 5 | AY56: 7393
A57: 51 | B57: St. Mary | C57: 8145 | AJ57: 11 | AK57: 22 | AL57: 8178 | AN57: 250 | AS57: 2 | AV57: 1 | AY57: 8431
A58: 52 | B58: St. Tammany | C58: 37603 | G58: 2 | H58: 2 | I58: 8 | M58: 1 | N58: 3 | AJ58: 118 | AK58: 311 | AL58: 38048 | AO58: 6 | AR58: 6 | AV58: 30 | AW58: 39 | AX58: 3 | AY58: 38132
A59: 53 | B59: Tangipahoa | C59: 19019 | E59: 1 | H59: 1 | AB59: 1 | AJ59: 74 | AK59: 210 | AL59: 19306 | AR59: 1 | AV59: 13 | AW59: 8 | AX59: 3 | AY59: 19331
A60: 54 | B60: Tensas | C60: 403 | P60: 42 | AJ60: 5 | AK60: 8 | AL60: 458 | AQ60: 15 | AY60: 473
A61: 55 | B61: Terrebonne | C61: 16352 | S61: 62 | V61: 2 | AJ61: 55 | AK61: 104 | AL61: 16575 | AS61: 43 | AV61: 7 | AY61: 16625
A62: 56 | B62: Union | C62: 1916 | F62: 900 | U62: 134 | W62: 1 | Z62: 26 | AJ62: 10 | AK62: 8 | AL62: 2995 | AM62: 1 | AY62: 2996
A63: 57 | B63: Vermilion | C63: 9253 | V63: 23 | AJ63: 27 | AK63: 17 | AL63: 9320 | AV63: 2 | AY63: 9322
A64: 58 | B64: Vernon | C64: 7971 | AJ64: 26 | AK64: 20 | AL64: 8017 | AV64: 6 | AY64: 8023
A65: 59 | B65: Washington | C65: 4937 | AJ65: 21 | AK65: 37 | AL65: 4995 | AY65: 4995
A66: 60 | B66: Webster | C66: 5795 | Z66: 2 | AJ66: 13 | AK66: 31 | AL66: 5841 | AV66: 1 | AY66: 5842
A67: 61 | B67: West Baton Rouge | C67: 3654 | E67: 3 | M67: 14 | O67: 1 | R67: 6 | S67: 38 | Y67: 2 | AJ67: 12 | AK67: 29 | AL67: 3759 | AV67: 2 | AX67: 8 | AY67: 3769
A68: 62 | B68: West Carroll | C68: 1892 | AJ68: 5 | AK68: 11 | AL68: 1908 | AQ68: 35 | AV68: 2 | AY68: 1945
A69: 63 | B69: West Feliciana | C69: 2090 | M69: 3 | R69: 1 | AJ69: 4 | AK69: 13 | AL69: 2111 | AV69: 2 | AX69: 1 | AY69: 2114
A70: 64 | B70: Winn | C70: 2019 | Z70: 1 | AJ70: 5 | AK70: 5 | AL70: 2030 | AY70: 2030
A71: 65 | B71: City of Monroe | C71: 7928 | AJ71: 9 | AK71: 13 | AL71: =SUM(C71:AK71) -> 7950 | AM71: 163 | AV71: 2 | AX71: 1 | AY71: =SUM(AL71:AX71) -> 8116
A72: 66 | B72: City of Bogalusa | C72: 1822 | AJ72: 14 | AK72: 25 | AL72: 1861 | AY72: 1861
A73: 67 | B73: Zachary Community | C73: 5366 | E73: 7 | M73: 9 | Q73: 11 | R73: 22 | Y73: 2 | AE73: 1 | AJ73: 13 | AK73: 36 | AL73: 5467 | AV73: 6 | AX73: 2 | AY73: 5475
A74: 68 | B74: City of Baker | C74: 1208 | E74: 16 | M74: 17 | O74: 8 | Q74: 180 | R74: 254 | Y74: 22 | AD74: 10 | AE74: 10 | AH74: 1 | AJ74: 5 | AK74: 13 | AL74: 1744 | AX74: 1 | AY74: 1745
A75: 69 | B75: Central Community | C75: 4749 | E75: 5 | M75: 18 | O75: 5 | Q75: 3 | R75: 3 | Y75: 6 | AD75: 2 | AJ75: 9 | AK75: 29 | AL75: 4829 | AV75: 3 | AX75: 1 | AY75: 4833
A76: Total | C76: =SUM(C7:C75) -> 657268 | D76: 3022 | E76: =SUM(E7:E75) -> 569 | F76: 973 | G76: 443 | H76: 957 | I76: 939 | J76: 917 | K76: 244 | L76: 685 | M76: 390 | N76: 217 | O76: 707 | P76: 464 | Q76: 401 | R76: 488 | S76: 396 | T76: 494 | U76: 184 | V76: 896 | W76: 968 | X76: 595 | Y76: 668 | Z76: 475 | AA76: 69 | AB76: =SUM(AB7:AB75) -> 97 | AC76: =SUM(AC7:AC75) -> 65 | AD76: =SUM(AD7:AD75) -> 399 | AE76: =SUM(AE7:AE75) -> 350 | AF76: =SUM(AF7:AF75) -> 103 | AG76: =SUM(AG7:AG75) -> 1121 | AH76: =SUM(AH7:AH75) -> 90 | AI76: =SUM(AI7:AI75) -> 198 | AJ76: =SUM(AJ7:AJ75) -> 1920 | AK76: =SUM(AK7:AK75) -> 3227 | AL76: 680999 | AM76: 256 | AN76: 346 | AO76: 1376 | AP76: 722 | AQ76: 821 | AR76: 931 | AS76: 119 | AT76: 1420 | AU76: 513 | AV76: 330 | AW76: 229 | AX76: 170 | AY76: 688232

Sheet Per Pupil Summary
A1: School System | C1: FY2019-20 Unweighted State Cost Allocation Per Pupils Types 1, 2, 3, 3B, and 4 Charter Schools | I1: FY2019-20 Weighted State Cost Allocation Per Pupils Types 1, 2, 3, 3B, and 4 Charter Schools | M1: FY2019-20 Final Local Revenue Representation Per Pupils | O1: Legacy Type 2 Charter Schools | P1: July 2019 Budget Letter Per Pupils
C2: Level 1 Base | D2: Level 2 | E2: Level 3 Hold Harmless & Mandated Cost Adjs. | F2: Unweighted Per Pupil Without Continuation of Prior Year Pay Raises | G2: Level 3 Continuation of Prior Year Pay Raises | H2: Unweighted Per Pupil With Continuation of Prior Year Pay Raises | I2: Economically Disadvantaged | J2: Career & Technical Education | K2: Students With Disabilities | L2: Gifted & Talented | M2: In a District Building | N2: Not In a District Building | O2: Unweighted Per Pupil Without Continuation of Prior Year Pay Raise (Includes Final FY2019-20 Local Revenue Representation) | P2: City/Parish Per Pupil (After State Cost Allocations to Other Public Schools) | Q2: State Cost Allocation Per Pupil (Levels 1, 2, & 3 without Continuation of Prior Year Pay Raises) | R2: Levels 1 & 2 Local Cost Allocation Per Pupil | S2: Total State Cost & Local Cost Allocation Per Pupil (With Continuation of Prior Year Pay Raises)
F3: Col. 1 + Col. 2 + Col. 3 | H3: Col. 4 + Col. 5 | O3: Col. 1 + Col. 2 + Col. 3 + Col. 12 | S3: Col. 5 + Col. 15 + Col. 16
C4: =B4+1 -> 1 | D4: =C4+1 -> 2 | E4: 3 | F4: 4 | G4: =F4+1 -> 5 | H4: 6 | I4: 7 | J4: 8 | K4: 9 | L4: 10 | M4: 11 | N4: 12 | O4: =N4+1 -> 13 | P4: =O4+1 -> 14 | Q4: 15 | R4: 16 | S4: 17
C5: Per Pupil, C6 | D5: T3, C23 | E5: T3, C28 | F5: C1 + C2 + C3 | G5: Historical Data | H5: C4 + C5 | I5: Per Pupil, C11 | J5: Per Pupil, C16 | K5: Per Pupil, C21 | L5: Per Pupil, C26 | O5: C1 + C2 + C3 + C12
C6: Link in File | D6: Link in File | E6: Link in File | F6: Formula | G6: Values | H6: Formula | I6: Link in File | J6: Link in File | K6: Link in File | L6: Link in File | M6: Link to Charter Per Pupil | N6: Link to Charter Per Pupil | O6: Formula
A7: 1 | B7: Acadia | C7: 3032.995583 | D7: 734 | E7: 169.3999365 | F7: =SUM(C7:E7) -> 3936.39552 | G7: 777.48 | H7: =SUM(F7:G7) -> 4713.87552 | I7: 667.2590283 | J7: 181.979735 | K7: 4549.493375 | L7: 1819.79735 | M7: ='[4]19-20 Final_Type1,1B,2,3,3B,4'!$K7 -> 2579 | N7: ='[4]19-20 Final_Type1,1B,2,3,3B,4'!$N7 -> 2579 | O7: =F7+N7 -> 6515.39552 | P7: ='[3]2_State Distrib and Adjs'!$AL7 -> 5769 | Q7: ='[3]3_Levels 1&2'!$AM7 -> 4995.25413 | R7: ='[3]3_Levels 1&2'!$AX7 -> 2592.28 | S7: =G7+Q7+R7 -> 8365.01413
A8: 2 | B8: Allen | C8: 3421.248826 | D8: 1482 | E8: 169.3999 | F8: =SUM(C8:E8) -> 5072.648726 | G8: 842.32 | H8: 5914.968726 | I8: 752.6747418 | J8: 205.2749296 | K8: 5131.873239 | L8: 2052.749296 | M8: ='[4]19-20 Final_Type1,1B,2,3,3B,4'!$K8 -> 2658 | N8: ='[4]19-20 Final_Type1,1B,2,3,3B,4'!$N8 -> 3080 | O8: 8152.648726 | P8: ='[3]2_State Distrib and Adjs'!$AL8 -> 7473 | Q8: ='[3]3_Levels 1&2'!$AM8 -> 6631.904024 | R8: ='[3]3_Levels 1&2'!$AX8 -> 2851.73 | S8: =G8+Q8+R8 -> 10325.95402
A9: 3 | B9: Ascension | C9: 2559.866546 | D9: 673 | E9: 169.3999017 | F9: 3402.266447 | G9: 596.84 | H9: 3999.106447 | I9: 563.17064 | J9: 153.5919927 | K9: 3839.799818 | L9: 1535.919927 | M9: ='[4]19-20 Final_Type1,1B,2,3,3B,4'!$K9 -> 5682 | N9: ='[4]19-20 Final_Type1,1B,2,3,3B,4'!$N9 -> 6520 | O9: 9922.266447 | P9: ='[3]2_State Distrib and Adjs'!$AL9 -> 4793 | Q9: ='[3]3_Levels 1&2'!$AM9 -> 4195.19841 | R9: ='[3]3_Levels 1&2'!$AX9 -> 3693.38 | S9: 8485.41841
A10: 4 | B10: Assumption | C10: 3101.239386 | D10: 1274 | E10: 169.3998095 | F10: 4544.639195 | G10: 585.76 | H10: 5130.399195 | I10: 682.2726648 | J10: 186.0743631 | K10: 4651.859078 | L10: 1860.743631 | M10: ='[4]19-20 Final_Type1,1B,2,3,3B,4'!$K10 -> 4789 | N10: ='[4]19-20 Final_Type1,1B,2,3,3B,4'!$N10 -> 4789 | O10: 9333.639195 | P10: ='[3]2_State Distrib and Adjs'!$AL10 -> 6792 | Q10: ='[3]3_Levels 1&2'!$AM10 -> 6198.79041 | R10: ='[3]3_Levels 1&2'!$AX10 -> 3494.49 | S10: 10279.04041
A11: 5 | B11: Avoyelles | C11: 3217.540825 | D11: 754 | E11: 169.399922 | F11: 4140.940747 | G11: 555.91 | H11: 4696.850747 | I11: 707.8589815 | J11: 193.0524495 | K11: 4826.311237 | L11: 1930.524495 | M11: ='[4]19-20 Final_Type1,1B,2,3,3B,4'!$K11 -> 2227 | N11: ='[4]19-20 Final_Type1,1B,2,3,3B,4'!$N11 -> 2227 | O11: 6367.940747 | P11: ='[3]2_State Distrib and Adjs'!$AL11 -> 6155 | Q11: ='[3]3_Levels 1&2'!$AM11 -> 5591.373222 | R11: ='[3]3_Levels 1&2'!$AX11 -> 2302.76 | S11: 8450.043222
A12: 6 | B12: Beauregard | C12: 3075.14158 | D12: 1178 | E12: 169.3998618 | F12: 4422.541441 | G12: 545.48 | H12: 4968.021441 | I12: 676.5311475 | J12: 184.5084948 | K12: 4612.712369 | L12: 1845.084948 | M12: ='[4]19-20 Final_Type1,1B,2,3,3B,4'!$K12 -> 3516 | N12: ='[4]19-20 Final_Type1,1B,2,3,3B,4'!$N12 -> 4262 | O12: 8684.541441 | P12: ='[3]2_State Distrib and Adjs'!$AL12 -> 6333 | Q12: ='[3]3_Levels 1&2'!$AM12 -> 5788.153793 | R12: ='[3]3_Levels 1&2'!$AX12 -> 3328.81 | S12: 9662.443793
A13: 7 | B13: Bienville | C13: 1803.909197 | D13: 112 | E13: 169.3998082 | F13: 2085.309005 | G13: 756.92 | H13: 2842.229005 | I13: 396.8600234 | J13: 108.2345518 | K13: 2705.863796 | L13: 1082.345518 | M13: ='[4]19-20 Final_Type1,1B,2,3,3B,4'!$K13 -> 11234 | N13: ='[4]19-20 Final_Type1,1B,2,3,3B,4'!$N13 -> 12278 | O13: 14363.30901 | P13: ='[3]2_State Distrib and Adjs'!$AL13 -> 3844 | Q13: ='[3]3_Levels 1&2'!$AM13 -> 3080.602109 | R13: ='[3]3_Levels 1&2'!$AX13 -> 5549.64 | S13: 9387.162109
A14: 8 | B14: Bossier | C14: 2897.845665 | D14: 988 | E14: 169.3999198 | F14: 4055.245585 | G14: 725.76 | H14: 4781.005585 | I14: 637.5260464 | J14: 173.8707399 | K14: 4346.768498 | L14: 1738.707399 | M14: ='[4]19-20 Final_Type1,1B,2,3,3B,4'!$K14 -> 4289 | N14: ='[4]19-20 Final_Type1,1B,2,3,3B,4'!$N14 -> 4871 | O14: 8926.245585 | P14: ='[3]2_State Distrib and Adjs'!$AL14 -> 5903 | Q14: ='[3]3_Levels 1&2'!$AM14 -> 5178.275699 | R14: ='[3]3_Levels 1&2'!$AX14 -> 3444.38 | S14: 9348.415699
A15: 9 | B15: Caddo | C15: 2743.13584 | D15: 854 | E15: 169.3999014 | F15: 3766.535742 | G15: 744.76 | H15: 4511.295742 | I15: 603.4898849 | J15: 164.5881504 | K15: 4114.703761 | L15: 1645.881504 | M15: ='[4]19-20 Final_Type1,1B,2,3,3B,4'!$K15 -> 4720 | N15: ='[4]19-20 Final_Type1,1B,2,3,3B,4'!$N15 -> 5484 | O15: 9250.535742 | P15: ='[3]2_State Distrib and Adjs'!$AL15 -> 5537 | Q15: ='[3]3_Levels 1&2'!$AM15 -> 4792.399382 | R15: ='[3]3_Levels 1&2'!$AX15 -> 3623.44 | S15: 9160.599382
A16: 10 | B16: Calcasieu | C16: 2086.087259 | D16: 337 | E16: 169.3998976 | F16: 2592.487156 | G16: 608.04 | H16: 3200.527156 | I16: 458.9391969 | J16: 125.1652355 | K16: 3129.130888 | L16: 1251.652355 | M16: ='[4]19-20 Final_Type1,1B,2,3,3B,4'!$K16 -> 6437 | N16: ='[4]19-20 Final_Type1,1B,2,3,3B,4'!$N16 -> 7255 | O16: 9847.487156 | P16: ='[3]2_State Distrib and Adjs'!$AL16 -> 4083 | Q16: ='[3]3_Levels 1&2'!$AM16 -> 3471.970423 | R16: ='[3]3_Levels 1&2'!$AX16 -> 4682.6 | S16: 8762.610423
A17: 11 | B17: Caldwell | C17: 3308.758684 | D17: 1571 | E17: 169.3997413 | F17: 5049.158425 | G17: 706.55 | H17: 5755.708425 | I17: 727.9269105 | J17: 198.525521 | K17: 4963.138026 | L17: 1985.25521 | M17: ='[4]19-20 Final_Type1,1B,2,3,3B,4'!$K17 -> 2966 | N17: ='[4]19-20 Final_Type1,1B,2,3,3B,4'!$N17 -> 3499 | O17: 8548.158425 | P17: ='[3]2_State Distrib and Adjs'!$AL17 -> 7908 | Q17: ='[3]3_Levels 1&2'!$AM17 -> 7200.018758 | R17: ='[3]3_Levels 1&2'!$AX17 -> 3417.82 | S17: 11324.38876
A18: 12 | B18: Cameron | C18: 1003.750118 | D18: 0 | E18: 169.4 | F18: 1173.150118 | G18: 1063.31 | H18: 2236.460118 | I18: 220.8250259 | J18: 60.22500705 | K18: 1505.625176 | L18: 602.2500705 | M18: ='[4]19-20 Final_Type1,1B,2,3,3B,4'!$K18 -> 7836 | N18: ='[4]19-20 Final_Type1,1B,2,3,3B,4'!$N18 -> 7836 | O18: 9009.150118 | P18: ='[3]2_State Distrib and Adjs'!$AL18 -> 2783 | Q18: ='[3]3_Levels 1&2'!$AM18 -> 1720.810646 | R18: ='[3]3_Levels 1&2'!$AX18 -> 6561.2 | S18: 9345.320646
A19: 13 | B19: Catahoula | C19: 3325.374311 | D19: 1283 | E19: 169.4 | F19: 4777.774311 | G19: 749.43 | H19: 5527.204311 | I19: 731.5823484 | J19: 199.5224587 | K19: 4988.061466 | L19: 1995.224587 | M19: ='[4]19-20 Final_Type1,1B,2,3,3B,4'!$K19 -> 2968 | N19: ='[4]19-20 Final_Type1,1B,2,3,3B,4'!$N19 -> 3003 | O19: 7780.774311 | P19: ='[3]2_State Distrib and Adjs'!$AL19 -> 7497 | Q19: ='[3]3_Levels 1&2'!$AM19 -> 6676.777075 | R19: ='[3]3_Levels 1&2'!$AX19 -> 2905.08 | S19: 10331.28708
A20: 14 | B20: Claiborne | C20: 2996.911485 | D20: 941 | E20: 169.3997702 | F20: 4107.311255 | G20: 809.98 | H20: 4917.291255 | I20: 659.3205267 | J20: 179.8146891 | K20: 4495.367228 | L20: 1798.146891 | M20: ='[4]19-20 Final_Type1,1B,2,3,3B,4'!$K20 -> 3775 | N20: ='[4]19-20 Final_Type1,1B,2,3,3B,4'!$N20 -> 4079 | O20: 8186.311255 | P20: ='[3]2_State Distrib and Adjs'!$AL20 -> 7241 | Q20: ='[3]3_Levels 1&2'!$AM20 -> 6365.50718 | R20: ='[3]3_Levels 1&2'!$AX20 -> 3454.78 | S20: 10630.26718
A21: 15 | B21: Concordia | C21: 3267.74392 | D21: 1254 | E21: 100 | F21: 4621.74392 | G21: 553.8 | H21: 5175.54392 | I21: 718.9036623 | J21: 196.0646352 | K21: 4901.615879 | L21: 1960.646352 | M21: ='[4]19-20 Final_Type1,1B,2,3,3B,4'!$K21 -> 3057 | N21: ='[4]19-20 Final_Type1,1B,2,3,3B,4'!$N21 -> 3057 | O21: 7678.74392 | P21: ='[3]2_State Distrib and Adjs'!$AL21 -> 6976 | Q21: ='[3]3_Levels 1&2'!$AM21 -> 6338.90583 | R21: ='[3]3_Levels 1&2'!$AX21 -> 2984.41 | S21: 9877.11583
A22: 16 | B22: Desoto | C22: 1408.633061 | D22: 0 | E22: 169.4 | F22: 1578.033061 | G22: 686.73 | H22: 2264.763061 | I22: 309.8992733 | J22: 84.51798363 | K22: 2112.949591 | L22: 845.1798363 | M22: ='[4]19-20 Final_Type1,1B,2,3,3B,4'!$K22 -> 12666 | N22: ='[4]19-20 Final_Type1,1B,2,3,3B,4'!$N22 -> 14225 | O22: 15803.03306 | P22: ='[3]2_State Distrib and Adjs'!$AL22 -> 2869 | Q22: ='[3]3_Levels 1&2'!$AM22 -> 2180.900933 | R22: ='[3]3_Levels 1&2'!$AX22 -> 5671.18 | S22: 8538.810933
A23: 17 | B23: East Baton Rouge | C23: 1983.297047 | D23: 247 | E23: 403.5130629 | F23: 2633.81011 | G23: 801.48 | H23: 3435.29011 | I23: 436.3253504 | J23: 118.9978228 | K23: 2974.945571 | L23: 1189.978228 | M23: ='[4]19-20 Final_Type1,1B,2,3,3B,4'!$K23 -> 6617 | N23: ='[4]19-20 Final_Type1,1B,2,3,3B,4'!$N23 -> 7559 | O23: 10192.81011 | P23: ='[3]2_State Distrib and Adjs'!$AL23 -> 4211 | Q23: ='[3]3_Levels 1&2'!$AM23 -> 3415.220896 | R23: ='[3]3_Levels 1&2'!$AX23 -> 4735.48 | S23: 8952.180896
A24: 18 | B24: East Carroll | C24: 3077.911274 | D24: 1299 | E24: 169.3997773 | F24: 4546.311051 | G24: 845.95 | H24: 5392.261051 | I24: 677.1404802 | J24: 184.6746764 | K24: 4616.86691 | L24: 0 | M24: ='[4]19-20 Final_Type1,1B,2,3,3B,4'!$K24 -> 2722 | N24: ='[4]19-20 Final_Type1,1B,2,3,3B,4'!$N24 -> 2722 | O24: 7268.311051 | P24: ='[3]2_State Distrib and Adjs'!$AL24 -> 7210 | Q24: ='[3]3_Levels 1&2'!$AM24 -> 6359.547884 | R24: ='[3]3_Levels 1&2'!$AX24 -> 3658.77 | S24: 10864.26788
A25: 19 | B25: East Feliciana | C25: 2696.929574 | D25: 708 | E25: 169.3997851 | F25: 3574.329359 | G25: 905.43 | H25: 4479.759359 | I25: 593.3245062 | J25: 161.8157744 | K25: 4045.394361 | L25: 1618.157744 | M25: ='[4]19-20 Final_Type1,1B,2,3,3B,4'!$K25 -> 4259 | N25: ='[4]19-20 Final_Type1,1B,2,3,3B,4'!$N25 -> 4259 | O25: 7833.329359 | P25: ='[3]2_State Distrib and Adjs'!$AL25 -> 5907 | Q25: ='[3]3_Levels 1&2'!$AM25 -> 5001.630844 | R25: ='[3]3_Levels 1&2'!$AX25 -> 3642.85 | S25: 9549.910844
A26: 20 | B26: Evangeline | C26: 3184.616466 | D26: 949 | E26: 100 | F26: 4233.616466 | G26: 586.17 | H26: 4819.786466 | I26: 700.6156226 | J26: 191.076988 | K26: 4776.9247 | L26: 1910.76988 | M26: ='[4]19-20 Final_Type1,1B,2,3,3B,4'!$K26 -> 2595 | N26: ='[4]19-20 Final_Type1,1B,2,3,3B,4'!$N26 -> 2683 | O26: 6916.616466 | P26: ='[3]2_State Distrib and Adjs'!$AL26 -> 6299 | Q26: ='[3]3_Levels 1&2'!$AM26 -> 5715.149759 | R26: ='[3]3_Levels 1&2'!$AX26 -> 2689.07 | S26: 8990.389759
A27: 21 | B27: Franklin | C27: 3273.804166 | D27: 974 | E27: 169.3998647 | F27: 4417.204031 | G27: 610.35 | H27: 5027.554031 | I27: 720.2369165 | J27: 196.42825 | K27: 4910.706249 | L27: 1964.2825 | M27: ='[4]19-20 Final_Type1,1B,2,3,3B,4'!$K27 -> 1812 | N27: ='[4]19-20 Final_Type1,1B,2,3,3B,4'!$N27 -> 2666 | O27: 7083.204031 | P27: ='[3]2_State Distrib and Adjs'!$AL27 -> 7017 | Q27: ='[3]3_Levels 1&2'!$AM27 -> 6397.236806 | R27: ='[3]3_Levels 1&2'!$AX27 -> 2616.52 | S27: 9624.106806
A28: 22 | B28: Grant | C28: 3586.714581 | D28: 1039 | E28: 169.4 | F28: 4795.114581 | G28: 496.36 | H28: 5291.474581 | I28: 789.0772077 | J28: 215.2028748 | K28: 5380.071871 | L28: 2152.028748 | M28: ='[4]19-20 Final_Type1,1B,2,3,3B,4'!$K28 -> 1206 | N28: ='[4]19-20 Final_Type1,1B,2,3,3B,4'!$N28 -> 2015 | O28: 6810.114581 | P28: ='[3]2_State Distrib and Adjs'!$AL28 -> 7507 | Q28: ='[3]3_Levels 1&2'!$AM28 -> 7001.818525 | R28: ='[3]3_Levels 1&2'!$AX28 -> 1964.86 | S28: 9463.038525
A29: 23 | B29: Iberia | C29: 2947.618309 | D29: 1058 | E29: 169.3998856 | F29: 4175.018195 | G29: 688.58 | H29: 4863.598195 | I29: 648.476028 | J29: 176.8570985 | K29: 4421.427464 | L29: 1768.570985 | M29: ='[4]19-20 Final_Type1,1B,2,3,3B,4'!$K29 -> 2667 | N29: ='[4]19-20 Final_Type1,1B,2,3,3B,4'!$N29 -> 3704 | O29: 7879.018195 | P29: ='[3]2_State Distrib and Adjs'!$AL29 -> 6124 | Q29: ='[3]3_Levels 1&2'!$AM29 -> 5434.379789 | R29: ='[3]3_Levels 1&2'!$AX29 -> 3472.01 | S29: 9594.969789
A30: 24 | B30: Iberville | C30: 1384.187367 | D30: 0 | E30: 463.278595 | F30: 1847.465962 | G30: 854.25 | H30: 2701.715962 | I30: 304.5212208 | J30: 83.05124204 | K30: 2076.281051 | L30: 830.5124204 | M30: ='[4]19-20 Final_Type1,1B,2,3,3B,4'!$K30 -> 13013 | N30: ='[4]19-20 Final_Type1,1B,2,3,3B,4'!$N30 -> 13711 | O30: 15558.46596 | P30: ='[3]2_State Distrib and Adjs'!$AL30 -> 3333 | Q30: ='[3]3_Levels 1&2'!$AM30 -> 2479.273546 | R30: ='[3]3_Levels 1&2'!$AX30 -> 5819.83 | S30: 9153.353546
A31: 25 | B31: Jackson | C31: 2573.216259 | D31: 788 | E31: 169.3999108 | F31: 3530.616169 | G31: 653.73 | H31: 4184.346169 | I31: 566.1075769 | J31: 154.3929755 | K31: 3859.824388 | L31: 1543.929755 | M31: ='[4]19-20 Final_Type1,1B,2,3,3B,4'!$K31 -> 4752 | N31: ='[4]19-20 Final_Type1,1B,2,3,3B,4'!$N31 -> 4752 | O31: 8282.616169 | P31: ='[3]2_State Distrib and Adjs'!$AL31 -> 5496 | Q31: ='[3]3_Levels 1&2'!$AM31 -> 4839.401248 | R31: ='[3]3_Levels 1&2'!$AX31 -> 4235.05 | S31: 9728.181248
A32: 26 | B32: Jefferson | C32: 2196.396936 | D32: 432 | E32: 400.5941567 | F32: 3028.991093 | G32: 836.83 | H32: 3865.821093 | I32: 483.2073259 | J32: 131.7838162 | K32: 3294.595404 | L32: 1317.838162 | M32: ='[4]19-20 Final_Type1,1B,2,3,3B,4'!$K32 -> 4804 | N32: ='[4]19-20 Final_Type1,1B,2,3,3B,4'!$N32 -> 5313 | O32: 8341.991093 | P32: ='[3]2_State Distrib and Adjs'!$AL32 -> 4826 | Q32: ='[3]3_Levels 1&2'!$AM32 -> 3980.666451 | R32: ='[3]3_Levels 1&2'!$AX32 -> 4563.05 | S32: 9380.546451
A33: 27 | B33: Jefferson Davis | C33: 3140.148695 | D33: 1243 | E33: 169.3998192 | F33: 4552.548514 | G33: 693.06 | H33: 5245.608514 | I33: 690.8327129 | J33: 188.4089217 | K33: 4710.223043 | L33: 1884.089217 | M33: ='[4]19-20 Final_Type1,1B,2,3,3B,4'!$K33 -> 2946 | N33: ='[4]19-20 Final_Type1,1B,2,3,3B,4'!$N33 -> 3604 | O33: 8156.548514 | P33: ='[3]2_State Distrib and Adjs'!$AL33 -> 6677 | Q33: ='[3]3_Levels 1&2'!$AM33 -> 5983.772694 | R33: ='[3]3_Levels 1&2'!$AX33 -> 3261.18 | S33: 9938.012694
A34: 28 | B34: Lafayette | C34: 2208.874205 | D34: 414 | E34: 230.6629024 | F34: 2853.537108 | G34: 694.4 | H34: 3547.937108 | I34: 485.9523252 | J34: 132.5324523 | K34: 3313.311308 | L34: 1325.324523 | M34: ='[4]19-20 Final_Type1,1B,2,3,3B,4'!$K34 -> 5259 | N34: ='[4]19-20 Final_Type1,1B,2,3,3B,4'!$N34 -> 5787 | O34: 8640.537108 | P34: ='[3]2_State Distrib and Adjs'!$AL34 -> 4304 | Q34: ='[3]3_Levels 1&2'!$AM34 -> 3603.30015 | R34: ='[3]3_Levels 1&2'!$AX34 -> 4247.82 | S34: 8545.52015
A35: 29 | B35: Lafourche | C35: 2621.032611 | D35: 736 | E35: 169.3998853 | F35: 3526.432496 | G35: 754.95 | H35: 4281.382496 | I35: 576.6271744 | J35: 157.2619567 | K35: 3931.548917 | L35: 1572.619567 | M35: ='[4]19-20 Final_Type1,1B,2,3,3B,4'!$K35 -> 4287 | N35: ='[4]19-20 Final_Type1,1B,2,3,3B,4'!$N35 -> 5006 | O35: 8532.432496 | P35: ='[3]2_State Distrib and Adjs'!$AL35 -> 5168 | Q35: ='[3]3_Levels 1&2'!$AM35 -> 4410.919464 | R35: ='[3]3_Levels 1&2'!$AX35 -> 3690.62 | S35: 8856.489464
A36: 30 | B36: LaSalle | C36: 3183.81735 | D36: 1287 | E36: 169.4000807 | F36: 4640.217431 | G36: 727.17 | H36: 5367.387431 | I36: 700.4398171 | J36: 191.029041 | K36: 4775.726026 | L36: 1910.29041 | M36: ='[4]19-20 Final_Type1,1B,2,3,3B,4'!$K36 -> 3646 | N36: ='[4]19-20 Final_Type1,1B,2,3,3B,4'!$N36 -> 4982 | O36: 9622.217431 | P36: ='[3]2_State Distrib and Adjs'!$AL36 -> 6848 | Q36: ='[3]3_Levels 1&2'!$AM36 -> 6116.624142 | R36: ='[3]3_Levels 1&2'!$AX36 -> 3214.9 | S36: 10058.69414
A37: 31 | B37: Lincoln | C37: 2429.674108 | D37: 650 | E37: 169.3998386 | F37: 3249.073947 | G37: 620.83 | H37: 3869.903947 | I37: 534.5283038 | J37: 145.7804465 | K37: 3644.511162 | L37: 1457.804465 | M37: ='[4]19-20 Final_Type1,1B,2,3,3B,4'!$K37 -> 5327 | N37: ='[4]19-20 Final_Type1,1B,2,3,3B,4'!$N37 -> 6062 | O37: 9311.073947 | P37: ='[3]2_State Distrib and Adjs'!$AL37 -> 5056 | Q37: ='[3]3_Levels 1&2'!$AM37 -> 4425.190315 | R37: ='[3]3_Levels 1&2'!$AX37 -> 4378.77 | S37: 9424.790315
A38: 32 | B38: Livingston | C38: 3327.985651 | D38: 1222 | E38: 169.3999058 | F38: 4719.385557 | G38: 559.77 | H38: 5279.155557 | I38: 732.1568432 | J38: 199.679139 | K38: 4991.978476 | L38: 1996.79139 | M38: ='[4]19-20 Final_Type1,1B,2,3,3B,4'!$K38 -> 2226 | N38: ='[4]19-20 Final_Type1,1B,2,3,3B,4'!$N38 -> 2637 | O38: 7356.385557 | P38: ='[3]2_State Distrib and Adjs'!$AL38 -> 6469 | Q38: ='[3]3_Levels 1&2'!$AM38 -> 5912.121471 | R38: ='[3]3_Levels 1&2'!$AX38 -> 2665.26 | S38: 9137.151471
A39: 33 | B39: Madison | C39: 2920.329967 | D39: 1074 | E39: 169.3998691 | F39: 4163.729836 | G39: 655.31 | H39: 4819.039836 | I39: 642.4725927 | J39: 175.219798 | K39: 4380.49495 | L39: 1752.19798 | M39: ='[4]19-20 Final_Type1,1B,2,3,3B,4'!$K39 -> 2241 | N39: ='[4]19-20 Final_Type1,1B,2,3,3B,4'!$N39 -> 3977 | O39: 8140.729836 | P39: ='[3]2_State Distrib and Adjs'!$AL39 -> 6742 | Q39: ='[3]3_Levels 1&2'!$AM39 -> 5921.954843 | R39: ='[3]3_Levels 1&2'!$AX39 -> 3776.04 | S39: 10353.30484
A40: 34 | B40: Morehouse | C40: 3219.2298 | D40: 1265 | E40: 169.3998919 | F40: 4653.629692 | G40: 644.11 | H40: 5297.739692 | I40: 708.230556 | J40: 193.153788 | K40: 4828.8447 | L40: 1931.53788 | M40: ='[4]19-20 Final_Type1,1B,2,3,3B,4'!$K40 -> 2828 | N40: ='[4]19-20 Final_Type1,1B,2,3,3B,4'!$N40 -> 3226 | O40: 7879.629692 | P40: ='[3]2_State Distrib and Adjs'!$AL40 -> 7133 | Q40: ='[3]3_Levels 1&2'!$AM40 -> 6493.180762 | R40: ='[3]3_Levels 1&2'!$AX40 -> 3169.8 | S40: 10307.09076
A41: 35 | B41: Natchitoches | C41: 2769.803896 | D41: 917 | E41: 169.399931 | F41: 3856.203827 | G41: 537.96 | H41: 4394.163827 | I41: 609.3568571 | J41: 166.1882337 | K41: 4154.705844 | L41: 1661.882337 | M41: ='[4]19-20 Final_Type1,1B,2,3,3B,4'!$K41 -> 4063 | N41: ='[4]19-20 Final_Type1,1B,2,3,3B,4'!$N41 -> 4408 | O41: 8264.203827 | P41: ='[3]2_State Distrib and Adjs'!$AL41 -> 5609 | Q41: ='[3]3_Levels 1&2'!$AM41 -> 5074.662127 | R41: ='[3]3_Levels 1&2'!$AX41 -> 3758.42 | S41: 9371.042127
A42: 36 | B42: Orleans* | C42: 2109.140526 | D42: 366 | E42: 169.3998922 | F42: 2644.540418 | G42: 746.03 | H42: 3390.570418 | I42: 464.0109156 | J42: 126.5484315 | K42: 3163.710788 | L42: 1265.484315 | M42: ='[4]19-20 Final_Type1,1B,2,3,3B,4'!$K42 -> 5702 | N42: ='[4]19-20 Final_Type1,1B,2,3,3B,4'!$N42 -> 6588 | O42: 9232.540418 | P42: ='[3]2_State Distrib and Adjs'!$AL42 -> 4356 | Q42: ='[3]3_Levels 1&2'!$AM42 -> 3615.116879 | R42: ='[3]3_Levels 1&2'!$AX42 -> 4776.45 | S42: 9137.596879
A43: 37 | B43: Ouachita | C43: 3151.882536 | D43: 1210 | E43: 169.3998937 | F43: 4531.282429 | G43: 653.61 | H43: 5184.892429 | I43: 693.4141579 | J43: 189.1129521 | K43: 4727.823804 | L43: 1891.129521 | M43: ='[4]19-20 Final_Type1,1B,2,3,3B,4'!$K43 -> 3056 | N43: ='[4]19-20 Final_Type1,1B,2,3,3B,4'!$N43 -> 3962 | O43: 8493.282429 | P43: ='[3]2_State Distrib and Adjs'!$AL43 -> 6468 | Q43: ='[3]3_Levels 1&2'!$AM43 -> 5814.796225 | R43: ='[3]3_Levels 1&2'!$AX43 -> 3135.25 | S43: 9603.656225
A44: 38 | B44: Plaquemines | C44: 1003.750006 | D44: 0 | E44: 423.4826434 | F44: 1427.232649 | G44: 829.92 | H44: 2257.152649 | I44: 220.8250012 | J44: 60.22500033 | K44: 1505.625008 | L44: 602.2500033 | M44: ='[4]19-20 Final_Type1,1B,2,3,3B,4'!$K44 -> 10963 | N44: ='[4]19-20 Final_Type1,1B,2,3,3B,4'!$N44 -> 10963 | O44: 12390.23265 | P44: ='[3]2_State Distrib and Adjs'!$AL44 -> 2810 | Q44: ='[3]3_Levels 1&2'!$AM44 -> 1976.84109 | R44: ='[3]3_Levels 1&2'!$AX44 -> 6772.64 | S44: 9579.40109
A45: 39 | B45: Pointe Coupee | C45: 1670.695049 | D45: 0 | E45: 293.421314 | F45: 1964.116363 | G45: 779.66 | H45: 2743.776363 | I45: 367.5529108 | J45: 100.2417029 | K45: 2506.042573 | L45: 1002.417029 | M45: ='[4]19-20 Final_Type1,1B,2,3,3B,4'!$K45 -> 5628 | N45: ='[4]19-20 Final_Type1,1B,2,3,3B,4'!$N45 -> 5628 | O45: 7592.116363 | P45: ='[3]2_State Distrib and Adjs'!$AL45 -> 3755 | Q45: ='[3]3_Levels 1&2'!$AM45 -> 2982.038961 | R45: ='[3]3_Levels 1&2'!$AX45 -> 5734.35 | S45: 9496.048961
A46: 40 | B46: Rapides | C46: 2974.030856 | D46: 1064 | E46: 169.3999092 | F46: 4207.430766 | G46: 700.27 | H46: 4907.700766 | I46: 654.2867884 | J46: 178.4418514 | K46: 4461.046285 | L46: 1784.418514 | M46: ='[4]19-20 Final_Type1,1B,2,3,3B,4'!$K46 -> 3801 | N46: ='[4]19-20 Final_Type1,1B,2,3,3B,4'!$N46 -> 4197 | O46: 8404.430766 | P46: ='[3]2_State Distrib and Adjs'!$AL46 -> 6119 | Q46: ='[3]3_Levels 1&2'!$AM46 -> 5418.7279 | R46: ='[3]3_Levels 1&2'!$AX46 -> 3385.85 | S46: 9504.8479
A47: 41 | B47: Red River | C47: 1686.253437 | D47: 5 | E47: 169.3998554 | F47: 1860.653292 | G47: 886.22 | H47: 2746.873292 | I47: 370.9757561 | J47: 101.1752062 | K47: 2529.380155 | L47: 1011.752062 | M47: ='[4]19-20 Final_Type1,1B,2,3,3B,4'!$K47 -> 11199 | N47: ='[4]19-20 Final_Type1,1B,2,3,3B,4'!$N47 -> 12831 | O47: 14691.65329 | P47: ='[3]2_State Distrib and Adjs'!$AL47 -> 3792 | Q47: ='[3]3_Levels 1&2'!$AM47 -> 2901.532899 | R47: ='[3]3_Levels 1&2'!$AX47 -> 5973.31 | S47: 9761.062899
A48: 42 | B48: Richland | C48: 2621.414691 | D48: 845 | E48: 169.3997817 | F48: 3635.814472 | G48: 534.28 | H48: 4170.094472 | I48: 576.7112319 | J48: 157.2848814 | K48: 3932.122036 | L48: 1572.848814 | M48: ='[4]19-20 Final_Type1,1B,2,3,3B,4'!$K48 -> 3775 | N48: ='[4]19-20 Final_Type1,1B,2,3,3B,4'!$N48 -> 4802 | O48: 8437.814472 | P48: ='[3]2_State Distrib and Adjs'!$AL48 -> 5582 | Q48: ='[3]3_Levels 1&2'!$AM48 -> 5041.85231 | R48: ='[3]3_Levels 1&2'!$AX48 -> 4238.19 | S48: 9814.32231
A49: 43 | B49: Sabine | C49: 3113.317425 | D49: 1272 | E49: 169.3999015 | F49: 4554.717327 | G49: 574.61 | H49: 5129.327327 | I49: 684.9298336 | J49: 186.7990455 | K49: 4669.976138 | L49: 1867.990455 | M49: ='[4]19-20 Final_Type1,1B,2,3,3B,4'!$K49 -> 3560 | N49: ='[4]19-20 Final_Type1,1B,2,3,3B,4'!$N49 -> 4380 | O49: 8934.717327 | P49: ='[3]2_State Distrib and Adjs'!$AL49 -> 6744 | Q49: ='[3]3_Levels 1&2'!$AM49 -> 6168.287121 | R49: ='[3]3_Levels 1&2'!$AX49 -> 3441.65 | S49: 10184.54712
A50: 44 | B50: St. Bernard | C50: 2945.620121 | D50: 1017 | E50: 169.3998384 | F50: 4132.019959 | G50: 663.16 | H50: 4795.179959 | I50: 648.0364266 | J50: 176.7372073 | K50: 4418.430182 | L50: 1767.372073 | M50: ='[4]19-20 Final_Type1,1B,2,3,3B,4'!$K50 -> 3791 | N50: ='[4]19-20 Final_Type1,1B,2,3,3B,4'!$N50 -> 3791 | O50: 7923.019959 | P50: ='[3]2_State Distrib and Adjs'!$AL50 -> 5899 | Q50: ='[3]3_Levels 1&2'!$AM50 -> 5234.668821 | R50: ='[3]3_Levels 1&2'!$AX50 -> 3345.94 | S50: 9243.768821
A51: 45 | B51: St. Charles | C51: 1465.731868 | D51: 0 | E51: 408.0527721 | F51: 1873.78464 | G51: 753.96 | H51: 2627.74464 | I51: 322.4610109 | J51: 87.94391207 | K51: 2198.597802 | L51: 879.4391207 | M51: ='[4]19-20 Final_Type1,1B,2,3,3B,4'!$K51 -> 12883 | N51: ='[4]19-20 Final_Type1,1B,2,3,3B,4'!$N51 -> 14336 | O51: 16209.78464 | P51: ='[3]2_State Distrib and Adjs'!$AL51 -> 3180 | Q51: ='[3]3_Levels 1&2'!$AM51 -> 2425.028843 | R51: ='[3]3_Levels 1&2'!$AX51 -> 5386.52 | S51: 8565.508843
A52: 46 | B52: St. Helena | C52: 3386.745803 | D52: 1387 | E52: 169.4 | F52: 4943.145803 | G52: 728.06 | H52: 5671.205803 | I52: 745.0840766 | J52: 203.2047482 | K52: 5080.118704 | L52: 2032.047482 | M52: ='[4]19-20 Final_Type1,1B,2,3,3B,4'!$K52 -> 1756 | N52: ='[4]19-20 Final_Type1,1B,2,3,3B,4'!$N52 -> 2984 | O52: 7927.145803 | P52: ='[3]2_State Distrib and Adjs'!$AL52 -> 8145 | Q52: ='[3]3_Levels 1&2'!$AM52 -> 7372.846862 | R52: ='[3]3_Levels 1&2'!$AX52 -> 2976.72 | S52: 11077.62686
A53: 47 | B53: St. James | C53: 1367.024347 | D53: 0 | E53: 398.0089913 | F53: 1765.033339 | G53: 910.76 | H53: 2675.793339 | I53: 300.7453564 | J53: 82.02146085 | K53: 2050.536521 | L53: 820.2146085 | M53: ='[4]19-20 Final_Type1,1B,2,3,3B,4'!$K53 -> 13410 | N53: ='[4]19-20 Final_Type1,1B,2,3,3B,4'!$N53 -> 15068 | O53: 16833.03334 | P53: ='[3]2_State Distrib and Adjs'!$AL53 -> 3405 | Q53: ='[3]3_Levels 1&2'!$AM53 -> 2494.647654 | R53: ='[3]3_Levels 1&2'!$AX53 -> 6154.95 | S53: 9560.357654
A54: 48 | B54: St. John | C54: 2415.559905 | D54: 640 | E54: 169.3998286 | F54: 3224.959734 | G54: 871.07 | H54: 4096.029734 | I54: 531.4231792 | J54: 144.9335943 | K54: 3623.339858 | L54: 1449.335943 | M54: ='[4]19-20 Final_Type1,1B,2,3,3B,4'!$K54 -> 5928 | N54: ='[4]19-20 Final_Type1,1B,2,3,3B,4'!$N54 -> 7208 | O54: 10432.95973 | P54: ='[3]2_State Distrib and Adjs'!$AL54 -> 5280 | Q54: ='[3]3_Levels 1&2'!$AM54 -> 4407.386975 | R54: ='[3]3_Levels 1&2'!$AX54 -> 4415.7 | S54: 9694.156975
A55: 49 | B55: St. Landry | C55: 3029.763625 | D55: 787 | E55: 169.3998798 | F55: 3986.163505 | G55: 574.44 | H55: 4560.603505 | I55: 666.5479975 | J55: 181.7858175 | K55: 4544.645437 | L55: 1817.858175 | M55: ='[4]19-20 Final_Type1,1B,2,3,3B,4'!$K55 -> 2796 | N55: ='[4]19-20 Final_Type1,1B,2,3,3B,4'!$N55 -> 2796 | O55: 6782.163505 | P55: ='[3]2_State Distrib and Adjs'!$AL55 -> 5940 | Q55: ='[3]3_Levels 1&2'!$AM55 -> 5350.731411 | R55: ='[3]3_Levels 1&2'!$AX55 -> 2791.2 | S55: 8716.371411
A56: 50 | B56: St. Martin | C56: 2894.532844 | D56: 989 | E56: 169.3998941 | F56: 4052.932738 | G56: 634.46 | H56: 4687.392738 | I56: 636.7972256 | J56: 173.6719706 | K56: 4341.799266 | L56: 1736.719706 | M56: ='[4]19-20 Final_Type1,1B,2,3,3B,4'!$K56 -> 2772 | N56: ='[4]19-20 Final_Type1,1B,2,3,3B,4'!$N56 -> 3827 | O56: 7879.932738 | P56: ='[3]2_State Distrib and Adjs'!$AL56 -> 5825 | Q56: ='[3]3_Levels 1&2'!$AM56 -> 5191.324732 | R56: ='[3]3_Levels 1&2'!$AX56 -> 3463.16 | S56: 9288.944732
A57: 51 | B57: St. Mary | C57: 2779.041221 | D57: 957 | E57: 169.3998549 | F57: 3905.441075 | G57: 706.66 | H57: 4612.101075 | I57: 611.3890685 | J57: 166.7424732 | K57: 4168.561831 | L57: 1667.424732 | M57: ='[4]19-20 Final_Type1,1B,2,3,3B,4'!$K57 -> 4116 | N57: ='[4]19-20 Final_Type1,1B,2,3,3B,4'!$N57 -> 4548 | O57: 8453.441075 | P57: ='[3]2_State Distrib and Adjs'!$AL57 -> 5972 | Q57: ='[3]3_Levels 1&2'!$AM57 -> 5263.924649 | R57: ='[3]3_Levels 1&2'!$AX57 -> 3872.98 | S57: 9843.564649
A58: 52 | B58: St. Tammany | C58: 2775.279833 | D58: 939 | E58: 169.3998886 | F58: 3883.679722 | G58: 658.37 | H58: 4542.049722 | I58: 610.5615633 | J58: 166.51679 | K58: 4162.91975 | L58: 1665.1679 | M58: ='[4]19-20 Final_Type1,1B,2,3,3B,4'!$K58 -> 5265 | N58: ='[4]19-20 Final_Type1,1B,2,3,3B,4'!$N58 -> 6096 | O58: 9979.679722 | P58: ='[3]2_State Distrib and Adjs'!$AL58 -> 5841 | Q58: ='[3]3_Levels 1&2'!$AM58 -> 5179.416485 | R58: ='[3]3_Levels 1&2'!$AX58 -> 3821.07 | S58: 9658.856485
A59: 53 | B59: Tangipahoa | C59: 3083.053353 | D59: 808 | E59: 169.3999179 | F59: 4060.453271 | G59: 689.74 | H59: 4750.193271 | I59: 678.2717376 | J59: 184.9832012 | K59: 4624.580029 | L59: 1849.832012 | M59: ='[4]19-20 Final_Type1,1B,2,3,3B,4'!$K59 -> 2596 | N59: ='[4]19-20 Final_Type1,1B,2,3,3B,4'!$N59 -> 2693 | O59: 6753.453271 | P59: ='[3]2_State Distrib and Adjs'!$AL59 -> 5983 | Q59: ='[3]3_Levels 1&2'!$AM59 -> 5292.591971 | R59: ='[3]3_Levels 1&2'!$AX59 -> 2649.54 | S59: 8631.871971
A60: 54 | B60: Tensas | C60: 2577.278213 | D60: 915 | E60: 169.399177 | F60: 3661.677389 | G60: 951.45 | H60: 4613.127389 | I60: 567.0012068 | J60: 154.6366928 | K60: 3865.917319 | L60: 1546.366928 | M60: ='[4]19-20 Final_Type1,1B,2,3,3B,4'!$K60 -> 6300 | N60: ='[4]19-20 Final_Type1,1B,2,3,3B,4'!$N60 -> 6300 | O60: 9961.677389 | P60: ='[3]2_State Distrib and Adjs'!$AL60 -> 6607 | Q60: ='[3]3_Levels 1&2'!$AM60 -> 5582.222222 | R60: ='[3]3_Levels 1&2'!$AX60 -> 4891.45 | S60: 11425.12222
A61: 55 | B61: Terrebonne | C61: 2699.850249 | D61: 830 | E61: 169.3998806 | F61: 3699.25013 | G61: 795.14 | H61: 4494.39013 | I61: 593.9670548 | J61: 161.9910149 | K61: 4049.775374 | L61: 1619.910149 | M61: ='[4]19-20 Final_Type1,1B,2,3,3B,4'!$K61 -> 3978 | N61: ='[4]19-20 Final_Type1,1B,2,3,3B,4'!$N61 -> 3978 | O61: 7677.25013 | P61: ='[3]2_State Distrib and Adjs'!$AL61 -> 5554 | Q61: ='[3]3_Levels 1&2'!$AM61 -> 4757.572247 | R61: ='[3]3_Levels 1&2'!$AX61 -> 3731.3 | S61: 9284.012247
A62: 56 | B62: Union | C62: 3083.312644 | D62: 1244 | E62: 169.4 | F62: 4496.712644 | G62: 614.66 | H62: 5111.372644 | I62: 678.3287817 | J62: 184.9987586 | K62: 4624.968966 | L62: 1849.987586 | M62: ='[4]19-20 Final_Type1,1B,2,3,3B,4'!$K62 -> 3423 | N62: ='[4]19-20 Final_Type1,1B,2,3,3B,4'!$N62 -> 4217 | O62: 8713.712644 | P62: ='[3]2_State Distrib and Adjs'!$AL62 -> 7077 | Q62: ='[3]3_Levels 1&2'!$AM62 -> 6088.048658 | R62: ='[3]3_Levels 1&2'!$AX62 -> 3482.53 | S62: 10185.23866
A63: 57 | B63: Vermilion | C63: 3102.127579 | D63: 857 | E63: 169.3999352 | F63: 4128.527514 | G63: 764.51 | H63: 4893.037514 | I63: 682.4680674 | J63: 186.1276547 | K63: 4653.191369 | L63: 1861.276547 | M63: ='[4]19-20 Final_Type1,1B,2,3,3B,4'!$K63 -> 2601 | N63: ='[4]19-20 Final_Type1,1B,2,3,3B,4'!$N63 -> 2601 | O63: 6729.527514 | P63: ='[3]2_State Distrib and Adjs'!$AL63 -> 6038 | Q63: ='[3]3_Levels 1&2'!$AM63 -> 5273.124676 | R63: ='[3]3_Levels 1&2'!$AX63 -> 2657.49 | S63: 8695.124676
A64: 58 | B64: Vernon | C64: 3409.673167 | D64: 1167 | E64: 169.3999257 | F64: 4746.073093 | G64: 697.04 | H64: 5443.113093 | I64: 750.1280968 | J64: 204.58039 | K64: 5114.509751 | L64: 2045.8039 | M64: ='[4]19-20 Final_Type1,1B,2,3,3B,4'!$K64 -> 1924 | N64: ='[4]19-20 Final_Type1,1B,2,3,3B,4'!$N64 -> 2405 | O64: 7151.073093 | P64: ='[3]2_State Distrib and Adjs'!$AL64 -> 6732 | Q64: ='[3]3_Levels 1&2'!$AM64 -> 6036.456863 | R64: ='[3]3_Levels 1&2'!$AX64 -> 2410.06 | S64: 9143.556863
A65: 59 | B65: Washington | C65: 3588.62805 | D65: 737 | E65: 169.3999603 | F65: 4495.028011 | G65: 689.52 | H65: 5184.548011 | I65: 789.4981711 | J65: 215.317683 | K65: 5382.942075 | L65: 2153.17683 | M65: ='[4]19-20 Final_Type1,1B,2,3,3B,4'!$K65 -> 1366 | N65: ='[4]19-20 Final_Type1,1B,2,3,3B,4'!$N65 -> 1574 | O65: 6069.028011 | P65: ='[3]2_State Distrib and Adjs'!$AL65 -> 7322 | Q65: ='[3]3_Levels 1&2'!$AM65 -> 6635.291476 | R65: ='[3]3_Levels 1&2'!$AX65 -> 1582.46 | S65: 8907.271476
A66: 60 | B66: Webster | C66: 2962.49634 | D66: 1103 | E66: 169.399866 | F66: 4234.896207 | G66: 594.04 | H66: 4828.936207 | I66: 651.7491949 | J66: 177.7497804 | K66: 4443.744511 | L66: 1777.497804 | M66: ='[4]19-20 Final_Type1,1B,2,3,3B,4'!$K66 -> 3346 | N66: ='[4]19-20 Final_Type1,1B,2,3,3B,4'!$N66 -> 4239 | O66: 8473.896207 | P66: ='[3]2_State Distrib and Adjs'!$AL66 -> 6225 | Q66: ='[3]3_Levels 1&2'!$AM66 -> 5632.445579 | R66: ='[3]3_Levels 1&2'!$AX66 -> 3557.86 | S66: 9784.345579
A67: 61 | B67: West Baton Rouge | C67: 1779.794716 | D67: 87 | E67: 169.39989 | F67: 2036.194606 | G67: 833.71 | H67: 2869.904606 | I67: 391.5548376 | J67: 106.787683 | K67: 2669.692074 | L67: 1067.87683 | M67: ='[4]19-20 Final_Type1,1B,2,3,3B,4'!$K67 -> 8998 | N67: ='[4]19-20 Final_Type1,1B,2,3,3B,4'!$N67 -> 10841 | O67: 12877.19461 | P67: ='[3]2_State Distrib and Adjs'!$AL67 -> 3777 | Q67: ='[3]3_Levels 1&2'!$AM67 -> 2940.115787 | R67: ='[3]3_Levels 1&2'!$AX67 -> 5427.98 | S67: 9201.805787
A68: 62 | B68: West Carroll | C68: 3359.644085 | D68: 876 | E68: 169.3997971 | F68: 4405.043882 | G68: 516.08 | H68: 4921.123882 | I68: 739.1216988 | J68: 201.5786451 | K68: 5039.466128 | L68: 2015.786451 | M68: ='[4]19-20 Final_Type1,1B,2,3,3B,4'!$K68 -> 2314 | N68: ='[4]19-20 Final_Type1,1B,2,3,3B,4'!$N68 -> 2314 | O68: 6719.043882 | P68: ='[3]2_State Distrib and Adjs'!$AL68 -> 6802 | Q68: ='[3]3_Levels 1&2'!$AM68 -> 6286.880264 | R68: ='[3]3_Levels 1&2'!$AX68 -> 2240.28 | S68: 9043.240264
A69: 63 | B69: West Feliciana | C69: 2061.379322 | D69: 341 | E69: 421.4347826 | F69: 2823.814105 | G69: 756.79 | H69: 3580.604105 | I69: 453.5034509 | J69: 123.6827593 | K69: 3092.068983 | L69: 1236.827593 | M69: ='[4]19-20 Final_Type1,1B,2,3,3B,4'!$K69 -> 9585 | N69: ='[4]19-20 Final_Type1,1B,2,3,3B,4'!$N69 -> 9580 | O69: 12403.8141 | P69: ='[3]2_State Distrib and Adjs'!$AL69 -> 4675 | Q69: ='[3]3_Levels 1&2'!$AM69 -> 3917.284499 | R69: ='[3]3_Levels 1&2'!$AX69 -> 5079.67 | S69: 9753.744499
A70: 64 | B70: Winn | C70: 3202.41901 | D70: 1240 | E70: 169.3999044 | F70: 4611.818915 | G70: 592.66 | H70: 5204.478915 | I70: 704.5321822 | J70: 192.1451406 | K70: 4803.628515 | L70: 1921.451406 | M70: ='[4]19-20 Final_Type1,1B,2,3,3B,4'!$K70 -> 2943 | N70: ='[4]19-20 Final_Type1,1B,2,3,3B,4'!$N70 -> 3466 | O70: 8077.818915 | P70: ='[3]2_State Distrib and Adjs'!$AL70 -> 7122 | Q70: ='[3]3_Levels 1&2'!$AM70 -> 6527.157191 | R70: ='[3]3_Levels 1&2'!$AX70 -> 3200.84 | S70: 10320.65719
A71: 65 | B71: City Of Monroe | C71: 2626.356429 | D71: 836 | E71: 169.3998741 | F71: 3631.756303 | G71: 829.12 | H71: =SUM(F71:G71) -> 4460.876303 | I71: 577.7984143 | J71: 157.5813857 | K71: 3939.534643 | L71: 1575.813857 | M71: ='[4]19-20 Final_Type1,1B,2,3,3B,4'!$K71 -> 5035 | N71: ='[4]19-20 Final_Type1,1B,2,3,3B,4'!$N71 -> 5430 | O71: =F71+N71 -> 9061.756303 | P71: ='[3]2_State Distrib and Adjs'!$AL71 -> 5807 | Q71: ='[3]3_Levels 1&2'!$AM71 -> 4978.243424 | R71: ='[3]3_Levels 1&2'!$AX71 -> 4165.18 | S71: 9972.543424
A72: 66 | B72: City Of Bogalusa | C72: 2978.496388 | D72: 1348 | E72: 169.3996849 | F72: =SUM(C72:E72) -> 4495.896073 | G72: 730.06 | H72: 5225.956073 | I72: 655.2692055 | J72: 178.7097833 | K72: 4467.744583 | L72: 1787.097833 | M72: ='[4]19-20 Final_Type1,1B,2,3,3B,4'!$K72 -> 4441 | N72: ='[4]19-20 Final_Type1,1B,2,3,3B,4'!$N72 -> 4441 | O72: 8936.896073 | P72: ='[3]2_State Distrib and Adjs'!$AL72 -> 7548 | Q72: ='[3]3_Levels 1&2'!$AM72 -> 6808.778361 | R72: ='[3]3_Levels 1&2'!$AX72 -> 4266.43 | S72: =G72+Q72+R72 -> 11805.26836
A73: 67 | B73: Zachary Community | C73: 2932.618619 | D73: 1017 | E73: 169.3998527 | F73: =SUM(C73:E73) -> 4119.018472 | G73: 715.61 | H73: 4834.628472 | I73: 645.1760962 | J73: 175.9571171 | K73: 4398.927929 | L73: 1759.571171 | M73: ='[4]19-20 Final_Type1,1B,2,3,3B,4'!$K73 -> 4161 | N73: ='[4]19-20 Final_Type1,1B,2,3,3B,4'!$N73 -> 6041 | O73: 10160.01847 | P73: ='[3]2_State Distrib and Adjs'!$AL73 -> 5973 | Q73: ='[3]3_Levels 1&2'!$AM73 -> 5260.17268 | R73: ='[3]3_Levels 1&2'!$AX73 -> 3399.88 | S73: 9375.66268
A74: 68 | B74: City Of Baker | C74: 3291.31782 | D74: 1324 | E74: 169.4 | F74: =SUM(C74:E74) -> 4784.71782 | G74: 798.7 | H74: 5583.41782 | I74: 724.0899203 | J74: 197.4790692 | K74: 4936.97673 | L74: 1974.790692 | M74: ='[4]19-20 Final_Type1,1B,2,3,3B,4'!$K74 -> 3066 | N74: ='[4]19-20 Final_Type1,1B,2,3,3B,4'!$N74 -> 3066 | O74: 7850.71782 | P74: ='[3]2_State Distrib and Adjs'!$AL74 -> 7659 | Q74: ='[3]3_Levels 1&2'!$AM74 -> 6591.958127 | R74: ='[3]3_Levels 1&2'!$AX74 -> 3039.65 | S74: 10430.30813
A75: 69 | B75: Central Community | C75: 3293.130053 | D75: 1314 | E75: 169.3998727 | F75: =SUM(C75:E75) -> 4776.529926 | G75: 705.67 | H75: 5482.199926 | I75: 724.4886117 | J75: 197.5878032 | K75: 4939.69508 | L75: 1975.878032 | M75: ='[4]19-20 Final_Type1,1B,2,3,3B,4'!$K75 -> 2676 | N75: ='[4]19-20 Final_Type1,1B,2,3,3B,4'!$N75 -> 3829 | O75: 8605.529926 | P75: ='[3]2_State Distrib and Adjs'!$AL75 -> 6780 | Q75: ='[3]3_Levels 1&2'!$AM75 -> 6074.147857 | R75: ='[3]3_Levels 1&2'!$AX75 -> 2909.08 | S75: 9688.897857
B76: State Average | C76: 2608.861434 | D76: 728 | E76: 212.7503803 | F76: =SUM(C76:E76) -> 3549.611814 | H76: 3549.611814 | I76: 569.6096794 | J76: 158.6271075 | K76: 3935.20231 | L76: 1525.492172 | M76: ='[4]19-20 Final_Type1,1B,2,3,3B,4'!$K76 -> 4780 | N76: ='[4]19-20 Final_Type1,1B,2,3,3B,4'!$N76 -> 5423 | O76: 8972.611814 | P76: ='[3]2_State Distrib and Adjs'!$AL76 -> 5386 | Q76: ='[3]3_Levels 1&2'!$AM76 -> 4661.832948 | R76: ='[3]3_Levels 1&2'!$AU76 -> 0.5883039734 | S76: 4662.421252
C78: * Continuation of prior year pay raise varies by LEA
